{"text_format":"1","workbook":"xlsx","n_sheets":4,"sheets":["COMOS TOOL","Rename ISO A1 FOLDER","PROJECTWICE (PASTE DATA)","Projectwize (Do not edit)"],"not_rendered":{"charts":0,"images":2,"macros":1,"external_links":0,"defined_names":2,"comments":0,"pivot_tables":0},"unopened":[],"bounds":{"document_bytes":16777216,"sheet_cells":100000,"rows_first":2000,"rows_last":500,"rows_between":2000,"halvings":0,"cell_chars":16384,"cell_head_chars":4096},"cells_cut":0,"cells_raw":0,"read":"whole","date_system":"1900"}

{"sheet":"COMOS TOOL","index":0,"n_rows":301,"n_cols":5,"rows_kept":301,"cut":false,"hidden":false,"merged":[[1,3,1,4],[8,3,10,4]]}
["COMOS Linenumbers","Drawing numbers"]
["RG-B25-P45107",{"$f":"_xlfn.TEXTJOIN(\", \",TRUE,IF(A2=Tabel4[Description 2 - with out extension],Tabel4[Name (Drawing Number)],\"\"))","v":"1019879"},null,"To the folks who want it easyer."]
["RL-A30-P45114",{"$f":"_xlfn.TEXTJOIN(\", \",TRUE,IF(A3=Tabel4[Description 2 - with out extension],Tabel4[Name (Drawing Number)],\"\"))","v":"1019880"},null,"1.","Copy list from Projectwize iso folder. "]
["RL-B25-P45101",{"$f":"_xlfn.TEXTJOIN(\", \",TRUE,IF(A4=Tabel4[Description 2 - with out extension],Tabel4[Name (Drawing Number)],\"\"))","v":""},null,"2.","Click on the Button \"Paste\"  in the \"Projectwize (Paste Data)\" tab."]
["RL-B25-P45105",{"$f":"_xlfn.TEXTJOIN(\", \",TRUE,IF(A5=Tabel4[Description 2 - with out extension],Tabel4[Name (Drawing Number)],\"\"))","v":""},null,"3.","Copy paste the list from Comos to \"comos Linenumbers\""]
["RL-B25-P45109",{"$f":"_xlfn.TEXTJOIN(\", \",TRUE,IF(A6=Tabel4[Description 2 - with out extension],Tabel4[Name (Drawing Number)],\"\"))","v":"1580715, 1580717, 1580718, 1580719"},null,"4.","Copy the list from Drawing numbers projectwice"]
[null,{"$f":"_xlfn.TEXTJOIN(\", \",TRUE,IF(A7=Tabel4[Description 2 - with out extension],Tabel4[Name (Drawing Number)],\"\"))","v":""},null,"5.","Enjoy."]
[null,{"$f":"_xlfn.TEXTJOIN(\", \",TRUE,IF(A8=Tabel4[Description 2 - with out extension],Tabel4[Name (Drawing Number)],\"\"))","v":""}]
[null,{"$f":"_xlfn.TEXTJOIN(\", \",TRUE,IF(A9=Tabel4[Description 2 - with out extension],Tabel4[Name (Drawing Number)],\"\"))","v":""},null,{"$f":"_xlfn.TEXTJOIN(\"\",FALSE, \"Do you work in project \",'PROJECTWICE (PASTE DATA)'!F2,\" ?\",\" If not, paste the correct dato to Projectwice (Paste data) Tab\")","v":"Do you work in project 230087 ? If not, paste the correct dato to Projectwice (Paste data) Tab"}]
[null,{"$f":"_xlfn.TEXTJOIN(\", \",TRUE,IF(A10=Tabel4[Description 2 - with out extension],Tabel4[Name (Drawing Number)],\"\"))","v":""}]
[null,{"$f":"_xlfn.TEXTJOIN(\", \",TRUE,IF(A11=Tabel4[Description 2 - with out extension],Tabel4[Name (Drawing Number)],\"\"))","v":""}]
[null,{"$f":"_xlfn.TEXTJOIN(\", \",TRUE,IF(A12=Tabel4[Description 2 - with out extension],Tabel4[Name (Drawing Number)],\"\"))","v":""}]
[null,{"$f":"_xlfn.TEXTJOIN(\", \",TRUE,IF(A13=Tabel4[Description 2 - with out extension],Tabel4[Name (Drawing Number)],\"\"))","v":""}]
[null,{"$f":"_xlfn.TEXTJOIN(\", \",TRUE,IF(A14=Tabel4[Description 2 - with out extension],Tabel4[Name (Drawing Number)],\"\"))","v":""}]
[null,{"$f":"_xlfn.TEXTJOIN(\", \",TRUE,IF(A15=Tabel4[Description 2 - with out extension],Tabel4[Name (Drawing Number)],\"\"))","v":""}]
[null,{"$f":"_xlfn.TEXTJOIN(\", \",TRUE,IF(A16=Tabel4[Description 2 - with out extension],Tabel4[Name (Drawing Number)],\"\"))","v":""}]
[null,{"$f":"_xlfn.TEXTJOIN(\", \",TRUE,IF(A17=Tabel4[Description 2 - with out extension],Tabel4[Name (Drawing Number)],\"\"))","v":""}]
[null,{"$f":"_xlfn.TEXTJOIN(\", \",TRUE,IF(A18=Tabel4[Description 2 - with out extension],Tabel4[Name (Drawing Number)],\"\"))","v":""}]
[null,{"$f":"_xlfn.TEXTJOIN(\", \",TRUE,IF(A19=Tabel4[Description 2 - with out extension],Tabel4[Name (Drawing Number)],\"\"))","v":""}]
[null,{"$f":"_xlfn.TEXTJOIN(\", \",TRUE,IF(A20=Tabel4[Description 2 - with out extension],Tabel4[Name (Drawing Number)],\"\"))","v":""}]
[null,{"$f":"_xlfn.TEXTJOIN(\", \",TRUE,IF(A21=Tabel4[Description 2 - with out extension],Tabel4[Name (Drawing Number)],\"\"))","v":""}]
[null,{"$f":"_xlfn.TEXTJOIN(\", \",TRUE,IF(A22=Tabel4[Description 2 - with out extension],Tabel4[Name (Drawing Number)],\"\"))","v":""}]
[null,{"$f":"_xlfn.TEXTJOIN(\", \",TRUE,IF(A23=Tabel4[Description 2 - with out extension],Tabel4[Name (Drawing Number)],\"\"))","v":""}]
[null,{"$f":"_xlfn.TEXTJOIN(\", \",TRUE,IF(A24=Tabel4[Description 2 - with out extension],Tabel4[Name (Drawing Number)],\"\"))","v":""}]
[null,{"$f":"_xlfn.TEXTJOIN(\", \",TRUE,IF(A25=Tabel4[Description 2 - with out extension],Tabel4[Name (Drawing Number)],\"\"))","v":""}]
[null,{"$f":"_xlfn.TEXTJOIN(\", \",TRUE,IF(A26=Tabel4[Description 2 - with out extension],Tabel4[Name (Drawing Number)],\"\"))","v":""}]
[null,{"$f":"_xlfn.TEXTJOIN(\", \",TRUE,IF(A27=Tabel4[Description 2 - with out extension],Tabel4[Name (Drawing Number)],\"\"))","v":""}]
[null,{"$f":"_xlfn.TEXTJOIN(\", \",TRUE,IF(A28=Tabel4[Description 2 - with out extension],Tabel4[Name (Drawing Number)],\"\"))","v":""}]
[null,{"$f":"_xlfn.TEXTJOIN(\", \",TRUE,IF(A29=Tabel4[Description 2 - with out extension],Tabel4[Name (Drawing Number)],\"\"))","v":""}]
[null,{"$f":"_xlfn.TEXTJOIN(\", \",TRUE,IF(A30=Tabel4[Description 2 - with out extension],Tabel4[Name (Drawing Number)],\"\"))","v":""}]
[null,{"$f":"_xlfn.TEXTJOIN(\", \",TRUE,IF(A31=Tabel4[Description 2 - with out extension],Tabel4[Name (Drawing Number)],\"\"))","v":""}]
[null,{"$f":"_xlfn.TEXTJOIN(\", \",TRUE,IF(A32=Tabel4[Description 2 - with out extension],Tabel4[Name (Drawing Number)],\"\"))","v":""}]
[null,{"$f":"_xlfn.TEXTJOIN(\", \",TRUE,IF(A33=Tabel4[Description 2 - with out extension],Tabel4[Name (Drawing Number)],\"\"))","v":""}]
[null,{"$f":"_xlfn.TEXTJOIN(\", \",TRUE,IF(A34=Tabel4[Description 2 - with out extension],Tabel4[Name (Drawing Number)],\"\"))","v":""}]
[null,{"$f":"_xlfn.TEXTJOIN(\", \",TRUE,IF(A35=Tabel4[Description 2 - with out extension],Tabel4[Name (Drawing Number)],\"\"))","v":""}]
[null,{"$f":"_xlfn.TEXTJOIN(\", \",TRUE,IF(A36=Tabel4[Description 2 - with out extension],Tabel4[Name (Drawing Number)],\"\"))","v":""}]
[null,{"$f":"_xlfn.TEXTJOIN(\", \",TRUE,IF(A37=Tabel4[Description 2 - with out extension],Tabel4[Name (Drawing Number)],\"\"))","v":""}]
[null,{"$f":"_xlfn.TEXTJOIN(\", \",TRUE,IF(A38=Tabel4[Description 2 - with out extension],Tabel4[Name (Drawing Number)],\"\"))","v":""}]
[null,{"$f":"_xlfn.TEXTJOIN(\", \",TRUE,IF(A39=Tabel4[Description 2 - with out extension],Tabel4[Name (Drawing Number)],\"\"))","v":""}]
[null,{"$f":"_xlfn.TEXTJOIN(\", \",TRUE,IF(A40=Tabel4[Description 2 - with out extension],Tabel4[Name (Drawing Number)],\"\"))","v":""}]
[null,{"$f":"_xlfn.TEXTJOIN(\", \",TRUE,IF(A41=Tabel4[Description 2 - with out extension],Tabel4[Name (Drawing Number)],\"\"))","v":""}]
[null,{"$f":"_xlfn.TEXTJOIN(\", \",TRUE,IF(A42=Tabel4[Description 2 - with out extension],Tabel4[Name (Drawing Number)],\"\"))","v":""}]
[null,{"$f":"_xlfn.TEXTJOIN(\", \",TRUE,IF(A43=Tabel4[Description 2 - with out extension],Tabel4[Name (Drawing Number)],\"\"))","v":""}]
[null,{"$f":"_xlfn.TEXTJOIN(\", \",TRUE,IF(A44=Tabel4[Description 2 - with out extension],Tabel4[Name (Drawing Number)],\"\"))","v":""}]
[null,{"$f":"_xlfn.TEXTJOIN(\", \",TRUE,IF(A45=Tabel4[Description 2 - with out extension],Tabel4[Name (Drawing Number)],\"\"))","v":""}]
[null,{"$f":"_xlfn.TEXTJOIN(\", \",TRUE,IF(A46=Tabel4[Description 2 - with out extension],Tabel4[Name (Drawing Number)],\"\"))","v":""}]
[null,{"$f":"_xlfn.TEXTJOIN(\", \",TRUE,IF(A47=Tabel4[Description 2 - with out extension],Tabel4[Name (Drawing Number)],\"\"))","v":""}]
[null,{"$f":"_xlfn.TEXTJOIN(\", \",TRUE,IF(A48=Tabel4[Description 2 - with out extension],Tabel4[Name (Drawing Number)],\"\"))","v":""}]
[null,{"$f":"_xlfn.TEXTJOIN(\", \",TRUE,IF(A49=Tabel4[Description 2 - with out extension],Tabel4[Name (Drawing Number)],\"\"))","v":""}]
[null,{"$f":"_xlfn.TEXTJOIN(\", \",TRUE,IF(A50=Tabel4[Description 2 - with out extension],Tabel4[Name (Drawing Number)],\"\"))","v":""}]
[null,{"$f":"_xlfn.TEXTJOIN(\", \",TRUE,IF(A51=Tabel4[Description 2 - with out extension],Tabel4[Name (Drawing Number)],\"\"))","v":""}]
[null,{"$f":"_xlfn.TEXTJOIN(\", \",TRUE,IF(A52=Tabel4[Description 2 - with out extension],Tabel4[Name (Drawing Number)],\"\"))","v":""}]
[null,{"$f":"_xlfn.TEXTJOIN(\", \",TRUE,IF(A53=Tabel4[Description 2 - with out extension],Tabel4[Name (Drawing Number)],\"\"))","v":""}]
[null,{"$f":"_xlfn.TEXTJOIN(\", \",TRUE,IF(A54=Tabel4[Description 2 - with out extension],Tabel4[Name (Drawing Number)],\"\"))","v":""}]
[null,{"$f":"_xlfn.TEXTJOIN(\", \",TRUE,IF(A55=Tabel4[Description 2 - with out extension],Tabel4[Name (Drawing Number)],\"\"))","v":""}]
[null,{"$f":"_xlfn.TEXTJOIN(\", \",TRUE,IF(A56=Tabel4[Description 2 - with out extension],Tabel4[Name (Drawing Number)],\"\"))","v":""}]
[null,{"$f":"_xlfn.TEXTJOIN(\", \",TRUE,IF(A57=Tabel4[Description 2 - with out extension],Tabel4[Name (Drawing Number)],\"\"))","v":""}]
[null,{"$f":"_xlfn.TEXTJOIN(\", \",TRUE,IF(A58=Tabel4[Description 2 - with out extension],Tabel4[Name (Drawing Number)],\"\"))","v":""}]
[null,{"$f":"_xlfn.TEXTJOIN(\", \",TRUE,IF(A59=Tabel4[Description 2 - with out extension],Tabel4[Name (Drawing Number)],\"\"))","v":""}]
[null,{"$f":"_xlfn.TEXTJOIN(\", \",TRUE,IF(A60=Tabel4[Description 2 - with out extension],Tabel4[Name (Drawing Number)],\"\"))","v":""}]
[null,{"$f":"_xlfn.TEXTJOIN(\", \",TRUE,IF(A61=Tabel4[Description 2 - with out extension],Tabel4[Name (Drawing Number)],\"\"))","v":""}]
[null,{"$f":"_xlfn.TEXTJOIN(\", \",TRUE,IF(A62=Tabel4[Description 2 - with out extension],Tabel4[Name (Drawing Number)],\"\"))","v":""}]
[null,{"$f":"_xlfn.TEXTJOIN(\", \",TRUE,IF(A63=Tabel4[Description 2 - with out extension],Tabel4[Name (Drawing Number)],\"\"))","v":""}]
[null,{"$f":"_xlfn.TEXTJOIN(\", \",TRUE,IF(A64=Tabel4[Description 2 - with out extension],Tabel4[Name (Drawing Number)],\"\"))","v":""}]
[null,{"$f":"_xlfn.TEXTJOIN(\", \",TRUE,IF(A65=Tabel4[Description 2 - with out extension],Tabel4[Name (Drawing Number)],\"\"))","v":""}]
[null,{"$f":"_xlfn.TEXTJOIN(\", \",TRUE,IF(A66=Tabel4[Description 2 - with out extension],Tabel4[Name (Drawing Number)],\"\"))","v":""}]
[null,{"$f":"_xlfn.TEXTJOIN(\", \",TRUE,IF(A67=Tabel4[Description 2 - with out extension],Tabel4[Name (Drawing Number)],\"\"))","v":""}]
[null,{"$f":"_xlfn.TEXTJOIN(\", \",TRUE,IF(A68=Tabel4[Description 2 - with out extension],Tabel4[Name (Drawing Number)],\"\"))","v":""}]
[null,{"$f":"_xlfn.TEXTJOIN(\", \",TRUE,IF(A69=Tabel4[Description 2 - with out extension],Tabel4[Name (Drawing Number)],\"\"))","v":""}]
[null,{"$f":"_xlfn.TEXTJOIN(\", \",TRUE,IF(A70=Tabel4[Description 2 - with out extension],Tabel4[Name (Drawing Number)],\"\"))","v":""}]
[null,{"$f":"_xlfn.TEXTJOIN(\", \",TRUE,IF(A71=Tabel4[Description 2 - with out extension],Tabel4[Name (Drawing Number)],\"\"))","v":""}]
[null,{"$f":"_xlfn.TEXTJOIN(\", \",TRUE,IF(A72=Tabel4[Description 2 - with out extension],Tabel4[Name (Drawing Number)],\"\"))","v":""}]
[null,{"$f":"_xlfn.TEXTJOIN(\", \",TRUE,IF(A73=Tabel4[Description 2 - with out extension],Tabel4[Name (Drawing Number)],\"\"))","v":""}]
[null,{"$f":"_xlfn.TEXTJOIN(\", \",TRUE,IF(A74=Tabel4[Description 2 - with out extension],Tabel4[Name (Drawing Number)],\"\"))","v":""}]
[null,{"$f":"_xlfn.TEXTJOIN(\", \",TRUE,IF(A75=Tabel4[Description 2 - with out extension],Tabel4[Name (Drawing Number)],\"\"))","v":""}]
[null,{"$f":"_xlfn.TEXTJOIN(\", \",TRUE,IF(A76=Tabel4[Description 2 - with out extension],Tabel4[Name (Drawing Number)],\"\"))","v":""}]
[null,{"$f":"_xlfn.TEXTJOIN(\", \",TRUE,IF(A77=Tabel4[Description 2 - with out extension],Tabel4[Name (Drawing Number)],\"\"))","v":""}]
[null,{"$f":"_xlfn.TEXTJOIN(\", \",TRUE,IF(A78=Tabel4[Description 2 - with out extension],Tabel4[Name (Drawing Number)],\"\"))","v":""}]
[null,{"$f":"_xlfn.TEXTJOIN(\", \",TRUE,IF(A79=Tabel4[Description 2 - with out extension],Tabel4[Name (Drawing Number)],\"\"))","v":""}]
[null,{"$f":"_xlfn.TEXTJOIN(\", \",TRUE,IF(A80=Tabel4[Description 2 - with out extension],Tabel4[Name (Drawing Number)],\"\"))","v":""}]
[null,{"$f":"_xlfn.TEXTJOIN(\", \",TRUE,IF(A81=Tabel4[Description 2 - with out extension],Tabel4[Name (Drawing Number)],\"\"))","v":""}]
[null,{"$f":"_xlfn.TEXTJOIN(\", \",TRUE,IF(A82=Tabel4[Description 2 - with out extension],Tabel4[Name (Drawing Number)],\"\"))","v":""}]
[null,{"$f":"_xlfn.TEXTJOIN(\", \",TRUE,IF(A83=Tabel4[Description 2 - with out extension],Tabel4[Name (Drawing Number)],\"\"))","v":""}]
[null,{"$f":"_xlfn.TEXTJOIN(\", \",TRUE,IF(A84=Tabel4[Description 2 - with out extension],Tabel4[Name (Drawing Number)],\"\"))","v":""}]
[null,{"$f":"_xlfn.TEXTJOIN(\", \",TRUE,IF(A85=Tabel4[Description 2 - with out extension],Tabel4[Name (Drawing Number)],\"\"))","v":""}]
[null,{"$f":"_xlfn.TEXTJOIN(\", \",TRUE,IF(A86=Tabel4[Description 2 - with out extension],Tabel4[Name (Drawing Number)],\"\"))","v":""}]
[null,{"$f":"_xlfn.TEXTJOIN(\", \",TRUE,IF(A87=Tabel4[Description 2 - with out extension],Tabel4[Name (Drawing Number)],\"\"))","v":""}]
[null,{"$f":"_xlfn.TEXTJOIN(\", \",TRUE,IF(A88=Tabel4[Description 2 - with out extension],Tabel4[Name (Drawing Number)],\"\"))","v":""}]
[null,{"$f":"_xlfn.TEXTJOIN(\", \",TRUE,IF(A89=Tabel4[Description 2 - with out extension],Tabel4[Name (Drawing Number)],\"\"))","v":""}]
[null,{"$f":"_xlfn.TEXTJOIN(\", \",TRUE,IF(A90=Tabel4[Description 2 - with out extension],Tabel4[Name (Drawing Number)],\"\"))","v":""}]
[null,{"$f":"_xlfn.TEXTJOIN(\", \",TRUE,IF(A91=Tabel4[Description 2 - with out extension],Tabel4[Name (Drawing Number)],\"\"))","v":""}]
[null,{"$f":"_xlfn.TEXTJOIN(\", \",TRUE,IF(A92=Tabel4[Description 2 - with out extension],Tabel4[Name (Drawing Number)],\"\"))","v":""}]
[null,{"$f":"_xlfn.TEXTJOIN(\", \",TRUE,IF(A93=Tabel4[Description 2 - with out extension],Tabel4[Name (Drawing Number)],\"\"))","v":""}]
[null,{"$f":"_xlfn.TEXTJOIN(\", \",TRUE,IF(A94=Tabel4[Description 2 - with out extension],Tabel4[Name (Drawing Number)],\"\"))","v":""}]
[null,{"$f":"_xlfn.TEXTJOIN(\", \",TRUE,IF(A95=Tabel4[Description 2 - with out extension],Tabel4[Name (Drawing Number)],\"\"))","v":""}]
[null,{"$f":"_xlfn.TEXTJOIN(\", \",TRUE,IF(A96=Tabel4[Description 2 - with out extension],Tabel4[Name (Drawing Number)],\"\"))","v":""}]
[null,{"$f":"_xlfn.TEXTJOIN(\", \",TRUE,IF(A97=Tabel4[Description 2 - with out extension],Tabel4[Name (Drawing Number)],\"\"))","v":""}]
[null,{"$f":"_xlfn.TEXTJOIN(\", \",TRUE,IF(A98=Tabel4[Description 2 - with out extension],Tabel4[Name (Drawing Number)],\"\"))","v":""}]
[null,{"$f":"_xlfn.TEXTJOIN(\", \",TRUE,IF(A99=Tabel4[Description 2 - with out extension],Tabel4[Name (Drawing Number)],\"\"))","v":""}]
[null,{"$f":"_xlfn.TEXTJOIN(\", \",TRUE,IF(A100=Tabel4[Description 2 - with out extension],Tabel4[Name (Drawing Number)],\"\"))","v":""}]
[null,{"$f":"_xlfn.TEXTJOIN(\", \",TRUE,IF(A101=Tabel4[Description 2 - with out extension],Tabel4[Name (Drawing Number)],\"\"))","v":""}]
[null,{"$f":"_xlfn.TEXTJOIN(\", \",TRUE,IF(A102=Tabel4[Description 2 - with out extension],Tabel4[Name (Drawing Number)],\"\"))","v":""}]
[null,{"$f":"_xlfn.TEXTJOIN(\", \",TRUE,IF(A103=Tabel4[Description 2 - with out extension],Tabel4[Name (Drawing Number)],\"\"))","v":""}]
[null,{"$f":"_xlfn.TEXTJOIN(\", \",TRUE,IF(A104=Tabel4[Description 2 - with out extension],Tabel4[Name (Drawing Number)],\"\"))","v":""}]
[null,{"$f":"_xlfn.TEXTJOIN(\", \",TRUE,IF(A105=Tabel4[Description 2 - with out extension],Tabel4[Name (Drawing Number)],\"\"))","v":""}]
[null,{"$f":"_xlfn.TEXTJOIN(\", \",TRUE,IF(A106=Tabel4[Description 2 - with out extension],Tabel4[Name (Drawing Number)],\"\"))","v":""}]
[null,{"$f":"_xlfn.TEXTJOIN(\", \",TRUE,IF(A107=Tabel4[Description 2 - with out extension],Tabel4[Name (Drawing Number)],\"\"))","v":""}]
[null,{"$f":"_xlfn.TEXTJOIN(\", \",TRUE,IF(A108=Tabel4[Description 2 - with out extension],Tabel4[Name (Drawing Number)],\"\"))","v":""}]
[null,{"$f":"_xlfn.TEXTJOIN(\", \",TRUE,IF(A109=Tabel4[Description 2 - with out extension],Tabel4[Name (Drawing Number)],\"\"))","v":""}]
[null,{"$f":"_xlfn.TEXTJOIN(\", \",TRUE,IF(A110=Tabel4[Description 2 - with out extension],Tabel4[Name (Drawing Number)],\"\"))","v":""}]
[null,{"$f":"_xlfn.TEXTJOIN(\", \",TRUE,IF(A111=Tabel4[Description 2 - with out extension],Tabel4[Name (Drawing Number)],\"\"))","v":""}]
[null,{"$f":"_xlfn.TEXTJOIN(\", \",TRUE,IF(A112=Tabel4[Description 2 - with out extension],Tabel4[Name (Drawing Number)],\"\"))","v":""}]
[null,{"$f":"_xlfn.TEXTJOIN(\", \",TRUE,IF(A113=Tabel4[Description 2 - with out extension],Tabel4[Name (Drawing Number)],\"\"))","v":""}]
[null,{"$f":"_xlfn.TEXTJOIN(\", \",TRUE,IF(A114=Tabel4[Description 2 - with out extension],Tabel4[Name (Drawing Number)],\"\"))","v":""}]
[null,{"$f":"_xlfn.TEXTJOIN(\", \",TRUE,IF(A115=Tabel4[Description 2 - with out extension],Tabel4[Name (Drawing Number)],\"\"))","v":""}]
[null,{"$f":"_xlfn.TEXTJOIN(\", \",TRUE,IF(A116=Tabel4[Description 2 - with out extension],Tabel4[Name (Drawing Number)],\"\"))","v":""}]
[null,{"$f":"_xlfn.TEXTJOIN(\", \",TRUE,IF(A117=Tabel4[Description 2 - with out extension],Tabel4[Name (Drawing Number)],\"\"))","v":""}]
[null,{"$f":"_xlfn.TEXTJOIN(\", \",TRUE,IF(A118=Tabel4[Description 2 - with out extension],Tabel4[Name (Drawing Number)],\"\"))","v":""}]
[null,{"$f":"_xlfn.TEXTJOIN(\", \",TRUE,IF(A119=Tabel4[Description 2 - with out extension],Tabel4[Name (Drawing Number)],\"\"))","v":""}]
[null,{"$f":"_xlfn.TEXTJOIN(\", \",TRUE,IF(A120=Tabel4[Description 2 - with out extension],Tabel4[Name (Drawing Number)],\"\"))","v":""}]
[null,{"$f":"_xlfn.TEXTJOIN(\", \",TRUE,IF(A121=Tabel4[Description 2 - with out extension],Tabel4[Name (Drawing Number)],\"\"))","v":""}]
[null,{"$f":"_xlfn.TEXTJOIN(\", \",TRUE,IF(A122=Tabel4[Description 2 - with out extension],Tabel4[Name (Drawing Number)],\"\"))","v":""}]
[null,{"$f":"_xlfn.TEXTJOIN(\", \",TRUE,IF(A123=Tabel4[Description 2 - with out extension],Tabel4[Name (Drawing Number)],\"\"))","v":""}]
[null,{"$f":"_xlfn.TEXTJOIN(\", \",TRUE,IF(A124=Tabel4[Description 2 - with out extension],Tabel4[Name (Drawing Number)],\"\"))","v":""}]
[null,{"$f":"_xlfn.TEXTJOIN(\", \",TRUE,IF(A125=Tabel4[Description 2 - with out extension],Tabel4[Name (Drawing Number)],\"\"))","v":""}]
[null,{"$f":"_xlfn.TEXTJOIN(\", \",TRUE,IF(A126=Tabel4[Description 2 - with out extension],Tabel4[Name (Drawing Number)],\"\"))","v":""}]
[null,{"$f":"_xlfn.TEXTJOIN(\", \",TRUE,IF(A127=Tabel4[Description 2 - with out extension],Tabel4[Name (Drawing Number)],\"\"))","v":""}]
[null,{"$f":"_xlfn.TEXTJOIN(\", \",TRUE,IF(A128=Tabel4[Description 2 - with out extension],Tabel4[Name (Drawing Number)],\"\"))","v":""}]
[null,{"$f":"_xlfn.TEXTJOIN(\", \",TRUE,IF(A129=Tabel4[Description 2 - with out extension],Tabel4[Name (Drawing Number)],\"\"))","v":""}]
[null,{"$f":"_xlfn.TEXTJOIN(\", \",TRUE,IF(A130=Tabel4[Description 2 - with out extension],Tabel4[Name (Drawing Number)],\"\"))","v":""}]
[null,{"$f":"_xlfn.TEXTJOIN(\", \",TRUE,IF(A131=Tabel4[Description 2 - with out extension],Tabel4[Name (Drawing Number)],\"\"))","v":""}]
[null,{"$f":"_xlfn.TEXTJOIN(\", \",TRUE,IF(A132=Tabel4[Description 2 - with out extension],Tabel4[Name (Drawing Number)],\"\"))","v":""}]
[null,{"$f":"_xlfn.TEXTJOIN(\", \",TRUE,IF(A133=Tabel4[Description 2 - with out extension],Tabel4[Name (Drawing Number)],\"\"))","v":""}]
[null,{"$f":"_xlfn.TEXTJOIN(\", \",TRUE,IF(A134=Tabel4[Description 2 - with out extension],Tabel4[Name (Drawing Number)],\"\"))","v":""}]
[null,{"$f":"_xlfn.TEXTJOIN(\", \",TRUE,IF(A135=Tabel4[Description 2 - with out extension],Tabel4[Name (Drawing Number)],\"\"))","v":""}]
[null,{"$f":"_xlfn.TEXTJOIN(\", \",TRUE,IF(A136=Tabel4[Description 2 - with out extension],Tabel4[Name (Drawing Number)],\"\"))","v":""}]
[null,{"$f":"_xlfn.TEXTJOIN(\", \",TRUE,IF(A137=Tabel4[Description 2 - with out extension],Tabel4[Name (Drawing Number)],\"\"))","v":""}]
[null,{"$f":"_xlfn.TEXTJOIN(\", \",TRUE,IF(A138=Tabel4[Description 2 - with out extension],Tabel4[Name (Drawing Number)],\"\"))","v":""}]
[null,{"$f":"_xlfn.TEXTJOIN(\", \",TRUE,IF(A139=Tabel4[Description 2 - with out extension],Tabel4[Name (Drawing Number)],\"\"))","v":""}]
[null,{"$f":"_xlfn.TEXTJOIN(\", \",TRUE,IF(A140=Tabel4[Description 2 - with out extension],Tabel4[Name (Drawing Number)],\"\"))","v":""}]
[null,{"$f":"_xlfn.TEXTJOIN(\", \",TRUE,IF(A141=Tabel4[Description 2 - with out extension],Tabel4[Name (Drawing Number)],\"\"))","v":""}]
[null,{"$f":"_xlfn.TEXTJOIN(\", \",TRUE,IF(A142=Tabel4[Description 2 - with out extension],Tabel4[Name (Drawing Number)],\"\"))","v":""}]
[null,{"$f":"_xlfn.TEXTJOIN(\", \",TRUE,IF(A143=Tabel4[Description 2 - with out extension],Tabel4[Name (Drawing Number)],\"\"))","v":""}]
[null,{"$f":"_xlfn.TEXTJOIN(\", \",TRUE,IF(A144=Tabel4[Description 2 - with out extension],Tabel4[Name (Drawing Number)],\"\"))","v":""}]
[null,{"$f":"_xlfn.TEXTJOIN(\", \",TRUE,IF(A145=Tabel4[Description 2 - with out extension],Tabel4[Name (Drawing Number)],\"\"))","v":""}]
[null,{"$f":"_xlfn.TEXTJOIN(\", \",TRUE,IF(A146=Tabel4[Description 2 - with out extension],Tabel4[Name (Drawing Number)],\"\"))","v":""}]
[null,{"$f":"_xlfn.TEXTJOIN(\", \",TRUE,IF(A147=Tabel4[Description 2 - with out extension],Tabel4[Name (Drawing Number)],\"\"))","v":""}]
[null,{"$f":"_xlfn.TEXTJOIN(\", \",TRUE,IF(A148=Tabel4[Description 2 - with out extension],Tabel4[Name (Drawing Number)],\"\"))","v":""}]
[null,{"$f":"_xlfn.TEXTJOIN(\", \",TRUE,IF(A149=Tabel4[Description 2 - with out extension],Tabel4[Name (Drawing Number)],\"\"))","v":""}]
[null,{"$f":"_xlfn.TEXTJOIN(\", \",TRUE,IF(A150=Tabel4[Description 2 - with out extension],Tabel4[Name (Drawing Number)],\"\"))","v":""}]
[null,{"$f":"_xlfn.TEXTJOIN(\", \",TRUE,IF(A151=Tabel4[Description 2 - with out extension],Tabel4[Name (Drawing Number)],\"\"))","v":""}]
[null,{"$f":"_xlfn.TEXTJOIN(\", \",TRUE,IF(A152=Tabel4[Description 2 - with out extension],Tabel4[Name (Drawing Number)],\"\"))","v":""}]
[null,{"$f":"_xlfn.TEXTJOIN(\", \",TRUE,IF(A153=Tabel4[Description 2 - with out extension],Tabel4[Name (Drawing Number)],\"\"))","v":""}]
[null,{"$f":"_xlfn.TEXTJOIN(\", \",TRUE,IF(A154=Tabel4[Description 2 - with out extension],Tabel4[Name (Drawing Number)],\"\"))","v":""}]
[null,{"$f":"_xlfn.TEXTJOIN(\", \",TRUE,IF(A155=Tabel4[Description 2 - with out extension],Tabel4[Name (Drawing Number)],\"\"))","v":""}]
[null,{"$f":"_xlfn.TEXTJOIN(\", \",TRUE,IF(A156=Tabel4[Description 2 - with out extension],Tabel4[Name (Drawing Number)],\"\"))","v":""}]
[null,{"$f":"_xlfn.TEXTJOIN(\", \",TRUE,IF(A157=Tabel4[Description 2 - with out extension],Tabel4[Name (Drawing Number)],\"\"))","v":""}]
[null,{"$f":"_xlfn.TEXTJOIN(\", \",TRUE,IF(A158=Tabel4[Description 2 - with out extension],Tabel4[Name (Drawing Number)],\"\"))","v":""}]
[null,{"$f":"_xlfn.TEXTJOIN(\", \",TRUE,IF(A159=Tabel4[Description 2 - with out extension],Tabel4[Name (Drawing Number)],\"\"))","v":""}]
[null,{"$f":"_xlfn.TEXTJOIN(\", \",TRUE,IF(A160=Tabel4[Description 2 - with out extension],Tabel4[Name (Drawing Number)],\"\"))","v":""}]
[null,{"$f":"_xlfn.TEXTJOIN(\", \",TRUE,IF(A161=Tabel4[Description 2 - with out extension],Tabel4[Name (Drawing Number)],\"\"))","v":""}]
[null,{"$f":"_xlfn.TEXTJOIN(\", \",TRUE,IF(A162=Tabel4[Description 2 - with out extension],Tabel4[Name (Drawing Number)],\"\"))","v":""}]
[null,{"$f":"_xlfn.TEXTJOIN(\", \",TRUE,IF(A163=Tabel4[Description 2 - with out extension],Tabel4[Name (Drawing Number)],\"\"))","v":""}]
[null,{"$f":"_xlfn.TEXTJOIN(\", \",TRUE,IF(A164=Tabel4[Description 2 - with out extension],Tabel4[Name (Drawing Number)],\"\"))","v":""}]
[null,{"$f":"_xlfn.TEXTJOIN(\", \",TRUE,IF(A165=Tabel4[Description 2 - with out extension],Tabel4[Name (Drawing Number)],\"\"))","v":""}]
[null,{"$f":"_xlfn.TEXTJOIN(\", \",TRUE,IF(A166=Tabel4[Description 2 - with out extension],Tabel4[Name (Drawing Number)],\"\"))","v":""}]
[null,{"$f":"_xlfn.TEXTJOIN(\", \",TRUE,IF(A167=Tabel4[Description 2 - with out extension],Tabel4[Name (Drawing Number)],\"\"))","v":""}]
[null,{"$f":"_xlfn.TEXTJOIN(\", \",TRUE,IF(A168=Tabel4[Description 2 - with out extension],Tabel4[Name (Drawing Number)],\"\"))","v":""}]
[null,{"$f":"_xlfn.TEXTJOIN(\", \",TRUE,IF(A169=Tabel4[Description 2 - with out extension],Tabel4[Name (Drawing Number)],\"\"))","v":""}]
[null,{"$f":"_xlfn.TEXTJOIN(\", \",TRUE,IF(A170=Tabel4[Description 2 - with out extension],Tabel4[Name (Drawing Number)],\"\"))","v":""}]
[null,{"$f":"_xlfn.TEXTJOIN(\", \",TRUE,IF(A171=Tabel4[Description 2 - with out extension],Tabel4[Name (Drawing Number)],\"\"))","v":""}]
[null,{"$f":"_xlfn.TEXTJOIN(\", \",TRUE,IF(A172=Tabel4[Description 2 - with out extension],Tabel4[Name (Drawing Number)],\"\"))","v":""}]
[null,{"$f":"_xlfn.TEXTJOIN(\", \",TRUE,IF(A173=Tabel4[Description 2 - with out extension],Tabel4[Name (Drawing Number)],\"\"))","v":""}]
[null,{"$f":"_xlfn.TEXTJOIN(\", \",TRUE,IF(A174=Tabel4[Description 2 - with out extension],Tabel4[Name (Drawing Number)],\"\"))","v":""}]
[null,{"$f":"_xlfn.TEXTJOIN(\", \",TRUE,IF(A175=Tabel4[Description 2 - with out extension],Tabel4[Name (Drawing Number)],\"\"))","v":""}]
[null,{"$f":"_xlfn.TEXTJOIN(\", \",TRUE,IF(A176=Tabel4[Description 2 - with out extension],Tabel4[Name (Drawing Number)],\"\"))","v":""}]
[null,{"$f":"_xlfn.TEXTJOIN(\", \",TRUE,IF(A177=Tabel4[Description 2 - with out extension],Tabel4[Name (Drawing Number)],\"\"))","v":""}]
[null,{"$f":"_xlfn.TEXTJOIN(\", \",TRUE,IF(A178=Tabel4[Description 2 - with out extension],Tabel4[Name (Drawing Number)],\"\"))","v":""}]
[null,{"$f":"_xlfn.TEXTJOIN(\", \",TRUE,IF(A179=Tabel4[Description 2 - with out extension],Tabel4[Name (Drawing Number)],\"\"))","v":""}]
[null,{"$f":"_xlfn.TEXTJOIN(\", \",TRUE,IF(A180=Tabel4[Description 2 - with out extension],Tabel4[Name (Drawing Number)],\"\"))","v":""}]
[null,{"$f":"_xlfn.TEXTJOIN(\", \",TRUE,IF(A181=Tabel4[Description 2 - with out extension],Tabel4[Name (Drawing Number)],\"\"))","v":""}]
[null,{"$f":"_xlfn.TEXTJOIN(\", \",TRUE,IF(A182=Tabel4[Description 2 - with out extension],Tabel4[Name (Drawing Number)],\"\"))","v":""}]
[null,{"$f":"_xlfn.TEXTJOIN(\", \",TRUE,IF(A183=Tabel4[Description 2 - with out extension],Tabel4[Name (Drawing Number)],\"\"))","v":""}]
[null,{"$f":"_xlfn.TEXTJOIN(\", \",TRUE,IF(A184=Tabel4[Description 2 - with out extension],Tabel4[Name (Drawing Number)],\"\"))","v":""}]
[null,{"$f":"_xlfn.TEXTJOIN(\", \",TRUE,IF(A185=Tabel4[Description 2 - with out extension],Tabel4[Name (Drawing Number)],\"\"))","v":""}]
[null,{"$f":"_xlfn.TEXTJOIN(\", \",TRUE,IF(A186=Tabel4[Description 2 - with out extension],Tabel4[Name (Drawing Number)],\"\"))","v":""}]
[null,{"$f":"_xlfn.TEXTJOIN(\", \",TRUE,IF(A187=Tabel4[Description 2 - with out extension],Tabel4[Name (Drawing Number)],\"\"))","v":""}]
[null,{"$f":"_xlfn.TEXTJOIN(\", \",TRUE,IF(A188=Tabel4[Description 2 - with out extension],Tabel4[Name (Drawing Number)],\"\"))","v":""}]
[null,{"$f":"_xlfn.TEXTJOIN(\", \",TRUE,IF(A189=Tabel4[Description 2 - with out extension],Tabel4[Name (Drawing Number)],\"\"))","v":""}]
[null,{"$f":"_xlfn.TEXTJOIN(\", \",TRUE,IF(A190=Tabel4[Description 2 - with out extension],Tabel4[Name (Drawing Number)],\"\"))","v":""}]
[null,{"$f":"_xlfn.TEXTJOIN(\", \",TRUE,IF(A191=Tabel4[Description 2 - with out extension],Tabel4[Name (Drawing Number)],\"\"))","v":""}]
[null,{"$f":"_xlfn.TEXTJOIN(\", \",TRUE,IF(A192=Tabel4[Description 2 - with out extension],Tabel4[Name (Drawing Number)],\"\"))","v":""}]
[null,{"$f":"_xlfn.TEXTJOIN(\", \",TRUE,IF(A193=Tabel4[Description 2 - with out extension],Tabel4[Name (Drawing Number)],\"\"))","v":""}]
[null,{"$f":"_xlfn.TEXTJOIN(\", \",TRUE,IF(A194=Tabel4[Description 2 - with out extension],Tabel4[Name (Drawing Number)],\"\"))","v":""}]
[null,{"$f":"_xlfn.TEXTJOIN(\", \",TRUE,IF(A195=Tabel4[Description 2 - with out extension],Tabel4[Name (Drawing Number)],\"\"))","v":""}]
[null,{"$f":"_xlfn.TEXTJOIN(\", \",TRUE,IF(A196=Tabel4[Description 2 - with out extension],Tabel4[Name (Drawing Number)],\"\"))","v":""}]
[null,{"$f":"_xlfn.TEXTJOIN(\", \",TRUE,IF(A197=Tabel4[Description 2 - with out extension],Tabel4[Name (Drawing Number)],\"\"))","v":""}]
[null,{"$f":"_xlfn.TEXTJOIN(\", \",TRUE,IF(A198=Tabel4[Description 2 - with out extension],Tabel4[Name (Drawing Number)],\"\"))","v":""}]
[null,{"$f":"_xlfn.TEXTJOIN(\", \",TRUE,IF(A199=Tabel4[Description 2 - with out extension],Tabel4[Name (Drawing Number)],\"\"))","v":""}]
[null,{"$f":"_xlfn.TEXTJOIN(\", \",TRUE,IF(A200=Tabel4[Description 2 - with out extension],Tabel4[Name (Drawing Number)],\"\"))","v":""}]
[null,{"$f":"_xlfn.TEXTJOIN(\", \",TRUE,IF(A201=Tabel4[Description 2 - with out extension],Tabel4[Name (Drawing Number)],\"\"))","v":""}]
[null,{"$f":"_xlfn.TEXTJOIN(\", \",TRUE,IF(A202=Tabel4[Description 2 - with out extension],Tabel4[Name (Drawing Number)],\"\"))","v":""}]
[null,{"$f":"_xlfn.TEXTJOIN(\", \",TRUE,IF(A203=Tabel4[Description 2 - with out extension],Tabel4[Name (Drawing Number)],\"\"))","v":""}]
[null,{"$f":"_xlfn.TEXTJOIN(\", \",TRUE,IF(A204=Tabel4[Description 2 - with out extension],Tabel4[Name (Drawing Number)],\"\"))","v":""}]
[null,{"$f":"_xlfn.TEXTJOIN(\", \",TRUE,IF(A205=Tabel4[Description 2 - with out extension],Tabel4[Name (Drawing Number)],\"\"))","v":""}]
[null,{"$f":"_xlfn.TEXTJOIN(\", \",TRUE,IF(A206=Tabel4[Description 2 - with out extension],Tabel4[Name (Drawing Number)],\"\"))","v":""}]
[null,{"$f":"_xlfn.TEXTJOIN(\", \",TRUE,IF(A207=Tabel4[Description 2 - with out extension],Tabel4[Name (Drawing Number)],\"\"))","v":""}]
[null,{"$f":"_xlfn.TEXTJOIN(\", \",TRUE,IF(A208=Tabel4[Description 2 - with out extension],Tabel4[Name (Drawing Number)],\"\"))","v":""}]
[null,{"$f":"_xlfn.TEXTJOIN(\", \",TRUE,IF(A209=Tabel4[Description 2 - with out extension],Tabel4[Name (Drawing Number)],\"\"))","v":""}]
[null,{"$f":"_xlfn.TEXTJOIN(\", \",TRUE,IF(A210=Tabel4[Description 2 - with out extension],Tabel4[Name (Drawing Number)],\"\"))","v":""}]
[null,{"$f":"_xlfn.TEXTJOIN(\", \",TRUE,IF(A211=Tabel4[Description 2 - with out extension],Tabel4[Name (Drawing Number)],\"\"))","v":""}]
[null,{"$f":"_xlfn.TEXTJOIN(\", \",TRUE,IF(A212=Tabel4[Description 2 - with out extension],Tabel4[Name (Drawing Number)],\"\"))","v":""}]
[null,{"$f":"_xlfn.TEXTJOIN(\", \",TRUE,IF(A213=Tabel4[Description 2 - with out extension],Tabel4[Name (Drawing Number)],\"\"))","v":""}]
[null,{"$f":"_xlfn.TEXTJOIN(\", \",TRUE,IF(A214=Tabel4[Description 2 - with out extension],Tabel4[Name (Drawing Number)],\"\"))","v":""}]
[null,{"$f":"_xlfn.TEXTJOIN(\", \",TRUE,IF(A215=Tabel4[Description 2 - with out extension],Tabel4[Name (Drawing Number)],\"\"))","v":""}]
[null,{"$f":"_xlfn.TEXTJOIN(\", \",TRUE,IF(A216=Tabel4[Description 2 - with out extension],Tabel4[Name (Drawing Number)],\"\"))","v":""}]
[null,{"$f":"_xlfn.TEXTJOIN(\", \",TRUE,IF(A217=Tabel4[Description 2 - with out extension],Tabel4[Name (Drawing Number)],\"\"))","v":""}]
[null,{"$f":"_xlfn.TEXTJOIN(\", \",TRUE,IF(A218=Tabel4[Description 2 - with out extension],Tabel4[Name (Drawing Number)],\"\"))","v":""}]
[null,{"$f":"_xlfn.TEXTJOIN(\", \",TRUE,IF(A219=Tabel4[Description 2 - with out extension],Tabel4[Name (Drawing Number)],\"\"))","v":""}]
[null,{"$f":"_xlfn.TEXTJOIN(\", \",TRUE,IF(A220=Tabel4[Description 2 - with out extension],Tabel4[Name (Drawing Number)],\"\"))","v":""}]
[null,{"$f":"_xlfn.TEXTJOIN(\", \",TRUE,IF(A221=Tabel4[Description 2 - with out extension],Tabel4[Name (Drawing Number)],\"\"))","v":""}]
[null,{"$f":"_xlfn.TEXTJOIN(\", \",TRUE,IF(A222=Tabel4[Description 2 - with out extension],Tabel4[Name (Drawing Number)],\"\"))","v":""}]
[null,{"$f":"_xlfn.TEXTJOIN(\", \",TRUE,IF(A223=Tabel4[Description 2 - with out extension],Tabel4[Name (Drawing Number)],\"\"))","v":""}]
[null,{"$f":"_xlfn.TEXTJOIN(\", \",TRUE,IF(A224=Tabel4[Description 2 - with out extension],Tabel4[Name (Drawing Number)],\"\"))","v":""}]
[null,{"$f":"_xlfn.TEXTJOIN(\", \",TRUE,IF(A225=Tabel4[Description 2 - with out extension],Tabel4[Name (Drawing Number)],\"\"))","v":""}]
[null,{"$f":"_xlfn.TEXTJOIN(\", \",TRUE,IF(A226=Tabel4[Description 2 - with out extension],Tabel4[Name (Drawing Number)],\"\"))","v":""}]
[null,{"$f":"_xlfn.TEXTJOIN(\", \",TRUE,IF(A227=Tabel4[Description 2 - with out extension],Tabel4[Name (Drawing Number)],\"\"))","v":""}]
[null,{"$f":"_xlfn.TEXTJOIN(\", \",TRUE,IF(A228=Tabel4[Description 2 - with out extension],Tabel4[Name (Drawing Number)],\"\"))","v":""}]
[null,{"$f":"_xlfn.TEXTJOIN(\", \",TRUE,IF(A229=Tabel4[Description 2 - with out extension],Tabel4[Name (Drawing Number)],\"\"))","v":""}]
[null,{"$f":"_xlfn.TEXTJOIN(\", \",TRUE,IF(A230=Tabel4[Description 2 - with out extension],Tabel4[Name (Drawing Number)],\"\"))","v":""}]
[null,{"$f":"_xlfn.TEXTJOIN(\", \",TRUE,IF(A231=Tabel4[Description 2 - with out extension],Tabel4[Name (Drawing Number)],\"\"))","v":""}]
[null,{"$f":"_xlfn.TEXTJOIN(\", \",TRUE,IF(A232=Tabel4[Description 2 - with out extension],Tabel4[Name (Drawing Number)],\"\"))","v":""}]
[null,{"$f":"_xlfn.TEXTJOIN(\", \",TRUE,IF(A233=Tabel4[Description 2 - with out extension],Tabel4[Name (Drawing Number)],\"\"))","v":""}]
[null,{"$f":"_xlfn.TEXTJOIN(\", \",TRUE,IF(A234=Tabel4[Description 2 - with out extension],Tabel4[Name (Drawing Number)],\"\"))","v":""}]
[null,{"$f":"_xlfn.TEXTJOIN(\", \",TRUE,IF(A235=Tabel4[Description 2 - with out extension],Tabel4[Name (Drawing Number)],\"\"))","v":""}]
[null,{"$f":"_xlfn.TEXTJOIN(\", \",TRUE,IF(A236=Tabel4[Description 2 - with out extension],Tabel4[Name (Drawing Number)],\"\"))","v":""}]
[null,{"$f":"_xlfn.TEXTJOIN(\", \",TRUE,IF(A237=Tabel4[Description 2 - with out extension],Tabel4[Name (Drawing Number)],\"\"))","v":""}]
[null,{"$f":"_xlfn.TEXTJOIN(\", \",TRUE,IF(A238=Tabel4[Description 2 - with out extension],Tabel4[Name (Drawing Number)],\"\"))","v":""}]
[null,{"$f":"_xlfn.TEXTJOIN(\", \",TRUE,IF(A239=Tabel4[Description 2 - with out extension],Tabel4[Name (Drawing Number)],\"\"))","v":""}]
[null,{"$f":"_xlfn.TEXTJOIN(\", \",TRUE,IF(A240=Tabel4[Description 2 - with out extension],Tabel4[Name (Drawing Number)],\"\"))","v":""}]
[null,{"$f":"_xlfn.TEXTJOIN(\", \",TRUE,IF(A241=Tabel4[Description 2 - with out extension],Tabel4[Name (Drawing Number)],\"\"))","v":""}]
[null,{"$f":"_xlfn.TEXTJOIN(\", \",TRUE,IF(A242=Tabel4[Description 2 - with out extension],Tabel4[Name (Drawing Number)],\"\"))","v":""}]
[null,{"$f":"_xlfn.TEXTJOIN(\", \",TRUE,IF(A243=Tabel4[Description 2 - with out extension],Tabel4[Name (Drawing Number)],\"\"))","v":""}]
[null,{"$f":"_xlfn.TEXTJOIN(\", \",TRUE,IF(A244=Tabel4[Description 2 - with out extension],Tabel4[Name (Drawing Number)],\"\"))","v":""}]
[null,{"$f":"_xlfn.TEXTJOIN(\", \",TRUE,IF(A245=Tabel4[Description 2 - with out extension],Tabel4[Name (Drawing Number)],\"\"))","v":""}]
[null,{"$f":"_xlfn.TEXTJOIN(\", \",TRUE,IF(A246=Tabel4[Description 2 - with out extension],Tabel4[Name (Drawing Number)],\"\"))","v":""}]
[null,{"$f":"_xlfn.TEXTJOIN(\", \",TRUE,IF(A247=Tabel4[Description 2 - with out extension],Tabel4[Name (Drawing Number)],\"\"))","v":""}]
[null,{"$f":"_xlfn.TEXTJOIN(\", \",TRUE,IF(A248=Tabel4[Description 2 - with out extension],Tabel4[Name (Drawing Number)],\"\"))","v":""}]
[null,{"$f":"_xlfn.TEXTJOIN(\", \",TRUE,IF(A249=Tabel4[Description 2 - with out extension],Tabel4[Name (Drawing Number)],\"\"))","v":""}]
[null,{"$f":"_xlfn.TEXTJOIN(\", \",TRUE,IF(A250=Tabel4[Description 2 - with out extension],Tabel4[Name (Drawing Number)],\"\"))","v":""}]
[null,{"$f":"_xlfn.TEXTJOIN(\", \",TRUE,IF(A251=Tabel4[Description 2 - with out extension],Tabel4[Name (Drawing Number)],\"\"))","v":""}]
[null,{"$f":"_xlfn.TEXTJOIN(\", \",TRUE,IF(A252=Tabel4[Description 2 - with out extension],Tabel4[Name (Drawing Number)],\"\"))","v":""}]
[null,{"$f":"_xlfn.TEXTJOIN(\", \",TRUE,IF(A253=Tabel4[Description 2 - with out extension],Tabel4[Name (Drawing Number)],\"\"))","v":""}]
[null,{"$f":"_xlfn.TEXTJOIN(\", \",TRUE,IF(A254=Tabel4[Description 2 - with out extension],Tabel4[Name (Drawing Number)],\"\"))","v":""}]
[null,{"$f":"_xlfn.TEXTJOIN(\", \",TRUE,IF(A255=Tabel4[Description 2 - with out extension],Tabel4[Name (Drawing Number)],\"\"))","v":""}]
[null,{"$f":"_xlfn.TEXTJOIN(\", \",TRUE,IF(A256=Tabel4[Description 2 - with out extension],Tabel4[Name (Drawing Number)],\"\"))","v":""}]
[null,{"$f":"_xlfn.TEXTJOIN(\", \",TRUE,IF(A257=Tabel4[Description 2 - with out extension],Tabel4[Name (Drawing Number)],\"\"))","v":""}]
[null,{"$f":"_xlfn.TEXTJOIN(\", \",TRUE,IF(A258=Tabel4[Description 2 - with out extension],Tabel4[Name (Drawing Number)],\"\"))","v":""}]
[null,{"$f":"_xlfn.TEXTJOIN(\", \",TRUE,IF(A259=Tabel4[Description 2 - with out extension],Tabel4[Name (Drawing Number)],\"\"))","v":""}]
[null,{"$f":"_xlfn.TEXTJOIN(\", \",TRUE,IF(A260=Tabel4[Description 2 - with out extension],Tabel4[Name (Drawing Number)],\"\"))","v":""}]
[null,{"$f":"_xlfn.TEXTJOIN(\", \",TRUE,IF(A261=Tabel4[Description 2 - with out extension],Tabel4[Name (Drawing Number)],\"\"))","v":""}]
[null,{"$f":"_xlfn.TEXTJOIN(\", \",TRUE,IF(A262=Tabel4[Description 2 - with out extension],Tabel4[Name (Drawing Number)],\"\"))","v":""}]
[null,{"$f":"_xlfn.TEXTJOIN(\", \",TRUE,IF(A263=Tabel4[Description 2 - with out extension],Tabel4[Name (Drawing Number)],\"\"))","v":""}]
[null,{"$f":"_xlfn.TEXTJOIN(\", \",TRUE,IF(A264=Tabel4[Description 2 - with out extension],Tabel4[Name (Drawing Number)],\"\"))","v":""}]
[null,{"$f":"_xlfn.TEXTJOIN(\", \",TRUE,IF(A265=Tabel4[Description 2 - with out extension],Tabel4[Name (Drawing Number)],\"\"))","v":""}]
[null,{"$f":"_xlfn.TEXTJOIN(\", \",TRUE,IF(A266=Tabel4[Description 2 - with out extension],Tabel4[Name (Drawing Number)],\"\"))","v":""}]
[null,{"$f":"_xlfn.TEXTJOIN(\", \",TRUE,IF(A267=Tabel4[Description 2 - with out extension],Tabel4[Name (Drawing Number)],\"\"))","v":""}]
[null,{"$f":"_xlfn.TEXTJOIN(\", \",TRUE,IF(A268=Tabel4[Description 2 - with out extension],Tabel4[Name (Drawing Number)],\"\"))","v":""}]
[null,{"$f":"_xlfn.TEXTJOIN(\", \",TRUE,IF(A269=Tabel4[Description 2 - with out extension],Tabel4[Name (Drawing Number)],\"\"))","v":""}]
[null,{"$f":"_xlfn.TEXTJOIN(\", \",TRUE,IF(A270=Tabel4[Description 2 - with out extension],Tabel4[Name (Drawing Number)],\"\"))","v":""}]
[null,{"$f":"_xlfn.TEXTJOIN(\", \",TRUE,IF(A271=Tabel4[Description 2 - with out extension],Tabel4[Name (Drawing Number)],\"\"))","v":""}]
[null,{"$f":"_xlfn.TEXTJOIN(\", \",TRUE,IF(A272=Tabel4[Description 2 - with out extension],Tabel4[Name (Drawing Number)],\"\"))","v":""}]
[null,{"$f":"_xlfn.TEXTJOIN(\", \",TRUE,IF(A273=Tabel4[Description 2 - with out extension],Tabel4[Name (Drawing Number)],\"\"))","v":""}]
[null,{"$f":"_xlfn.TEXTJOIN(\", \",TRUE,IF(A274=Tabel4[Description 2 - with out extension],Tabel4[Name (Drawing Number)],\"\"))","v":""}]
[null,{"$f":"_xlfn.TEXTJOIN(\", \",TRUE,IF(A275=Tabel4[Description 2 - with out extension],Tabel4[Name (Drawing Number)],\"\"))","v":""}]
[null,{"$f":"_xlfn.TEXTJOIN(\", \",TRUE,IF(A276=Tabel4[Description 2 - with out extension],Tabel4[Name (Drawing Number)],\"\"))","v":""}]
[null,{"$f":"_xlfn.TEXTJOIN(\", \",TRUE,IF(A277=Tabel4[Description 2 - with out extension],Tabel4[Name (Drawing Number)],\"\"))","v":""}]
[null,{"$f":"_xlfn.TEXTJOIN(\", \",TRUE,IF(A278=Tabel4[Description 2 - with out extension],Tabel4[Name (Drawing Number)],\"\"))","v":""}]
[null,{"$f":"_xlfn.TEXTJOIN(\", \",TRUE,IF(A279=Tabel4[Description 2 - with out extension],Tabel4[Name (Drawing Number)],\"\"))","v":""}]
[null,{"$f":"_xlfn.TEXTJOIN(\", \",TRUE,IF(A280=Tabel4[Description 2 - with out extension],Tabel4[Name (Drawing Number)],\"\"))","v":""}]
[null,{"$f":"_xlfn.TEXTJOIN(\", \",TRUE,IF(A281=Tabel4[Description 2 - with out extension],Tabel4[Name (Drawing Number)],\"\"))","v":""}]
[null,{"$f":"_xlfn.TEXTJOIN(\", \",TRUE,IF(A282=Tabel4[Description 2 - with out extension],Tabel4[Name (Drawing Number)],\"\"))","v":""}]
[null,{"$f":"_xlfn.TEXTJOIN(\", \",TRUE,IF(A283=Tabel4[Description 2 - with out extension],Tabel4[Name (Drawing Number)],\"\"))","v":""}]
[null,{"$f":"_xlfn.TEXTJOIN(\", \",TRUE,IF(A284=Tabel4[Description 2 - with out extension],Tabel4[Name (Drawing Number)],\"\"))","v":""}]
[null,{"$f":"_xlfn.TEXTJOIN(\", \",TRUE,IF(A285=Tabel4[Description 2 - with out extension],Tabel4[Name (Drawing Number)],\"\"))","v":""}]
[null,{"$f":"_xlfn.TEXTJOIN(\", \",TRUE,IF(A286=Tabel4[Description 2 - with out extension],Tabel4[Name (Drawing Number)],\"\"))","v":""}]
[null,{"$f":"_xlfn.TEXTJOIN(\", \",TRUE,IF(A287=Tabel4[Description 2 - with out extension],Tabel4[Name (Drawing Number)],\"\"))","v":""}]
[null,{"$f":"_xlfn.TEXTJOIN(\", \",TRUE,IF(A288=Tabel4[Description 2 - with out extension],Tabel4[Name (Drawing Number)],\"\"))","v":""}]
[null,{"$f":"_xlfn.TEXTJOIN(\", \",TRUE,IF(A289=Tabel4[Description 2 - with out extension],Tabel4[Name (Drawing Number)],\"\"))","v":""}]
[null,{"$f":"_xlfn.TEXTJOIN(\", \",TRUE,IF(A290=Tabel4[Description 2 - with out extension],Tabel4[Name (Drawing Number)],\"\"))","v":""}]
[null,{"$f":"_xlfn.TEXTJOIN(\", \",TRUE,IF(A291=Tabel4[Description 2 - with out extension],Tabel4[Name (Drawing Number)],\"\"))","v":""}]
[null,{"$f":"_xlfn.TEXTJOIN(\", \",TRUE,IF(A292=Tabel4[Description 2 - with out extension],Tabel4[Name (Drawing Number)],\"\"))","v":""}]
[null,{"$f":"_xlfn.TEXTJOIN(\", \",TRUE,IF(A293=Tabel4[Description 2 - with out extension],Tabel4[Name (Drawing Number)],\"\"))","v":""}]
[null,{"$f":"_xlfn.TEXTJOIN(\", \",TRUE,IF(A294=Tabel4[Description 2 - with out extension],Tabel4[Name (Drawing Number)],\"\"))","v":""}]
[null,{"$f":"_xlfn.TEXTJOIN(\", \",TRUE,IF(A295=Tabel4[Description 2 - with out extension],Tabel4[Name (Drawing Number)],\"\"))","v":""}]
[null,{"$f":"_xlfn.TEXTJOIN(\", \",TRUE,IF(A296=Tabel4[Description 2 - with out extension],Tabel4[Name (Drawing Number)],\"\"))","v":""}]
[null,{"$f":"_xlfn.TEXTJOIN(\", \",TRUE,IF(A297=Tabel4[Description 2 - with out extension],Tabel4[Name (Drawing Number)],\"\"))","v":""}]
[null,{"$f":"_xlfn.TEXTJOIN(\", \",TRUE,IF(A298=Tabel4[Description 2 - with out extension],Tabel4[Name (Drawing Number)],\"\"))","v":""}]
[null,{"$f":"_xlfn.TEXTJOIN(\", \",TRUE,IF(A299=Tabel4[Description 2 - with out extension],Tabel4[Name (Drawing Number)],\"\"))","v":""}]
[null,{"$f":"_xlfn.TEXTJOIN(\", \",TRUE,IF(A300=Tabel4[Description 2 - with out extension],Tabel4[Name (Drawing Number)],\"\"))","v":""}]
[null,{"$f":"_xlfn.TEXTJOIN(\", \",TRUE,IF(A301=Tabel4[Description 2 - with out extension],Tabel4[Name (Drawing Number)],\"\"))","v":""}]

{"sheet":"Rename ISO A1 FOLDER","index":1,"n_rows":16,"n_cols":8,"rows_kept":16,"cut":false,"hidden":false,"merged":[]}
["NAME EXSTRACT","Name","Extension","Folder Path","NUMRE"]
[{"$f":"IF(Output_Files[[#This Row],[Name]]>\" \",LEFT(Output_Files[[#This Row],[Name]],FIND(\"-s\",Output_Files[[#This Row],[Name]])-1),\"\")","v":"CW-E10-P55215"},"CW-E10-P55215-sht-1.dwg",".dwg","C:\\CAD\\isometrics\\FinalA1\\dgn\\Output_Files\\",{"$f":"CONCATENATE(VLOOKUP(Output_Files[[#This Row],[NAME EXSTRACT]],Tabel4[#All],2,FALSE),\".dwg\")","v":{"$error":"#N/A"}}]
[{"$f":"IF(Output_Files[[#This Row],[Name]]>\" \",LEFT(Output_Files[[#This Row],[Name]],FIND(\"-s\",Output_Files[[#This Row],[Name]])-1),\"\")","v":"CW-E10-P55216"},"CW-E10-P55216-sht-1.dwg",".dwg","C:\\CAD\\isometrics\\FinalA1\\dgn\\Output_Files\\",{"$f":"CONCATENATE(VLOOKUP(Output_Files[[#This Row],[NAME EXSTRACT]],Tabel4[#All],2,FALSE),\".dwg\")","v":{"$error":"#N/A"}}]
[{"$f":"IF(Output_Files[[#This Row],[Name]]>\" \",LEFT(Output_Files[[#This Row],[Name]],FIND(\"-s\",Output_Files[[#This Row],[Name]])-1),\"\")","v":"CW-E10-P55217"},"CW-E10-P55217-sht-1.dwg",".dwg","C:\\CAD\\isometrics\\FinalA1\\dgn\\Output_Files\\",{"$f":"CONCATENATE(VLOOKUP(Output_Files[[#This Row],[NAME EXSTRACT]],Tabel4[#All],2,FALSE),\".dwg\")","v":{"$error":"#N/A"}}]
[{"$f":"IF(Output_Files[[#This Row],[Name]]>\" \",LEFT(Output_Files[[#This Row],[Name]],FIND(\"-s\",Output_Files[[#This Row],[Name]])-1),\"\")","v":"RG-A16-P45143"},"RG-A16-P45143-sht-1.dwg",".dwg","C:\\CAD\\isometrics\\FinalA1\\dgn\\Output_Files\\",{"$f":"CONCATENATE(VLOOKUP(Output_Files[[#This Row],[NAME EXSTRACT]],Tabel4[#All],2,FALSE),\".dwg\")","v":{"$error":"#N/A"}}]
[{"$f":"IF(Output_Files[[#This Row],[Name]]>\" \",LEFT(Output_Files[[#This Row],[Name]],FIND(\"-s\",Output_Files[[#This Row],[Name]])-1),\"\")","v":"RG-A30-P45142"},"RG-A30-P45142-sht-1.dwg",".dwg","C:\\CAD\\isometrics\\FinalA1\\dgn\\Output_Files\\",{"$f":"CONCATENATE(VLOOKUP(Output_Files[[#This Row],[NAME EXSTRACT]],Tabel4[#All],2,FALSE),\".dwg\")","v":{"$error":"#N/A"}}]
[{"$f":"IF(Output_Files[[#This Row],[Name]]>\" \",LEFT(Output_Files[[#This Row],[Name]],FIND(\"-s\",Output_Files[[#This Row],[Name]])-1),\"\")","v":"RG-B25-P45103"},"RG-B25-P45103-sht-1.dwg",".dwg","C:\\CAD\\isometrics\\FinalA1\\dgn\\Output_Files\\",{"$f":"CONCATENATE(VLOOKUP(Output_Files[[#This Row],[NAME EXSTRACT]],Tabel4[#All],2,FALSE),\".dwg\")","v":{"$error":"#N/A"}}]
[{"$f":"IF(Output_Files[[#This Row],[Name]]>\" \",LEFT(Output_Files[[#This Row],[Name]],FIND(\"-s\",Output_Files[[#This Row],[Name]])-1),\"\")","v":"RG-B25-P45106"},"RG-B25-P45106-sht-1.dwg",".dwg","C:\\CAD\\isometrics\\FinalA1\\dgn\\Output_Files\\",{"$f":"CONCATENATE(VLOOKUP(Output_Files[[#This Row],[NAME EXSTRACT]],Tabel4[#All],2,FALSE),\".dwg\")","v":{"$error":"#N/A"}}]
[{"$f":"IF(Output_Files[[#This Row],[Name]]>\" \",LEFT(Output_Files[[#This Row],[Name]],FIND(\"-s\",Output_Files[[#This Row],[Name]])-1),\"\")","v":"RG-B25-P45107"},"RG-B25-P45107-sht-1.dwg",".dwg","C:\\CAD\\isometrics\\FinalA1\\dgn\\Output_Files\\",{"$f":"CONCATENATE(VLOOKUP(Output_Files[[#This Row],[NAME EXSTRACT]],Tabel4[#All],2,FALSE),\".dwg\")","v":"RG-B25-P45107.dwg"}]
[{"$f":"IF(Output_Files[[#This Row],[Name]]>\" \",LEFT(Output_Files[[#This Row],[Name]],FIND(\"-s\",Output_Files[[#This Row],[Name]])-1),\"\")","v":"RL-A30-P45114"},"RL-A30-P45114-sht-1.dwg",".dwg","C:\\CAD\\isometrics\\FinalA1\\dgn\\Output_Files\\",{"$f":"CONCATENATE(VLOOKUP(Output_Files[[#This Row],[NAME EXSTRACT]],Tabel4[#All],2,FALSE),\".dwg\")","v":"RL-A30-P45114.dwg"}]
[{"$f":"IF(Output_Files[[#This Row],[Name]]>\" \",LEFT(Output_Files[[#This Row],[Name]],FIND(\"-s\",Output_Files[[#This Row],[Name]])-1),\"\")","v":"RL-B25-P45101"},"RL-B25-P45101-sht-1.dwg",".dwg","C:\\CAD\\isometrics\\FinalA1\\dgn\\Output_Files\\",{"$f":"CONCATENATE(VLOOKUP(Output_Files[[#This Row],[NAME EXSTRACT]],Tabel4[#All],2,FALSE),\".dwg\")","v":{"$error":"#N/A"}}]
[{"$f":"IF(Output_Files[[#This Row],[Name]]>\" \",LEFT(Output_Files[[#This Row],[Name]],FIND(\"-s\",Output_Files[[#This Row],[Name]])-1),\"\")","v":"RL-B25-P45105"},"RL-B25-P45105-sht-1.dwg",".dwg","C:\\CAD\\isometrics\\FinalA1\\dgn\\Output_Files\\",{"$f":"CONCATENATE(VLOOKUP(Output_Files[[#This Row],[NAME EXSTRACT]],Tabel4[#All],2,FALSE),\".dwg\")","v":{"$error":"#N/A"}}]
[{"$f":"IF(Output_Files[[#This Row],[Name]]>\" \",LEFT(Output_Files[[#This Row],[Name]],FIND(\"-s\",Output_Files[[#This Row],[Name]])-1),\"\")","v":"RL-B25-P45109"},"RL-B25-P45109-sht-1.dwg",".dwg","C:\\CAD\\isometrics\\FinalA1\\dgn\\Output_Files\\",{"$f":"CONCATENATE(VLOOKUP(Output_Files[[#This Row],[NAME EXSTRACT]],Tabel4[#All],2,FALSE),\".dwg\")","v":{"$error":"#N/A"}},null,null,"Virker ikke på isoer i 2 sheets. "]
[{"$f":"IF(Output_Files[[#This Row],[Name]]>\" \",LEFT(Output_Files[[#This Row],[Name]],FIND(\"-s\",Output_Files[[#This Row],[Name]])-1),\"\")","v":"RL-B25-P45110"},"RL-B25-P45110-sht-1.dwg",".dwg","C:\\CAD\\isometrics\\FinalA1\\dgn\\Output_Files\\",{"$f":"CONCATENATE(VLOOKUP(Output_Files[[#This Row],[NAME EXSTRACT]],Tabel4[#All],2,FALSE),\".dwg\")","v":{"$error":"#N/A"}}]
[{"$f":"IF(Output_Files[[#This Row],[Name]]>\" \",LEFT(Output_Files[[#This Row],[Name]],FIND(\"-s\",Output_Files[[#This Row],[Name]])-1),\"\")","v":"RL-B25-P45136"},"RL-B25-P45136-sht-1.dwg",".dwg","C:\\CAD\\isometrics\\FinalA1\\dgn\\Output_Files\\",{"$f":"CONCATENATE(VLOOKUP(Output_Files[[#This Row],[NAME EXSTRACT]],Tabel4[#All],2,FALSE),\".dwg\")","v":{"$error":"#N/A"}}]
[{"$f":"IF(Output_Files[[#This Row],[Name]]>\" \",LEFT(Output_Files[[#This Row],[Name]],FIND(\"-s\",Output_Files[[#This Row],[Name]])-1),\"\")","v":"RL-B25-P45140"},"RL-B25-P45140-sht-1.dwg",".dwg","C:\\CAD\\isometrics\\FinalA1\\dgn\\Output_Files\\",{"$f":"CONCATENATE(VLOOKUP(Output_Files[[#This Row],[NAME EXSTRACT]],Tabel4[#All],2,FALSE),\".dwg\")","v":{"$error":"#N/A"}}]

{"sheet":"PROJECTWICE (PASTE DATA)","index":2,"n_rows":7,"n_cols":35,"rows_kept":7,"cut":false,"hidden":false,"merged":[]}
["Folder Id","Updated","Name","Rev No","State","Project","Unit code","Paper Size","Out to","Description 1","Description 2","Description 3","Description 4","Note Incl. Rev","Engineering Status","Revision User Full Name Creator","Project2","Engineering Status3","PP Directory","Document Type","Plant Type","Plant Size","Unit","Tag","Replaced by","Replaced for","Paper Size4","Scale","Released by","RELEASED__USERNAME","Released Date","Approved by","User Full Name Approver","Approved Date","Union Document Environment"]
[13830,"2021-05-12T13:20:14",1019879,"A","Approved",230087,"U331","A1",null,"Internal Isometric","Line No.: RG-B25-P45107","Catox Unit","Nippon Gases Espana",null,"Released for Construction (RFC)"]
[13830,"2021-05-12T13:20:19",1019880,"A","Approved",230087,"U331","A1",null,"Internal Isometric","Line No.: RL-A30-P45114","Catox Unit","Nippon Gases Espana",null,"Released for Construction (RFC)"]
[13830,"2021-05-12T13:18:39",1580715,"A","Approved",230087,"U361","A1",null,"Internal Isometric","Line No.: RL-B25-P45109 2/2","Dehydrator Unit","Nippon Gases Espana",null,"Released for Construction (RFC)"]
[13830,"2021-05-12T13:18:45",1580717,"A","Approved",230087,"U361","A1",null,"Internal Isometric","Line No.: RL-B25-P45109 2/2","Dehydrator Unit","Nippon Gases Espana",null,"Released for Construction (RFC)"]
[13830,"2021-05-12T13:18:51",1580718,"A","Approved",230087,"U361","A1",null,"Internal Isometric","Line No.: RL-B25-P45109 2/2","Dehydrator Unit","Nippon Gases Espana",null,"Released for Construction (RFC)"]
[13830,"2021-05-12T13:18:57",1580719,"A","Approved",230087,"U361","A1",null,"Internal Isometric","Line No.: RL-B25-P45109 2/2","Dehydrator Unit","Nippon Gases Espana",null,"Released for Construction (RFC)"]

{"sheet":"Projectwize (Do not edit)","index":3,"n_rows":301,"n_cols":3,"rows_kept":301,"cut":false,"hidden":false,"merged":[]}
["Description 2","Description 2 - with out extension","Name (Drawing Number)"]
[{"$f":"IF(ISERROR(RIGHT(Tabel5[[#This Row],[Description 2]:[Description 2]],LEN(Tabel5[[#This Row],[Description 2]:[Description 2]])-FIND(\":\",Tabel5[[#This Row],[Description 2]:[Description 2]])-1))=FALSE,RIGHT(Tabel5[[#This Row],[Description 2]:[Description 2]],LEN(Tabel5[[#This Row],[Description 2]:[Description 2]])-FIND(\":\",Tabel5[[#This Row],[Description 2]:[Description 2]])-1),\"\")","v":"RG-B25-P45107"},{"$f":"IF(ISERROR(LEFT(A2,(FIND(\" \",A2))))=TRUE,A2,LEFT(A2,(FIND(\" \",A2))-1))","v":"RG-B25-P45107"},{"$f":"IF(Tabel5[[Name]:[Name]]>0,Tabel5[[Name]:[Name]],\"\")","v":1019879}]
[{"$f":"IF(ISERROR(RIGHT(Tabel5[[#This Row],[Description 2]:[Description 2]],LEN(Tabel5[[#This Row],[Description 2]:[Description 2]])-FIND(\":\",Tabel5[[#This Row],[Description 2]:[Description 2]])-1))=FALSE,RIGHT(Tabel5[[#This Row],[Description 2]:[Description 2]],LEN(Tabel5[[#This Row],[Description 2]:[Description 2]])-FIND(\":\",Tabel5[[#This Row],[Description 2]:[Description 2]])-1),\"\")","v":"RL-A30-P45114"},"RL-A30-P45114",{"$f":"IF(Tabel5[[Name]:[Name]]>0,Tabel5[[Name]:[Name]],\"\")","v":1019880}]
[{"$f":"IF(ISERROR(RIGHT(Tabel5[[#This Row],[Description 2]:[Description 2]],LEN(Tabel5[[#This Row],[Description 2]:[Description 2]])-FIND(\":\",Tabel5[[#This Row],[Description 2]:[Description 2]])-1))=FALSE,RIGHT(Tabel5[[#This Row],[Description 2]:[Description 2]],LEN(Tabel5[[#This Row],[Description 2]:[Description 2]])-FIND(\":\",Tabel5[[#This Row],[Description 2]:[Description 2]])-1),\"\")","v":"RL-B25-P45109 2/2"},"RL-B25-P45109",{"$f":"IF(Tabel5[[Name]:[Name]]>0,Tabel5[[Name]:[Name]],\"\")","v":1580715}]
[{"$f":"IF(ISERROR(RIGHT(Tabel5[[#This Row],[Description 2]:[Description 2]],LEN(Tabel5[[#This Row],[Description 2]:[Description 2]])-FIND(\":\",Tabel5[[#This Row],[Description 2]:[Description 2]])-1))=FALSE,RIGHT(Tabel5[[#This Row],[Description 2]:[Description 2]],LEN(Tabel5[[#This Row],[Description 2]:[Description 2]])-FIND(\":\",Tabel5[[#This Row],[Description 2]:[Description 2]])-1),\"\")","v":"RL-B25-P45109 2/2"},"RL-B25-P45109",{"$f":"IF(Tabel5[[Name]:[Name]]>0,Tabel5[[Name]:[Name]],\"\")","v":1580717}]
[{"$f":"IF(ISERROR(RIGHT(Tabel5[[#This Row],[Description 2]:[Description 2]],LEN(Tabel5[[#This Row],[Description 2]:[Description 2]])-FIND(\":\",Tabel5[[#This Row],[Description 2]:[Description 2]])-1))=FALSE,RIGHT(Tabel5[[#This Row],[Description 2]:[Description 2]],LEN(Tabel5[[#This Row],[Description 2]:[Description 2]])-FIND(\":\",Tabel5[[#This Row],[Description 2]:[Description 2]])-1),\"\")","v":"RL-B25-P45109 2/2"},"RL-B25-P45109",{"$f":"IF(Tabel5[[Name]:[Name]]>0,Tabel5[[Name]:[Name]],\"\")","v":1580718}]
[{"$f":"IF(ISERROR(RIGHT(Tabel5[[#This Row],[Description 2]:[Description 2]],LEN(Tabel5[[#This Row],[Description 2]:[Description 2]])-FIND(\":\",Tabel5[[#This Row],[Description 2]:[Description 2]])-1))=FALSE,RIGHT(Tabel5[[#This Row],[Description 2]:[Description 2]],LEN(Tabel5[[#This Row],[Description 2]:[Description 2]])-FIND(\":\",Tabel5[[#This Row],[Description 2]:[Description 2]])-1),\"\")","v":"RL-B25-P45109 2/2"},"RL-B25-P45109",{"$f":"IF(Tabel5[[Name]:[Name]]>0,Tabel5[[Name]:[Name]],\"\")","v":1580719}]
[{"$f":"IF(ISERROR(RIGHT(Tabel5[[#This Row],[Description 2]:[Description 2]],LEN(Tabel5[[#This Row],[Description 2]:[Description 2]])-FIND(\":\",Tabel5[[#This Row],[Description 2]:[Description 2]])-1))=FALSE,RIGHT(Tabel5[[#This Row],[Description 2]:[Description 2]],LEN(Tabel5[[#This Row],[Description 2]:[Description 2]])-FIND(\":\",Tabel5[[#This Row],[Description 2]:[Description 2]])-1),\"\")","v":""},"",{"$f":"IF(Tabel5[[Name]:[Name]]>0,Tabel5[[Name]:[Name]],\"\")","v":""}]
[{"$f":"IF(ISERROR(RIGHT(Tabel5[[#This Row],[Description 2]:[Description 2]],LEN(Tabel5[[#This Row],[Description 2]:[Description 2]])-FIND(\":\",Tabel5[[#This Row],[Description 2]:[Description 2]])-1))=FALSE,RIGHT(Tabel5[[#This Row],[Description 2]:[Description 2]],LEN(Tabel5[[#This Row],[Description 2]:[Description 2]])-FIND(\":\",Tabel5[[#This Row],[Description 2]:[Description 2]])-1),\"\")","v":""},"",{"$f":"IF(Tabel5[[Name]:[Name]]>0,Tabel5[[Name]:[Name]],\"\")","v":""}]
[{"$f":"IF(ISERROR(RIGHT(Tabel5[[#This Row],[Description 2]:[Description 2]],LEN(Tabel5[[#This Row],[Description 2]:[Description 2]])-FIND(\":\",Tabel5[[#This Row],[Description 2]:[Description 2]])-1))=FALSE,RIGHT(Tabel5[[#This Row],[Description 2]:[Description 2]],LEN(Tabel5[[#This Row],[Description 2]:[Description 2]])-FIND(\":\",Tabel5[[#This Row],[Description 2]:[Description 2]])-1),\"\")","v":""},"",{"$f":"IF(Tabel5[[Name]:[Name]]>0,Tabel5[[Name]:[Name]],\"\")","v":""}]
[{"$f":"IF(ISERROR(RIGHT(Tabel5[[#This Row],[Description 2]:[Description 2]],LEN(Tabel5[[#This Row],[Description 2]:[Description 2]])-FIND(\":\",Tabel5[[#This Row],[Description 2]:[Description 2]])-1))=FALSE,RIGHT(Tabel5[[#This Row],[Description 2]:[Description 2]],LEN(Tabel5[[#This Row],[Description 2]:[Description 2]])-FIND(\":\",Tabel5[[#This Row],[Description 2]:[Description 2]])-1),\"\")","v":""},"",{"$f":"IF(Tabel5[[Name]:[Name]]>0,Tabel5[[Name]:[Name]],\"\")","v":""}]
[{"$f":"IF(ISERROR(RIGHT(Tabel5[[#This Row],[Description 2]:[Description 2]],LEN(Tabel5[[#This Row],[Description 2]:[Description 2]])-FIND(\":\",Tabel5[[#This Row],[Description 2]:[Description 2]])-1))=FALSE,RIGHT(Tabel5[[#This Row],[Description 2]:[Description 2]],LEN(Tabel5[[#This Row],[Description 2]:[Description 2]])-FIND(\":\",Tabel5[[#This Row],[Description 2]:[Description 2]])-1),\"\")","v":""},"",{"$f":"IF(Tabel5[[Name]:[Name]]>0,Tabel5[[Name]:[Name]],\"\")","v":""}]
[{"$f":"IF(ISERROR(RIGHT(Tabel5[[#This Row],[Description 2]:[Description 2]],LEN(Tabel5[[#This Row],[Description 2]:[Description 2]])-FIND(\":\",Tabel5[[#This Row],[Description 2]:[Description 2]])-1))=FALSE,RIGHT(Tabel5[[#This Row],[Description 2]:[Description 2]],LEN(Tabel5[[#This Row],[Description 2]:[Description 2]])-FIND(\":\",Tabel5[[#This Row],[Description 2]:[Description 2]])-1),\"\")","v":""},"",{"$f":"IF(Tabel5[[Name]:[Name]]>0,Tabel5[[Name]:[Name]],\"\")","v":""}]
[{"$f":"IF(ISERROR(RIGHT(Tabel5[[#This Row],[Description 2]:[Description 2]],LEN(Tabel5[[#This Row],[Description 2]:[Description 2]])-FIND(\":\",Tabel5[[#This Row],[Description 2]:[Description 2]])-1))=FALSE,RIGHT(Tabel5[[#This Row],[Description 2]:[Description 2]],LEN(Tabel5[[#This Row],[Description 2]:[Description 2]])-FIND(\":\",Tabel5[[#This Row],[Description 2]:[Description 2]])-1),\"\")","v":""},"",{"$f":"IF(Tabel5[[Name]:[Name]]>0,Tabel5[[Name]:[Name]],\"\")","v":""}]
[{"$f":"IF(ISERROR(RIGHT(Tabel5[[#This Row],[Description 2]:[Description 2]],LEN(Tabel5[[#This Row],[Description 2]:[Description 2]])-FIND(\":\",Tabel5[[#This Row],[Description 2]:[Description 2]])-1))=FALSE,RIGHT(Tabel5[[#This Row],[Description 2]:[Description 2]],LEN(Tabel5[[#This Row],[Description 2]:[Description 2]])-FIND(\":\",Tabel5[[#This Row],[Description 2]:[Description 2]])-1),\"\")","v":""},"",{"$f":"IF(Tabel5[[Name]:[Name]]>0,Tabel5[[Name]:[Name]],\"\")","v":""}]
[{"$f":"IF(ISERROR(RIGHT(Tabel5[[#This Row],[Description 2]:[Description 2]],LEN(Tabel5[[#This Row],[Description 2]:[Description 2]])-FIND(\":\",Tabel5[[#This Row],[Description 2]:[Description 2]])-1))=FALSE,RIGHT(Tabel5[[#This Row],[Description 2]:[Description 2]],LEN(Tabel5[[#This Row],[Description 2]:[Description 2]])-FIND(\":\",Tabel5[[#This Row],[Description 2]:[Description 2]])-1),\"\")","v":""},"",{"$f":"IF(Tabel5[[Name]:[Name]]>0,Tabel5[[Name]:[Name]],\"\")","v":""}]
[{"$f":"IF(ISERROR(RIGHT(Tabel5[[#This Row],[Description 2]:[Description 2]],LEN(Tabel5[[#This Row],[Description 2]:[Description 2]])-FIND(\":\",Tabel5[[#This Row],[Description 2]:[Description 2]])-1))=FALSE,RIGHT(Tabel5[[#This Row],[Description 2]:[Description 2]],LEN(Tabel5[[#This Row],[Description 2]:[Description 2]])-FIND(\":\",Tabel5[[#This Row],[Description 2]:[Description 2]])-1),\"\")","v":""},"",{"$f":"IF(Tabel5[[Name]:[Name]]>0,Tabel5[[Name]:[Name]],\"\")","v":""}]
[{"$f":"IF(ISERROR(RIGHT(Tabel5[[#This Row],[Description 2]:[Description 2]],LEN(Tabel5[[#This Row],[Description 2]:[Description 2]])-FIND(\":\",Tabel5[[#This Row],[Description 2]:[Description 2]])-1))=FALSE,RIGHT(Tabel5[[#This Row],[Description 2]:[Description 2]],LEN(Tabel5[[#This Row],[Description 2]:[Description 2]])-FIND(\":\",Tabel5[[#This Row],[Description 2]:[Description 2]])-1),\"\")","v":""},"",{"$f":"IF(Tabel5[[Name]:[Name]]>0,Tabel5[[Name]:[Name]],\"\")","v":""}]
[{"$f":"IF(ISERROR(RIGHT(Tabel5[[#This Row],[Description 2]:[Description 2]],LEN(Tabel5[[#This Row],[Description 2]:[Description 2]])-FIND(\":\",Tabel5[[#This Row],[Description 2]:[Description 2]])-1))=FALSE,RIGHT(Tabel5[[#This Row],[Description 2]:[Description 2]],LEN(Tabel5[[#This Row],[Description 2]:[Description 2]])-FIND(\":\",Tabel5[[#This Row],[Description 2]:[Description 2]])-1),\"\")","v":""},"",{"$f":"IF(Tabel5[[Name]:[Name]]>0,Tabel5[[Name]:[Name]],\"\")","v":""}]
[{"$f":"IF(ISERROR(RIGHT(Tabel5[[#This Row],[Description 2]:[Description 2]],LEN(Tabel5[[#This Row],[Description 2]:[Description 2]])-FIND(\":\",Tabel5[[#This Row],[Description 2]:[Description 2]])-1))=FALSE,RIGHT(Tabel5[[#This Row],[Description 2]:[Description 2]],LEN(Tabel5[[#This Row],[Description 2]:[Description 2]])-FIND(\":\",Tabel5[[#This Row],[Description 2]:[Description 2]])-1),\"\")","v":""},"",{"$f":"IF(Tabel5[[Name]:[Name]]>0,Tabel5[[Name]:[Name]],\"\")","v":""}]
[{"$f":"IF(ISERROR(RIGHT(Tabel5[[#This Row],[Description 2]:[Description 2]],LEN(Tabel5[[#This Row],[Description 2]:[Description 2]])-FIND(\":\",Tabel5[[#This Row],[Description 2]:[Description 2]])-1))=FALSE,RIGHT(Tabel5[[#This Row],[Description 2]:[Description 2]],LEN(Tabel5[[#This Row],[Description 2]:[Description 2]])-FIND(\":\",Tabel5[[#This Row],[Description 2]:[Description 2]])-1),\"\")","v":""},"",{"$f":"IF(Tabel5[[Name]:[Name]]>0,Tabel5[[Name]:[Name]],\"\")","v":""}]
[{"$f":"IF(ISERROR(RIGHT(Tabel5[[#This Row],[Description 2]:[Description 2]],LEN(Tabel5[[#This Row],[Description 2]:[Description 2]])-FIND(\":\",Tabel5[[#This Row],[Description 2]:[Description 2]])-1))=FALSE,RIGHT(Tabel5[[#This Row],[Description 2]:[Description 2]],LEN(Tabel5[[#This Row],[Description 2]:[Description 2]])-FIND(\":\",Tabel5[[#This Row],[Description 2]:[Description 2]])-1),\"\")","v":""},"",{"$f":"IF(Tabel5[[Name]:[Name]]>0,Tabel5[[Name]:[Name]],\"\")","v":""}]
[{"$f":"IF(ISERROR(RIGHT(Tabel5[[#This Row],[Description 2]:[Description 2]],LEN(Tabel5[[#This Row],[Description 2]:[Description 2]])-FIND(\":\",Tabel5[[#This Row],[Description 2]:[Description 2]])-1))=FALSE,RIGHT(Tabel5[[#This Row],[Description 2]:[Description 2]],LEN(Tabel5[[#This Row],[Description 2]:[Description 2]])-FIND(\":\",Tabel5[[#This Row],[Description 2]:[Description 2]])-1),\"\")","v":""},"",{"$f":"IF(Tabel5[[Name]:[Name]]>0,Tabel5[[Name]:[Name]],\"\")","v":""}]
[{"$f":"IF(ISERROR(RIGHT(Tabel5[[#This Row],[Description 2]:[Description 2]],LEN(Tabel5[[#This Row],[Description 2]:[Description 2]])-FIND(\":\",Tabel5[[#This Row],[Description 2]:[Description 2]])-1))=FALSE,RIGHT(Tabel5[[#This Row],[Description 2]:[Description 2]],LEN(Tabel5[[#This Row],[Description 2]:[Description 2]])-FIND(\":\",Tabel5[[#This Row],[Description 2]:[Description 2]])-1),\"\")","v":""},"",{"$f":"IF(Tabel5[[Name]:[Name]]>0,Tabel5[[Name]:[Name]],\"\")","v":""}]
[{"$f":"IF(ISERROR(RIGHT(Tabel5[[#This Row],[Description 2]:[Description 2]],LEN(Tabel5[[#This Row],[Description 2]:[Description 2]])-FIND(\":\",Tabel5[[#This Row],[Description 2]:[Description 2]])-1))=FALSE,RIGHT(Tabel5[[#This Row],[Description 2]:[Description 2]],LEN(Tabel5[[#This Row],[Description 2]:[Description 2]])-FIND(\":\",Tabel5[[#This Row],[Description 2]:[Description 2]])-1),\"\")","v":""},"",{"$f":"IF(Tabel5[[Name]:[Name]]>0,Tabel5[[Name]:[Name]],\"\")","v":""}]
[{"$f":"IF(ISERROR(RIGHT(Tabel5[[#This Row],[Description 2]:[Description 2]],LEN(Tabel5[[#This Row],[Description 2]:[Description 2]])-FIND(\":\",Tabel5[[#This Row],[Description 2]:[Description 2]])-1))=FALSE,RIGHT(Tabel5[[#This Row],[Description 2]:[Description 2]],LEN(Tabel5[[#This Row],[Description 2]:[Description 2]])-FIND(\":\",Tabel5[[#This Row],[Description 2]:[Description 2]])-1),\"\")","v":""},"",{"$f":"IF(Tabel5[[Name]:[Name]]>0,Tabel5[[Name]:[Name]],\"\")","v":""}]
[{"$f":"IF(ISERROR(RIGHT(Tabel5[[#This Row],[Description 2]:[Description 2]],LEN(Tabel5[[#This Row],[Description 2]:[Description 2]])-FIND(\":\",Tabel5[[#This Row],[Description 2]:[Description 2]])-1))=FALSE,RIGHT(Tabel5[[#This Row],[Description 2]:[Description 2]],LEN(Tabel5[[#This Row],[Description 2]:[Description 2]])-FIND(\":\",Tabel5[[#This Row],[Description 2]:[Description 2]])-1),\"\")","v":""},"",{"$f":"IF(Tabel5[[Name]:[Name]]>0,Tabel5[[Name]:[Name]],\"\")","v":""}]
[{"$f":"IF(ISERROR(RIGHT(Tabel5[[#This Row],[Description 2]:[Description 2]],LEN(Tabel5[[#This Row],[Description 2]:[Description 2]])-FIND(\":\",Tabel5[[#This Row],[Description 2]:[Description 2]])-1))=FALSE,RIGHT(Tabel5[[#This Row],[Description 2]:[Description 2]],LEN(Tabel5[[#This Row],[Description 2]:[Description 2]])-FIND(\":\",Tabel5[[#This Row],[Description 2]:[Description 2]])-1),\"\")","v":""},"",{"$f":"IF(Tabel5[[Name]:[Name]]>0,Tabel5[[Name]:[Name]],\"\")","v":""}]
[{"$f":"IF(ISERROR(RIGHT(Tabel5[[#This Row],[Description 2]:[Description 2]],LEN(Tabel5[[#This Row],[Description 2]:[Description 2]])-FIND(\":\",Tabel5[[#This Row],[Description 2]:[Description 2]])-1))=FALSE,RIGHT(Tabel5[[#This Row],[Description 2]:[Description 2]],LEN(Tabel5[[#This Row],[Description 2]:[Description 2]])-FIND(\":\",Tabel5[[#This Row],[Description 2]:[Description 2]])-1),\"\")","v":""},"",{"$f":"IF(Tabel5[[Name]:[Name]]>0,Tabel5[[Name]:[Name]],\"\")","v":""}]
[{"$f":"IF(ISERROR(RIGHT(Tabel5[[#This Row],[Description 2]:[Description 2]],LEN(Tabel5[[#This Row],[Description 2]:[Description 2]])-FIND(\":\",Tabel5[[#This Row],[Description 2]:[Description 2]])-1))=FALSE,RIGHT(Tabel5[[#This Row],[Description 2]:[Description 2]],LEN(Tabel5[[#This Row],[Description 2]:[Description 2]])-FIND(\":\",Tabel5[[#This Row],[Description 2]:[Description 2]])-1),\"\")","v":""},"",{"$f":"IF(Tabel5[[Name]:[Name]]>0,Tabel5[[Name]:[Name]],\"\")","v":""}]
[{"$f":"IF(ISERROR(RIGHT(Tabel5[[#This Row],[Description 2]:[Description 2]],LEN(Tabel5[[#This Row],[Description 2]:[Description 2]])-FIND(\":\",Tabel5[[#This Row],[Description 2]:[Description 2]])-1))=FALSE,RIGHT(Tabel5[[#This Row],[Description 2]:[Description 2]],LEN(Tabel5[[#This Row],[Description 2]:[Description 2]])-FIND(\":\",Tabel5[[#This Row],[Description 2]:[Description 2]])-1),\"\")","v":""},"",{"$f":"IF(Tabel5[[Name]:[Name]]>0,Tabel5[[Name]:[Name]],\"\")","v":""}]
[{"$f":"IF(ISERROR(RIGHT(Tabel5[[#This Row],[Description 2]:[Description 2]],LEN(Tabel5[[#This Row],[Description 2]:[Description 2]])-FIND(\":\",Tabel5[[#This Row],[Description 2]:[Description 2]])-1))=FALSE,RIGHT(Tabel5[[#This Row],[Description 2]:[Description 2]],LEN(Tabel5[[#This Row],[Description 2]:[Description 2]])-FIND(\":\",Tabel5[[#This Row],[Description 2]:[Description 2]])-1),\"\")","v":""},"",{"$f":"IF(Tabel5[[Name]:[Name]]>0,Tabel5[[Name]:[Name]],\"\")","v":""}]
[{"$f":"IF(ISERROR(RIGHT(Tabel5[[#This Row],[Description 2]:[Description 2]],LEN(Tabel5[[#This Row],[Description 2]:[Description 2]])-FIND(\":\",Tabel5[[#This Row],[Description 2]:[Description 2]])-1))=FALSE,RIGHT(Tabel5[[#This Row],[Description 2]:[Description 2]],LEN(Tabel5[[#This Row],[Description 2]:[Description 2]])-FIND(\":\",Tabel5[[#This Row],[Description 2]:[Description 2]])-1),\"\")","v":""},"",{"$f":"IF(Tabel5[[Name]:[Name]]>0,Tabel5[[Name]:[Name]],\"\")","v":""}]
[{"$f":"IF(ISERROR(RIGHT(Tabel5[[#This Row],[Description 2]:[Description 2]],LEN(Tabel5[[#This Row],[Description 2]:[Description 2]])-FIND(\":\",Tabel5[[#This Row],[Description 2]:[Description 2]])-1))=FALSE,RIGHT(Tabel5[[#This Row],[Description 2]:[Description 2]],LEN(Tabel5[[#This Row],[Description 2]:[Description 2]])-FIND(\":\",Tabel5[[#This Row],[Description 2]:[Description 2]])-1),\"\")","v":""},"",{"$f":"IF(Tabel5[[Name]:[Name]]>0,Tabel5[[Name]:[Name]],\"\")","v":""}]
[{"$f":"IF(ISERROR(RIGHT(Tabel5[[#This Row],[Description 2]:[Description 2]],LEN(Tabel5[[#This Row],[Description 2]:[Description 2]])-FIND(\":\",Tabel5[[#This Row],[Description 2]:[Description 2]])-1))=FALSE,RIGHT(Tabel5[[#This Row],[Description 2]:[Description 2]],LEN(Tabel5[[#This Row],[Description 2]:[Description 2]])-FIND(\":\",Tabel5[[#This Row],[Description 2]:[Description 2]])-1),\"\")","v":""},"",{"$f":"IF(Tabel5[[Name]:[Name]]>0,Tabel5[[Name]:[Name]],\"\")","v":""}]
[{"$f":"IF(ISERROR(RIGHT(Tabel5[[#This Row],[Description 2]:[Description 2]],LEN(Tabel5[[#This Row],[Description 2]:[Description 2]])-FIND(\":\",Tabel5[[#This Row],[Description 2]:[Description 2]])-1))=FALSE,RIGHT(Tabel5[[#This Row],[Description 2]:[Description 2]],LEN(Tabel5[[#This Row],[Description 2]:[Description 2]])-FIND(\":\",Tabel5[[#This Row],[Description 2]:[Description 2]])-1),\"\")","v":""},"",{"$f":"IF(Tabel5[[Name]:[Name]]>0,Tabel5[[Name]:[Name]],\"\")","v":""}]
[{"$f":"IF(ISERROR(RIGHT(Tabel5[[#This Row],[Description 2]:[Description 2]],LEN(Tabel5[[#This Row],[Description 2]:[Description 2]])-FIND(\":\",Tabel5[[#This Row],[Description 2]:[Description 2]])-1))=FALSE,RIGHT(Tabel5[[#This Row],[Description 2]:[Description 2]],LEN(Tabel5[[#This Row],[Description 2]:[Description 2]])-FIND(\":\",Tabel5[[#This Row],[Description 2]:[Description 2]])-1),\"\")","v":""},"",{"$f":"IF(Tabel5[[Name]:[Name]]>0,Tabel5[[Name]:[Name]],\"\")","v":""}]
[{"$f":"IF(ISERROR(RIGHT(Tabel5[[#This Row],[Description 2]:[Description 2]],LEN(Tabel5[[#This Row],[Description 2]:[Description 2]])-FIND(\":\",Tabel5[[#This Row],[Description 2]:[Description 2]])-1))=FALSE,RIGHT(Tabel5[[#This Row],[Description 2]:[Description 2]],LEN(Tabel5[[#This Row],[Description 2]:[Description 2]])-FIND(\":\",Tabel5[[#This Row],[Description 2]:[Description 2]])-1),\"\")","v":""},"",{"$f":"IF(Tabel5[[Name]:[Name]]>0,Tabel5[[Name]:[Name]],\"\")","v":""}]
[{"$f":"IF(ISERROR(RIGHT(Tabel5[[#This Row],[Description 2]:[Description 2]],LEN(Tabel5[[#This Row],[Description 2]:[Description 2]])-FIND(\":\",Tabel5[[#This Row],[Description 2]:[Description 2]])-1))=FALSE,RIGHT(Tabel5[[#This Row],[Description 2]:[Description 2]],LEN(Tabel5[[#This Row],[Description 2]:[Description 2]])-FIND(\":\",Tabel5[[#This Row],[Description 2]:[Description 2]])-1),\"\")","v":""},"",{"$f":"IF(Tabel5[[Name]:[Name]]>0,Tabel5[[Name]:[Name]],\"\")","v":""}]
[{"$f":"IF(ISERROR(RIGHT(Tabel5[[#This Row],[Description 2]:[Description 2]],LEN(Tabel5[[#This Row],[Description 2]:[Description 2]])-FIND(\":\",Tabel5[[#This Row],[Description 2]:[Description 2]])-1))=FALSE,RIGHT(Tabel5[[#This Row],[Description 2]:[Description 2]],LEN(Tabel5[[#This Row],[Description 2]:[Description 2]])-FIND(\":\",Tabel5[[#This Row],[Description 2]:[Description 2]])-1),\"\")","v":""},"",{"$f":"IF(Tabel5[[Name]:[Name]]>0,Tabel5[[Name]:[Name]],\"\")","v":""}]
[{"$f":"IF(ISERROR(RIGHT(Tabel5[[#This Row],[Description 2]:[Description 2]],LEN(Tabel5[[#This Row],[Description 2]:[Description 2]])-FIND(\":\",Tabel5[[#This Row],[Description 2]:[Description 2]])-1))=FALSE,RIGHT(Tabel5[[#This Row],[Description 2]:[Description 2]],LEN(Tabel5[[#This Row],[Description 2]:[Description 2]])-FIND(\":\",Tabel5[[#This Row],[Description 2]:[Description 2]])-1),\"\")","v":""},"",{"$f":"IF(Tabel5[[Name]:[Name]]>0,Tabel5[[Name]:[Name]],\"\")","v":""}]
[{"$f":"IF(ISERROR(RIGHT(Tabel5[[#This Row],[Description 2]:[Description 2]],LEN(Tabel5[[#This Row],[Description 2]:[Description 2]])-FIND(\":\",Tabel5[[#This Row],[Description 2]:[Description 2]])-1))=FALSE,RIGHT(Tabel5[[#This Row],[Description 2]:[Description 2]],LEN(Tabel5[[#This Row],[Description 2]:[Description 2]])-FIND(\":\",Tabel5[[#This Row],[Description 2]:[Description 2]])-1),\"\")","v":""},"",{"$f":"IF(Tabel5[[Name]:[Name]]>0,Tabel5[[Name]:[Name]],\"\")","v":""}]
[{"$f":"IF(ISERROR(RIGHT(Tabel5[[#This Row],[Description 2]:[Description 2]],LEN(Tabel5[[#This Row],[Description 2]:[Description 2]])-FIND(\":\",Tabel5[[#This Row],[Description 2]:[Description 2]])-1))=FALSE,RIGHT(Tabel5[[#This Row],[Description 2]:[Description 2]],LEN(Tabel5[[#This Row],[Description 2]:[Description 2]])-FIND(\":\",Tabel5[[#This Row],[Description 2]:[Description 2]])-1),\"\")","v":""},"",{"$f":"IF(Tabel5[[Name]:[Name]]>0,Tabel5[[Name]:[Name]],\"\")","v":""}]
[{"$f":"IF(ISERROR(RIGHT(Tabel5[[#This Row],[Description 2]:[Description 2]],LEN(Tabel5[[#This Row],[Description 2]:[Description 2]])-FIND(\":\",Tabel5[[#This Row],[Description 2]:[Description 2]])-1))=FALSE,RIGHT(Tabel5[[#This Row],[Description 2]:[Description 2]],LEN(Tabel5[[#This Row],[Description 2]:[Description 2]])-FIND(\":\",Tabel5[[#This Row],[Description 2]:[Description 2]])-1),\"\")","v":""},"",{"$f":"IF(Tabel5[[Name]:[Name]]>0,Tabel5[[Name]:[Name]],\"\")","v":""}]
[{"$f":"IF(ISERROR(RIGHT(Tabel5[[#This Row],[Description 2]:[Description 2]],LEN(Tabel5[[#This Row],[Description 2]:[Description 2]])-FIND(\":\",Tabel5[[#This Row],[Description 2]:[Description 2]])-1))=FALSE,RIGHT(Tabel5[[#This Row],[Description 2]:[Description 2]],LEN(Tabel5[[#This Row],[Description 2]:[Description 2]])-FIND(\":\",Tabel5[[#This Row],[Description 2]:[Description 2]])-1),\"\")","v":""},"",{"$f":"IF(Tabel5[[Name]:[Name]]>0,Tabel5[[Name]:[Name]],\"\")","v":""}]
[{"$f":"IF(ISERROR(RIGHT(Tabel5[[#This Row],[Description 2]:[Description 2]],LEN(Tabel5[[#This Row],[Description 2]:[Description 2]])-FIND(\":\",Tabel5[[#This Row],[Description 2]:[Description 2]])-1))=FALSE,RIGHT(Tabel5[[#This Row],[Description 2]:[Description 2]],LEN(Tabel5[[#This Row],[Description 2]:[Description 2]])-FIND(\":\",Tabel5[[#This Row],[Description 2]:[Description 2]])-1),\"\")","v":""},"",{"$f":"IF(Tabel5[[Name]:[Name]]>0,Tabel5[[Name]:[Name]],\"\")","v":""}]
[{"$f":"IF(ISERROR(RIGHT(Tabel5[[#This Row],[Description 2]:[Description 2]],LEN(Tabel5[[#This Row],[Description 2]:[Description 2]])-FIND(\":\",Tabel5[[#This Row],[Description 2]:[Description 2]])-1))=FALSE,RIGHT(Tabel5[[#This Row],[Description 2]:[Description 2]],LEN(Tabel5[[#This Row],[Description 2]:[Description 2]])-FIND(\":\",Tabel5[[#This Row],[Description 2]:[Description 2]])-1),\"\")","v":""},"",{"$f":"IF(Tabel5[[Name]:[Name]]>0,Tabel5[[Name]:[Name]],\"\")","v":""}]
[{"$f":"IF(ISERROR(RIGHT(Tabel5[[#This Row],[Description 2]:[Description 2]],LEN(Tabel5[[#This Row],[Description 2]:[Description 2]])-FIND(\":\",Tabel5[[#This Row],[Description 2]:[Description 2]])-1))=FALSE,RIGHT(Tabel5[[#This Row],[Description 2]:[Description 2]],LEN(Tabel5[[#This Row],[Description 2]:[Description 2]])-FIND(\":\",Tabel5[[#This Row],[Description 2]:[Description 2]])-1),\"\")","v":""},"",{"$f":"IF(Tabel5[[Name]:[Name]]>0,Tabel5[[Name]:[Name]],\"\")","v":""}]
[{"$f":"IF(ISERROR(RIGHT(Tabel5[[#This Row],[Description 2]:[Description 2]],LEN(Tabel5[[#This Row],[Description 2]:[Description 2]])-FIND(\":\",Tabel5[[#This Row],[Description 2]:[Description 2]])-1))=FALSE,RIGHT(Tabel5[[#This Row],[Description 2]:[Description 2]],LEN(Tabel5[[#This Row],[Description 2]:[Description 2]])-FIND(\":\",Tabel5[[#This Row],[Description 2]:[Description 2]])-1),\"\")","v":""},"",{"$f":"IF(Tabel5[[Name]:[Name]]>0,Tabel5[[Name]:[Name]],\"\")","v":""}]
[{"$f":"IF(ISERROR(RIGHT(Tabel5[[#This Row],[Description 2]:[Description 2]],LEN(Tabel5[[#This Row],[Description 2]:[Description 2]])-FIND(\":\",Tabel5[[#This Row],[Description 2]:[Description 2]])-1))=FALSE,RIGHT(Tabel5[[#This Row],[Description 2]:[Description 2]],LEN(Tabel5[[#This Row],[Description 2]:[Description 2]])-FIND(\":\",Tabel5[[#This Row],[Description 2]:[Description 2]])-1),\"\")","v":""},"",{"$f":"IF(Tabel5[[Name]:[Name]]>0,Tabel5[[Name]:[Name]],\"\")","v":""}]
[{"$f":"IF(ISERROR(RIGHT(Tabel5[[#This Row],[Description 2]:[Description 2]],LEN(Tabel5[[#This Row],[Description 2]:[Description 2]])-FIND(\":\",Tabel5[[#This Row],[Description 2]:[Description 2]])-1))=FALSE,RIGHT(Tabel5[[#This Row],[Description 2]:[Description 2]],LEN(Tabel5[[#This Row],[Description 2]:[Description 2]])-FIND(\":\",Tabel5[[#This Row],[Description 2]:[Description 2]])-1),\"\")","v":""},"",{"$f":"IF(Tabel5[[Name]:[Name]]>0,Tabel5[[Name]:[Name]],\"\")","v":""}]
[{"$f":"IF(ISERROR(RIGHT(Tabel5[[#This Row],[Description 2]:[Description 2]],LEN(Tabel5[[#This Row],[Description 2]:[Description 2]])-FIND(\":\",Tabel5[[#This Row],[Description 2]:[Description 2]])-1))=FALSE,RIGHT(Tabel5[[#This Row],[Description 2]:[Description 2]],LEN(Tabel5[[#This Row],[Description 2]:[Description 2]])-FIND(\":\",Tabel5[[#This Row],[Description 2]:[Description 2]])-1),\"\")","v":""},"",{"$f":"IF(Tabel5[[Name]:[Name]]>0,Tabel5[[Name]:[Name]],\"\")","v":""}]
[{"$f":"IF(ISERROR(RIGHT(Tabel5[[#This Row],[Description 2]:[Description 2]],LEN(Tabel5[[#This Row],[Description 2]:[Description 2]])-FIND(\":\",Tabel5[[#This Row],[Description 2]:[Description 2]])-1))=FALSE,RIGHT(Tabel5[[#This Row],[Description 2]:[Description 2]],LEN(Tabel5[[#This Row],[Description 2]:[Description 2]])-FIND(\":\",Tabel5[[#This Row],[Description 2]:[Description 2]])-1),\"\")","v":""},"",{"$f":"IF(Tabel5[[Name]:[Name]]>0,Tabel5[[Name]:[Name]],\"\")","v":""}]
[{"$f":"IF(ISERROR(RIGHT(Tabel5[[#This Row],[Description 2]:[Description 2]],LEN(Tabel5[[#This Row],[Description 2]:[Description 2]])-FIND(\":\",Tabel5[[#This Row],[Description 2]:[Description 2]])-1))=FALSE,RIGHT(Tabel5[[#This Row],[Description 2]:[Description 2]],LEN(Tabel5[[#This Row],[Description 2]:[Description 2]])-FIND(\":\",Tabel5[[#This Row],[Description 2]:[Description 2]])-1),\"\")","v":""},"",{"$f":"IF(Tabel5[[Name]:[Name]]>0,Tabel5[[Name]:[Name]],\"\")","v":""}]
[{"$f":"IF(ISERROR(RIGHT(Tabel5[[#This Row],[Description 2]:[Description 2]],LEN(Tabel5[[#This Row],[Description 2]:[Description 2]])-FIND(\":\",Tabel5[[#This Row],[Description 2]:[Description 2]])-1))=FALSE,RIGHT(Tabel5[[#This Row],[Description 2]:[Description 2]],LEN(Tabel5[[#This Row],[Description 2]:[Description 2]])-FIND(\":\",Tabel5[[#This Row],[Description 2]:[Description 2]])-1),\"\")","v":""},"",{"$f":"IF(Tabel5[[Name]:[Name]]>0,Tabel5[[Name]:[Name]],\"\")","v":""}]
[{"$f":"IF(ISERROR(RIGHT(Tabel5[[#This Row],[Description 2]:[Description 2]],LEN(Tabel5[[#This Row],[Description 2]:[Description 2]])-FIND(\":\",Tabel5[[#This Row],[Description 2]:[Description 2]])-1))=FALSE,RIGHT(Tabel5[[#This Row],[Description 2]:[Description 2]],LEN(Tabel5[[#This Row],[Description 2]:[Description 2]])-FIND(\":\",Tabel5[[#This Row],[Description 2]:[Description 2]])-1),\"\")","v":""},"",{"$f":"IF(Tabel5[[Name]:[Name]]>0,Tabel5[[Name]:[Name]],\"\")","v":""}]
[{"$f":"IF(ISERROR(RIGHT(Tabel5[[#This Row],[Description 2]:[Description 2]],LEN(Tabel5[[#This Row],[Description 2]:[Description 2]])-FIND(\":\",Tabel5[[#This Row],[Description 2]:[Description 2]])-1))=FALSE,RIGHT(Tabel5[[#This Row],[Description 2]:[Description 2]],LEN(Tabel5[[#This Row],[Description 2]:[Description 2]])-FIND(\":\",Tabel5[[#This Row],[Description 2]:[Description 2]])-1),\"\")","v":""},"",{"$f":"IF(Tabel5[[Name]:[Name]]>0,Tabel5[[Name]:[Name]],\"\")","v":""}]
[{"$f":"IF(ISERROR(RIGHT(Tabel5[[#This Row],[Description 2]:[Description 2]],LEN(Tabel5[[#This Row],[Description 2]:[Description 2]])-FIND(\":\",Tabel5[[#This Row],[Description 2]:[Description 2]])-1))=FALSE,RIGHT(Tabel5[[#This Row],[Description 2]:[Description 2]],LEN(Tabel5[[#This Row],[Description 2]:[Description 2]])-FIND(\":\",Tabel5[[#This Row],[Description 2]:[Description 2]])-1),\"\")","v":""},"",{"$f":"IF(Tabel5[[Name]:[Name]]>0,Tabel5[[Name]:[Name]],\"\")","v":""}]
[{"$f":"IF(ISERROR(RIGHT(Tabel5[[#This Row],[Description 2]:[Description 2]],LEN(Tabel5[[#This Row],[Description 2]:[Description 2]])-FIND(\":\",Tabel5[[#This Row],[Description 2]:[Description 2]])-1))=FALSE,RIGHT(Tabel5[[#This Row],[Description 2]:[Description 2]],LEN(Tabel5[[#This Row],[Description 2]:[Description 2]])-FIND(\":\",Tabel5[[#This Row],[Description 2]:[Description 2]])-1),\"\")","v":""},"",{"$f":"IF(Tabel5[[Name]:[Name]]>0,Tabel5[[Name]:[Name]],\"\")","v":""}]
[{"$f":"IF(ISERROR(RIGHT(Tabel5[[#This Row],[Description 2]:[Description 2]],LEN(Tabel5[[#This Row],[Description 2]:[Description 2]])-FIND(\":\",Tabel5[[#This Row],[Description 2]:[Description 2]])-1))=FALSE,RIGHT(Tabel5[[#This Row],[Description 2]:[Description 2]],LEN(Tabel5[[#This Row],[Description 2]:[Description 2]])-FIND(\":\",Tabel5[[#This Row],[Description 2]:[Description 2]])-1),\"\")","v":""},"",{"$f":"IF(Tabel5[[Name]:[Name]]>0,Tabel5[[Name]:[Name]],\"\")","v":""}]
[{"$f":"IF(ISERROR(RIGHT(Tabel5[[#This Row],[Description 2]:[Description 2]],LEN(Tabel5[[#This Row],[Description 2]:[Description 2]])-FIND(\":\",Tabel5[[#This Row],[Description 2]:[Description 2]])-1))=FALSE,RIGHT(Tabel5[[#This Row],[Description 2]:[Description 2]],LEN(Tabel5[[#This Row],[Description 2]:[Description 2]])-FIND(\":\",Tabel5[[#This Row],[Description 2]:[Description 2]])-1),\"\")","v":""},"",{"$f":"IF(Tabel5[[Name]:[Name]]>0,Tabel5[[Name]:[Name]],\"\")","v":""}]
[{"$f":"IF(ISERROR(RIGHT(Tabel5[[#This Row],[Description 2]:[Description 2]],LEN(Tabel5[[#This Row],[Description 2]:[Description 2]])-FIND(\":\",Tabel5[[#This Row],[Description 2]:[Description 2]])-1))=FALSE,RIGHT(Tabel5[[#This Row],[Description 2]:[Description 2]],LEN(Tabel5[[#This Row],[Description 2]:[Description 2]])-FIND(\":\",Tabel5[[#This Row],[Description 2]:[Description 2]])-1),\"\")","v":""},"",{"$f":"IF(Tabel5[[Name]:[Name]]>0,Tabel5[[Name]:[Name]],\"\")","v":""}]
[{"$f":"IF(ISERROR(RIGHT(Tabel5[[#This Row],[Description 2]:[Description 2]],LEN(Tabel5[[#This Row],[Description 2]:[Description 2]])-FIND(\":\",Tabel5[[#This Row],[Description 2]:[Description 2]])-1))=FALSE,RIGHT(Tabel5[[#This Row],[Description 2]:[Description 2]],LEN(Tabel5[[#This Row],[Description 2]:[Description 2]])-FIND(\":\",Tabel5[[#This Row],[Description 2]:[Description 2]])-1),\"\")","v":""},"",{"$f":"IF(Tabel5[[Name]:[Name]]>0,Tabel5[[Name]:[Name]],\"\")","v":""}]
[{"$f":"IF(ISERROR(RIGHT(Tabel5[[#This Row],[Description 2]:[Description 2]],LEN(Tabel5[[#This Row],[Description 2]:[Description 2]])-FIND(\":\",Tabel5[[#This Row],[Description 2]:[Description 2]])-1))=FALSE,RIGHT(Tabel5[[#This Row],[Description 2]:[Description 2]],LEN(Tabel5[[#This Row],[Description 2]:[Description 2]])-FIND(\":\",Tabel5[[#This Row],[Description 2]:[Description 2]])-1),\"\")","v":""},"",{"$f":"IF(Tabel5[[Name]:[Name]]>0,Tabel5[[Name]:[Name]],\"\")","v":""}]
[{"$f":"IF(ISERROR(RIGHT(Tabel5[[#This Row],[Description 2]:[Description 2]],LEN(Tabel5[[#This Row],[Description 2]:[Description 2]])-FIND(\":\",Tabel5[[#This Row],[Description 2]:[Description 2]])-1))=FALSE,RIGHT(Tabel5[[#This Row],[Description 2]:[Description 2]],LEN(Tabel5[[#This Row],[Description 2]:[Description 2]])-FIND(\":\",Tabel5[[#This Row],[Description 2]:[Description 2]])-1),\"\")","v":""},"",{"$f":"IF(Tabel5[[Name]:[Name]]>0,Tabel5[[Name]:[Name]],\"\")","v":""}]
[{"$f":"IF(ISERROR(RIGHT(Tabel5[[#This Row],[Description 2]:[Description 2]],LEN(Tabel5[[#This Row],[Description 2]:[Description 2]])-FIND(\":\",Tabel5[[#This Row],[Description 2]:[Description 2]])-1))=FALSE,RIGHT(Tabel5[[#This Row],[Description 2]:[Description 2]],LEN(Tabel5[[#This Row],[Description 2]:[Description 2]])-FIND(\":\",Tabel5[[#This Row],[Description 2]:[Description 2]])-1),\"\")","v":""},{"$f":"IF(ISERROR(LEFT(A66,(FIND(\" \",A66))))=TRUE,A66,LEFT(A66,(FIND(\" \",A66))-1))","v":""},{"$f":"IF(Tabel5[[Name]:[Name]]>0,Tabel5[[Name]:[Name]],\"\")","v":""}]
[{"$f":"IF(ISERROR(RIGHT(Tabel5[[#This Row],[Description 2]:[Description 2]],LEN(Tabel5[[#This Row],[Description 2]:[Description 2]])-FIND(\":\",Tabel5[[#This Row],[Description 2]:[Description 2]])-1))=FALSE,RIGHT(Tabel5[[#This Row],[Description 2]:[Description 2]],LEN(Tabel5[[#This Row],[Description 2]:[Description 2]])-FIND(\":\",Tabel5[[#This Row],[Description 2]:[Description 2]])-1),\"\")","v":""},"",{"$f":"IF(Tabel5[[Name]:[Name]]>0,Tabel5[[Name]:[Name]],\"\")","v":""}]
[{"$f":"IF(ISERROR(RIGHT(Tabel5[[#This Row],[Description 2]:[Description 2]],LEN(Tabel5[[#This Row],[Description 2]:[Description 2]])-FIND(\":\",Tabel5[[#This Row],[Description 2]:[Description 2]])-1))=FALSE,RIGHT(Tabel5[[#This Row],[Description 2]:[Description 2]],LEN(Tabel5[[#This Row],[Description 2]:[Description 2]])-FIND(\":\",Tabel5[[#This Row],[Description 2]:[Description 2]])-1),\"\")","v":""},"",{"$f":"IF(Tabel5[[Name]:[Name]]>0,Tabel5[[Name]:[Name]],\"\")","v":""}]
[{"$f":"IF(ISERROR(RIGHT(Tabel5[[#This Row],[Description 2]:[Description 2]],LEN(Tabel5[[#This Row],[Description 2]:[Description 2]])-FIND(\":\",Tabel5[[#This Row],[Description 2]:[Description 2]])-1))=FALSE,RIGHT(Tabel5[[#This Row],[Description 2]:[Description 2]],LEN(Tabel5[[#This Row],[Description 2]:[Description 2]])-FIND(\":\",Tabel5[[#This Row],[Description 2]:[Description 2]])-1),\"\")","v":""},"",{"$f":"IF(Tabel5[[Name]:[Name]]>0,Tabel5[[Name]:[Name]],\"\")","v":""}]
[{"$f":"IF(ISERROR(RIGHT(Tabel5[[#This Row],[Description 2]:[Description 2]],LEN(Tabel5[[#This Row],[Description 2]:[Description 2]])-FIND(\":\",Tabel5[[#This Row],[Description 2]:[Description 2]])-1))=FALSE,RIGHT(Tabel5[[#This Row],[Description 2]:[Description 2]],LEN(Tabel5[[#This Row],[Description 2]:[Description 2]])-FIND(\":\",Tabel5[[#This Row],[Description 2]:[Description 2]])-1),\"\")","v":""},"",{"$f":"IF(Tabel5[[Name]:[Name]]>0,Tabel5[[Name]:[Name]],\"\")","v":""}]
[{"$f":"IF(ISERROR(RIGHT(Tabel5[[#This Row],[Description 2]:[Description 2]],LEN(Tabel5[[#This Row],[Description 2]:[Description 2]])-FIND(\":\",Tabel5[[#This Row],[Description 2]:[Description 2]])-1))=FALSE,RIGHT(Tabel5[[#This Row],[Description 2]:[Description 2]],LEN(Tabel5[[#This Row],[Description 2]:[Description 2]])-FIND(\":\",Tabel5[[#This Row],[Description 2]:[Description 2]])-1),\"\")","v":""},"",{"$f":"IF(Tabel5[[Name]:[Name]]>0,Tabel5[[Name]:[Name]],\"\")","v":""}]
[{"$f":"IF(ISERROR(RIGHT(Tabel5[[#This Row],[Description 2]:[Description 2]],LEN(Tabel5[[#This Row],[Description 2]:[Description 2]])-FIND(\":\",Tabel5[[#This Row],[Description 2]:[Description 2]])-1))=FALSE,RIGHT(Tabel5[[#This Row],[Description 2]:[Description 2]],LEN(Tabel5[[#This Row],[Description 2]:[Description 2]])-FIND(\":\",Tabel5[[#This Row],[Description 2]:[Description 2]])-1),\"\")","v":""},"",{"$f":"IF(Tabel5[[Name]:[Name]]>0,Tabel5[[Name]:[Name]],\"\")","v":""}]
[{"$f":"IF(ISERROR(RIGHT(Tabel5[[#This Row],[Description 2]:[Description 2]],LEN(Tabel5[[#This Row],[Description 2]:[Description 2]])-FIND(\":\",Tabel5[[#This Row],[Description 2]:[Description 2]])-1))=FALSE,RIGHT(Tabel5[[#This Row],[Description 2]:[Description 2]],LEN(Tabel5[[#This Row],[Description 2]:[Description 2]])-FIND(\":\",Tabel5[[#This Row],[Description 2]:[Description 2]])-1),\"\")","v":""},"",{"$f":"IF(Tabel5[[Name]:[Name]]>0,Tabel5[[Name]:[Name]],\"\")","v":""}]
[{"$f":"IF(ISERROR(RIGHT(Tabel5[[#This Row],[Description 2]:[Description 2]],LEN(Tabel5[[#This Row],[Description 2]:[Description 2]])-FIND(\":\",Tabel5[[#This Row],[Description 2]:[Description 2]])-1))=FALSE,RIGHT(Tabel5[[#This Row],[Description 2]:[Description 2]],LEN(Tabel5[[#This Row],[Description 2]:[Description 2]])-FIND(\":\",Tabel5[[#This Row],[Description 2]:[Description 2]])-1),\"\")","v":""},"",{"$f":"IF(Tabel5[[Name]:[Name]]>0,Tabel5[[Name]:[Name]],\"\")","v":""}]
[{"$f":"IF(ISERROR(RIGHT(Tabel5[[#This Row],[Description 2]:[Description 2]],LEN(Tabel5[[#This Row],[Description 2]:[Description 2]])-FIND(\":\",Tabel5[[#This Row],[Description 2]:[Description 2]])-1))=FALSE,RIGHT(Tabel5[[#This Row],[Description 2]:[Description 2]],LEN(Tabel5[[#This Row],[Description 2]:[Description 2]])-FIND(\":\",Tabel5[[#This Row],[Description 2]:[Description 2]])-1),\"\")","v":""},"",{"$f":"IF(Tabel5[[Name]:[Name]]>0,Tabel5[[Name]:[Name]],\"\")","v":""}]
[{"$f":"IF(ISERROR(RIGHT(Tabel5[[#This Row],[Description 2]:[Description 2]],LEN(Tabel5[[#This Row],[Description 2]:[Description 2]])-FIND(\":\",Tabel5[[#This Row],[Description 2]:[Description 2]])-1))=FALSE,RIGHT(Tabel5[[#This Row],[Description 2]:[Description 2]],LEN(Tabel5[[#This Row],[Description 2]:[Description 2]])-FIND(\":\",Tabel5[[#This Row],[Description 2]:[Description 2]])-1),\"\")","v":""},"",{"$f":"IF(Tabel5[[Name]:[Name]]>0,Tabel5[[Name]:[Name]],\"\")","v":""}]
[{"$f":"IF(ISERROR(RIGHT(Tabel5[[#This Row],[Description 2]:[Description 2]],LEN(Tabel5[[#This Row],[Description 2]:[Description 2]])-FIND(\":\",Tabel5[[#This Row],[Description 2]:[Description 2]])-1))=FALSE,RIGHT(Tabel5[[#This Row],[Description 2]:[Description 2]],LEN(Tabel5[[#This Row],[Description 2]:[Description 2]])-FIND(\":\",Tabel5[[#This Row],[Description 2]:[Description 2]])-1),\"\")","v":""},"",{"$f":"IF(Tabel5[[Name]:[Name]]>0,Tabel5[[Name]:[Name]],\"\")","v":""}]
[{"$f":"IF(ISERROR(RIGHT(Tabel5[[#This Row],[Description 2]:[Description 2]],LEN(Tabel5[[#This Row],[Description 2]:[Description 2]])-FIND(\":\",Tabel5[[#This Row],[Description 2]:[Description 2]])-1))=FALSE,RIGHT(Tabel5[[#This Row],[Description 2]:[Description 2]],LEN(Tabel5[[#This Row],[Description 2]:[Description 2]])-FIND(\":\",Tabel5[[#This Row],[Description 2]:[Description 2]])-1),\"\")","v":""},"",{"$f":"IF(Tabel5[[Name]:[Name]]>0,Tabel5[[Name]:[Name]],\"\")","v":""}]
[{"$f":"IF(ISERROR(RIGHT(Tabel5[[#This Row],[Description 2]:[Description 2]],LEN(Tabel5[[#This Row],[Description 2]:[Description 2]])-FIND(\":\",Tabel5[[#This Row],[Description 2]:[Description 2]])-1))=FALSE,RIGHT(Tabel5[[#This Row],[Description 2]:[Description 2]],LEN(Tabel5[[#This Row],[Description 2]:[Description 2]])-FIND(\":\",Tabel5[[#This Row],[Description 2]:[Description 2]])-1),\"\")","v":""},"",{"$f":"IF(Tabel5[[Name]:[Name]]>0,Tabel5[[Name]:[Name]],\"\")","v":""}]
[{"$f":"IF(ISERROR(RIGHT(Tabel5[[#This Row],[Description 2]:[Description 2]],LEN(Tabel5[[#This Row],[Description 2]:[Description 2]])-FIND(\":\",Tabel5[[#This Row],[Description 2]:[Description 2]])-1))=FALSE,RIGHT(Tabel5[[#This Row],[Description 2]:[Description 2]],LEN(Tabel5[[#This Row],[Description 2]:[Description 2]])-FIND(\":\",Tabel5[[#This Row],[Description 2]:[Description 2]])-1),\"\")","v":""},"",{"$f":"IF(Tabel5[[Name]:[Name]]>0,Tabel5[[Name]:[Name]],\"\")","v":""}]
[{"$f":"IF(ISERROR(RIGHT(Tabel5[[#This Row],[Description 2]:[Description 2]],LEN(Tabel5[[#This Row],[Description 2]:[Description 2]])-FIND(\":\",Tabel5[[#This Row],[Description 2]:[Description 2]])-1))=FALSE,RIGHT(Tabel5[[#This Row],[Description 2]:[Description 2]],LEN(Tabel5[[#This Row],[Description 2]:[Description 2]])-FIND(\":\",Tabel5[[#This Row],[Description 2]:[Description 2]])-1),\"\")","v":""},"",{"$f":"IF(Tabel5[[Name]:[Name]]>0,Tabel5[[Name]:[Name]],\"\")","v":""}]
[{"$f":"IF(ISERROR(RIGHT(Tabel5[[#This Row],[Description 2]:[Description 2]],LEN(Tabel5[[#This Row],[Description 2]:[Description 2]])-FIND(\":\",Tabel5[[#This Row],[Description 2]:[Description 2]])-1))=FALSE,RIGHT(Tabel5[[#This Row],[Description 2]:[Description 2]],LEN(Tabel5[[#This Row],[Description 2]:[Description 2]])-FIND(\":\",Tabel5[[#This Row],[Description 2]:[Description 2]])-1),\"\")","v":""},"",{"$f":"IF(Tabel5[[Name]:[Name]]>0,Tabel5[[Name]:[Name]],\"\")","v":""}]
[{"$f":"IF(ISERROR(RIGHT(Tabel5[[#This Row],[Description 2]:[Description 2]],LEN(Tabel5[[#This Row],[Description 2]:[Description 2]])-FIND(\":\",Tabel5[[#This Row],[Description 2]:[Description 2]])-1))=FALSE,RIGHT(Tabel5[[#This Row],[Description 2]:[Description 2]],LEN(Tabel5[[#This Row],[Description 2]:[Description 2]])-FIND(\":\",Tabel5[[#This Row],[Description 2]:[Description 2]])-1),\"\")","v":""},"",{"$f":"IF(Tabel5[[Name]:[Name]]>0,Tabel5[[Name]:[Name]],\"\")","v":""}]
[{"$f":"IF(ISERROR(RIGHT(Tabel5[[#This Row],[Description 2]:[Description 2]],LEN(Tabel5[[#This Row],[Description 2]:[Description 2]])-FIND(\":\",Tabel5[[#This Row],[Description 2]:[Description 2]])-1))=FALSE,RIGHT(Tabel5[[#This Row],[Description 2]:[Description 2]],LEN(Tabel5[[#This Row],[Description 2]:[Description 2]])-FIND(\":\",Tabel5[[#This Row],[Description 2]:[Description 2]])-1),\"\")","v":""},"",{"$f":"IF(Tabel5[[Name]:[Name]]>0,Tabel5[[Name]:[Name]],\"\")","v":""}]
[{"$f":"IF(ISERROR(RIGHT(Tabel5[[#This Row],[Description 2]:[Description 2]],LEN(Tabel5[[#This Row],[Description 2]:[Description 2]])-FIND(\":\",Tabel5[[#This Row],[Description 2]:[Description 2]])-1))=FALSE,RIGHT(Tabel5[[#This Row],[Description 2]:[Description 2]],LEN(Tabel5[[#This Row],[Description 2]:[Description 2]])-FIND(\":\",Tabel5[[#This Row],[Description 2]:[Description 2]])-1),\"\")","v":""},"",{"$f":"IF(Tabel5[[Name]:[Name]]>0,Tabel5[[Name]:[Name]],\"\")","v":""}]
[{"$f":"IF(ISERROR(RIGHT(Tabel5[[#This Row],[Description 2]:[Description 2]],LEN(Tabel5[[#This Row],[Description 2]:[Description 2]])-FIND(\":\",Tabel5[[#This Row],[Description 2]:[Description 2]])-1))=FALSE,RIGHT(Tabel5[[#This Row],[Description 2]:[Description 2]],LEN(Tabel5[[#This Row],[Description 2]:[Description 2]])-FIND(\":\",Tabel5[[#This Row],[Description 2]:[Description 2]])-1),\"\")","v":""},"",{"$f":"IF(Tabel5[[Name]:[Name]]>0,Tabel5[[Name]:[Name]],\"\")","v":""}]
[{"$f":"IF(ISERROR(RIGHT(Tabel5[[#This Row],[Description 2]:[Description 2]],LEN(Tabel5[[#This Row],[Description 2]:[Description 2]])-FIND(\":\",Tabel5[[#This Row],[Description 2]:[Description 2]])-1))=FALSE,RIGHT(Tabel5[[#This Row],[Description 2]:[Description 2]],LEN(Tabel5[[#This Row],[Description 2]:[Description 2]])-FIND(\":\",Tabel5[[#This Row],[Description 2]:[Description 2]])-1),\"\")","v":""},"",{"$f":"IF(Tabel5[[Name]:[Name]]>0,Tabel5[[Name]:[Name]],\"\")","v":""}]
[{"$f":"IF(ISERROR(RIGHT(Tabel5[[#This Row],[Description 2]:[Description 2]],LEN(Tabel5[[#This Row],[Description 2]:[Description 2]])-FIND(\":\",Tabel5[[#This Row],[Description 2]:[Description 2]])-1))=FALSE,RIGHT(Tabel5[[#This Row],[Description 2]:[Description 2]],LEN(Tabel5[[#This Row],[Description 2]:[Description 2]])-FIND(\":\",Tabel5[[#This Row],[Description 2]:[Description 2]])-1),\"\")","v":""},"",{"$f":"IF(Tabel5[[Name]:[Name]]>0,Tabel5[[Name]:[Name]],\"\")","v":""}]
[{"$f":"IF(ISERROR(RIGHT(Tabel5[[#This Row],[Description 2]:[Description 2]],LEN(Tabel5[[#This Row],[Description 2]:[Description 2]])-FIND(\":\",Tabel5[[#This Row],[Description 2]:[Description 2]])-1))=FALSE,RIGHT(Tabel5[[#This Row],[Description 2]:[Description 2]],LEN(Tabel5[[#This Row],[Description 2]:[Description 2]])-FIND(\":\",Tabel5[[#This Row],[Description 2]:[Description 2]])-1),\"\")","v":""},"",{"$f":"IF(Tabel5[[Name]:[Name]]>0,Tabel5[[Name]:[Name]],\"\")","v":""}]
[{"$f":"IF(ISERROR(RIGHT(Tabel5[[#This Row],[Description 2]:[Description 2]],LEN(Tabel5[[#This Row],[Description 2]:[Description 2]])-FIND(\":\",Tabel5[[#This Row],[Description 2]:[Description 2]])-1))=FALSE,RIGHT(Tabel5[[#This Row],[Description 2]:[Description 2]],LEN(Tabel5[[#This Row],[Description 2]:[Description 2]])-FIND(\":\",Tabel5[[#This Row],[Description 2]:[Description 2]])-1),\"\")","v":""},"",{"$f":"IF(Tabel5[[Name]:[Name]]>0,Tabel5[[Name]:[Name]],\"\")","v":""}]
[{"$f":"IF(ISERROR(RIGHT(Tabel5[[#This Row],[Description 2]:[Description 2]],LEN(Tabel5[[#This Row],[Description 2]:[Description 2]])-FIND(\":\",Tabel5[[#This Row],[Description 2]:[Description 2]])-1))=FALSE,RIGHT(Tabel5[[#This Row],[Description 2]:[Description 2]],LEN(Tabel5[[#This Row],[Description 2]:[Description 2]])-FIND(\":\",Tabel5[[#This Row],[Description 2]:[Description 2]])-1),\"\")","v":""},"",{"$f":"IF(Tabel5[[Name]:[Name]]>0,Tabel5[[Name]:[Name]],\"\")","v":""}]
[{"$f":"IF(ISERROR(RIGHT(Tabel5[[#This Row],[Description 2]:[Description 2]],LEN(Tabel5[[#This Row],[Description 2]:[Description 2]])-FIND(\":\",Tabel5[[#This Row],[Description 2]:[Description 2]])-1))=FALSE,RIGHT(Tabel5[[#This Row],[Description 2]:[Description 2]],LEN(Tabel5[[#This Row],[Description 2]:[Description 2]])-FIND(\":\",Tabel5[[#This Row],[Description 2]:[Description 2]])-1),\"\")","v":""},"",{"$f":"IF(Tabel5[[Name]:[Name]]>0,Tabel5[[Name]:[Name]],\"\")","v":""}]
[{"$f":"IF(ISERROR(RIGHT(Tabel5[[#This Row],[Description 2]:[Description 2]],LEN(Tabel5[[#This Row],[Description 2]:[Description 2]])-FIND(\":\",Tabel5[[#This Row],[Description 2]:[Description 2]])-1))=FALSE,RIGHT(Tabel5[[#This Row],[Description 2]:[Description 2]],LEN(Tabel5[[#This Row],[Description 2]:[Description 2]])-FIND(\":\",Tabel5[[#This Row],[Description 2]:[Description 2]])-1),\"\")","v":""},"",{"$f":"IF(Tabel5[[Name]:[Name]]>0,Tabel5[[Name]:[Name]],\"\")","v":""}]
[{"$f":"IF(ISERROR(RIGHT(Tabel5[[#This Row],[Description 2]:[Description 2]],LEN(Tabel5[[#This Row],[Description 2]:[Description 2]])-FIND(\":\",Tabel5[[#This Row],[Description 2]:[Description 2]])-1))=FALSE,RIGHT(Tabel5[[#This Row],[Description 2]:[Description 2]],LEN(Tabel5[[#This Row],[Description 2]:[Description 2]])-FIND(\":\",Tabel5[[#This Row],[Description 2]:[Description 2]])-1),\"\")","v":""},"",{"$f":"IF(Tabel5[[Name]:[Name]]>0,Tabel5[[Name]:[Name]],\"\")","v":""}]
[{"$f":"IF(ISERROR(RIGHT(Tabel5[[#This Row],[Description 2]:[Description 2]],LEN(Tabel5[[#This Row],[Description 2]:[Description 2]])-FIND(\":\",Tabel5[[#This Row],[Description 2]:[Description 2]])-1))=FALSE,RIGHT(Tabel5[[#This Row],[Description 2]:[Description 2]],LEN(Tabel5[[#This Row],[Description 2]:[Description 2]])-FIND(\":\",Tabel5[[#This Row],[Description 2]:[Description 2]])-1),\"\")","v":""},"",{"$f":"IF(Tabel5[[Name]:[Name]]>0,Tabel5[[Name]:[Name]],\"\")","v":""}]
[{"$f":"IF(ISERROR(RIGHT(Tabel5[[#This Row],[Description 2]:[Description 2]],LEN(Tabel5[[#This Row],[Description 2]:[Description 2]])-FIND(\":\",Tabel5[[#This Row],[Description 2]:[Description 2]])-1))=FALSE,RIGHT(Tabel5[[#This Row],[Description 2]:[Description 2]],LEN(Tabel5[[#This Row],[Description 2]:[Description 2]])-FIND(\":\",Tabel5[[#This Row],[Description 2]:[Description 2]])-1),\"\")","v":""},"",{"$f":"IF(Tabel5[[Name]:[Name]]>0,Tabel5[[Name]:[Name]],\"\")","v":""}]
[{"$f":"IF(ISERROR(RIGHT(Tabel5[[#This Row],[Description 2]:[Description 2]],LEN(Tabel5[[#This Row],[Description 2]:[Description 2]])-FIND(\":\",Tabel5[[#This Row],[Description 2]:[Description 2]])-1))=FALSE,RIGHT(Tabel5[[#This Row],[Description 2]:[Description 2]],LEN(Tabel5[[#This Row],[Description 2]:[Description 2]])-FIND(\":\",Tabel5[[#This Row],[Description 2]:[Description 2]])-1),\"\")","v":""},"",{"$f":"IF(Tabel5[[Name]:[Name]]>0,Tabel5[[Name]:[Name]],\"\")","v":""}]
[{"$f":"IF(ISERROR(RIGHT(Tabel5[[#This Row],[Description 2]:[Description 2]],LEN(Tabel5[[#This Row],[Description 2]:[Description 2]])-FIND(\":\",Tabel5[[#This Row],[Description 2]:[Description 2]])-1))=FALSE,RIGHT(Tabel5[[#This Row],[Description 2]:[Description 2]],LEN(Tabel5[[#This Row],[Description 2]:[Description 2]])-FIND(\":\",Tabel5[[#This Row],[Description 2]:[Description 2]])-1),\"\")","v":""},"",{"$f":"IF(Tabel5[[Name]:[Name]]>0,Tabel5[[Name]:[Name]],\"\")","v":""}]
[{"$f":"IF(ISERROR(RIGHT(Tabel5[[#This Row],[Description 2]:[Description 2]],LEN(Tabel5[[#This Row],[Description 2]:[Description 2]])-FIND(\":\",Tabel5[[#This Row],[Description 2]:[Description 2]])-1))=FALSE,RIGHT(Tabel5[[#This Row],[Description 2]:[Description 2]],LEN(Tabel5[[#This Row],[Description 2]:[Description 2]])-FIND(\":\",Tabel5[[#This Row],[Description 2]:[Description 2]])-1),\"\")","v":""},"",{"$f":"IF(Tabel5[[Name]:[Name]]>0,Tabel5[[Name]:[Name]],\"\")","v":""}]
[{"$f":"IF(ISERROR(RIGHT(Tabel5[[#This Row],[Description 2]:[Description 2]],LEN(Tabel5[[#This Row],[Description 2]:[Description 2]])-FIND(\":\",Tabel5[[#This Row],[Description 2]:[Description 2]])-1))=FALSE,RIGHT(Tabel5[[#This Row],[Description 2]:[Description 2]],LEN(Tabel5[[#This Row],[Description 2]:[Description 2]])-FIND(\":\",Tabel5[[#This Row],[Description 2]:[Description 2]])-1),\"\")","v":""},"",{"$f":"IF(Tabel5[[Name]:[Name]]>0,Tabel5[[Name]:[Name]],\"\")","v":""}]
[{"$f":"IF(ISERROR(RIGHT(Tabel5[[#This Row],[Description 2]:[Description 2]],LEN(Tabel5[[#This Row],[Description 2]:[Description 2]])-FIND(\":\",Tabel5[[#This Row],[Description 2]:[Description 2]])-1))=FALSE,RIGHT(Tabel5[[#This Row],[Description 2]:[Description 2]],LEN(Tabel5[[#This Row],[Description 2]:[Description 2]])-FIND(\":\",Tabel5[[#This Row],[Description 2]:[Description 2]])-1),\"\")","v":""},"",{"$f":"IF(Tabel5[[Name]:[Name]]>0,Tabel5[[Name]:[Name]],\"\")","v":""}]
[{"$f":"IF(ISERROR(RIGHT(Tabel5[[#This Row],[Description 2]:[Description 2]],LEN(Tabel5[[#This Row],[Description 2]:[Description 2]])-FIND(\":\",Tabel5[[#This Row],[Description 2]:[Description 2]])-1))=FALSE,RIGHT(Tabel5[[#This Row],[Description 2]:[Description 2]],LEN(Tabel5[[#This Row],[Description 2]:[Description 2]])-FIND(\":\",Tabel5[[#This Row],[Description 2]:[Description 2]])-1),\"\")","v":""},"",{"$f":"IF(Tabel5[[Name]:[Name]]>0,Tabel5[[Name]:[Name]],\"\")","v":""}]
[{"$f":"IF(ISERROR(RIGHT(Tabel5[[#This Row],[Description 2]:[Description 2]],LEN(Tabel5[[#This Row],[Description 2]:[Description 2]])-FIND(\":\",Tabel5[[#This Row],[Description 2]:[Description 2]])-1))=FALSE,RIGHT(Tabel5[[#This Row],[Description 2]:[Description 2]],LEN(Tabel5[[#This Row],[Description 2]:[Description 2]])-FIND(\":\",Tabel5[[#This Row],[Description 2]:[Description 2]])-1),\"\")","v":""},"",{"$f":"IF(Tabel5[[Name]:[Name]]>0,Tabel5[[Name]:[Name]],\"\")","v":""}]
[{"$f":"IF(ISERROR(RIGHT(Tabel5[[#This Row],[Description 2]:[Description 2]],LEN(Tabel5[[#This Row],[Description 2]:[Description 2]])-FIND(\":\",Tabel5[[#This Row],[Description 2]:[Description 2]])-1))=FALSE,RIGHT(Tabel5[[#This Row],[Description 2]:[Description 2]],LEN(Tabel5[[#This Row],[Description 2]:[Description 2]])-FIND(\":\",Tabel5[[#This Row],[Description 2]:[Description 2]])-1),\"\")","v":""},"",{"$f":"IF(Tabel5[[Name]:[Name]]>0,Tabel5[[Name]:[Name]],\"\")","v":""}]
[{"$f":"IF(ISERROR(RIGHT(Tabel5[[#This Row],[Description 2]:[Description 2]],LEN(Tabel5[[#This Row],[Description 2]:[Description 2]])-FIND(\":\",Tabel5[[#This Row],[Description 2]:[Description 2]])-1))=FALSE,RIGHT(Tabel5[[#This Row],[Description 2]:[Description 2]],LEN(Tabel5[[#This Row],[Description 2]:[Description 2]])-FIND(\":\",Tabel5[[#This Row],[Description 2]:[Description 2]])-1),\"\")","v":""},"",{"$f":"IF(Tabel5[[Name]:[Name]]>0,Tabel5[[Name]:[Name]],\"\")","v":""}]
[{"$f":"IF(ISERROR(RIGHT(Tabel5[[#This Row],[Description 2]:[Description 2]],LEN(Tabel5[[#This Row],[Description 2]:[Description 2]])-FIND(\":\",Tabel5[[#This Row],[Description 2]:[Description 2]])-1))=FALSE,RIGHT(Tabel5[[#This Row],[Description 2]:[Description 2]],LEN(Tabel5[[#This Row],[Description 2]:[Description 2]])-FIND(\":\",Tabel5[[#This Row],[Description 2]:[Description 2]])-1),\"\")","v":""},"",{"$f":"IF(Tabel5[[Name]:[Name]]>0,Tabel5[[Name]:[Name]],\"\")","v":""}]
[{"$f":"IF(ISERROR(RIGHT(Tabel5[[#This Row],[Description 2]:[Description 2]],LEN(Tabel5[[#This Row],[Description 2]:[Description 2]])-FIND(\":\",Tabel5[[#This Row],[Description 2]:[Description 2]])-1))=FALSE,RIGHT(Tabel5[[#This Row],[Description 2]:[Description 2]],LEN(Tabel5[[#This Row],[Description 2]:[Description 2]])-FIND(\":\",Tabel5[[#This Row],[Description 2]:[Description 2]])-1),\"\")","v":""},"",{"$f":"IF(Tabel5[[Name]:[Name]]>0,Tabel5[[Name]:[Name]],\"\")","v":""}]
[{"$f":"IF(ISERROR(RIGHT(Tabel5[[#This Row],[Description 2]:[Description 2]],LEN(Tabel5[[#This Row],[Description 2]:[Description 2]])-FIND(\":\",Tabel5[[#This Row],[Description 2]:[Description 2]])-1))=FALSE,RIGHT(Tabel5[[#This Row],[Description 2]:[Description 2]],LEN(Tabel5[[#This Row],[Description 2]:[Description 2]])-FIND(\":\",Tabel5[[#This Row],[Description 2]:[Description 2]])-1),\"\")","v":""},"",{"$f":"IF(Tabel5[[Name]:[Name]]>0,Tabel5[[Name]:[Name]],\"\")","v":""}]
[{"$f":"IF(ISERROR(RIGHT(Tabel5[[#This Row],[Description 2]:[Description 2]],LEN(Tabel5[[#This Row],[Description 2]:[Description 2]])-FIND(\":\",Tabel5[[#This Row],[Description 2]:[Description 2]])-1))=FALSE,RIGHT(Tabel5[[#This Row],[Description 2]:[Description 2]],LEN(Tabel5[[#This Row],[Description 2]:[Description 2]])-FIND(\":\",Tabel5[[#This Row],[Description 2]:[Description 2]])-1),\"\")","v":""},"",{"$f":"IF(Tabel5[[Name]:[Name]]>0,Tabel5[[Name]:[Name]],\"\")","v":""}]
[{"$f":"IF(ISERROR(RIGHT(Tabel5[[#This Row],[Description 2]:[Description 2]],LEN(Tabel5[[#This Row],[Description 2]:[Description 2]])-FIND(\":\",Tabel5[[#This Row],[Description 2]:[Description 2]])-1))=FALSE,RIGHT(Tabel5[[#This Row],[Description 2]:[Description 2]],LEN(Tabel5[[#This Row],[Description 2]:[Description 2]])-FIND(\":\",Tabel5[[#This Row],[Description 2]:[Description 2]])-1),\"\")","v":""},"",{"$f":"IF(Tabel5[[Name]:[Name]]>0,Tabel5[[Name]:[Name]],\"\")","v":""}]
[{"$f":"IF(ISERROR(RIGHT(Tabel5[[#This Row],[Description 2]:[Description 2]],LEN(Tabel5[[#This Row],[Description 2]:[Description 2]])-FIND(\":\",Tabel5[[#This Row],[Description 2]:[Description 2]])-1))=FALSE,RIGHT(Tabel5[[#This Row],[Description 2]:[Description 2]],LEN(Tabel5[[#This Row],[Description 2]:[Description 2]])-FIND(\":\",Tabel5[[#This Row],[Description 2]:[Description 2]])-1),\"\")","v":""},"",{"$f":"IF(Tabel5[[Name]:[Name]]>0,Tabel5[[Name]:[Name]],\"\")","v":""}]
[{"$f":"IF(ISERROR(RIGHT(Tabel5[[#This Row],[Description 2]:[Description 2]],LEN(Tabel5[[#This Row],[Description 2]:[Description 2]])-FIND(\":\",Tabel5[[#This Row],[Description 2]:[Description 2]])-1))=FALSE,RIGHT(Tabel5[[#This Row],[Description 2]:[Description 2]],LEN(Tabel5[[#This Row],[Description 2]:[Description 2]])-FIND(\":\",Tabel5[[#This Row],[Description 2]:[Description 2]])-1),\"\")","v":""},"",{"$f":"IF(Tabel5[[Name]:[Name]]>0,Tabel5[[Name]:[Name]],\"\")","v":""}]
[{"$f":"IF(ISERROR(RIGHT(Tabel5[[#This Row],[Description 2]:[Description 2]],LEN(Tabel5[[#This Row],[Description 2]:[Description 2]])-FIND(\":\",Tabel5[[#This Row],[Description 2]:[Description 2]])-1))=FALSE,RIGHT(Tabel5[[#This Row],[Description 2]:[Description 2]],LEN(Tabel5[[#This Row],[Description 2]:[Description 2]])-FIND(\":\",Tabel5[[#This Row],[Description 2]:[Description 2]])-1),\"\")","v":""},"",{"$f":"IF(Tabel5[[Name]:[Name]]>0,Tabel5[[Name]:[Name]],\"\")","v":""}]
[{"$f":"IF(ISERROR(RIGHT(Tabel5[[#This Row],[Description 2]:[Description 2]],LEN(Tabel5[[#This Row],[Description 2]:[Description 2]])-FIND(\":\",Tabel5[[#This Row],[Description 2]:[Description 2]])-1))=FALSE,RIGHT(Tabel5[[#This Row],[Description 2]:[Description 2]],LEN(Tabel5[[#This Row],[Description 2]:[Description 2]])-FIND(\":\",Tabel5[[#This Row],[Description 2]:[Description 2]])-1),\"\")","v":""},"",{"$f":"IF(Tabel5[[Name]:[Name]]>0,Tabel5[[Name]:[Name]],\"\")","v":""}]
[{"$f":"IF(ISERROR(RIGHT(Tabel5[[#This Row],[Description 2]:[Description 2]],LEN(Tabel5[[#This Row],[Description 2]:[Description 2]])-FIND(\":\",Tabel5[[#This Row],[Description 2]:[Description 2]])-1))=FALSE,RIGHT(Tabel5[[#This Row],[Description 2]:[Description 2]],LEN(Tabel5[[#This Row],[Description 2]:[Description 2]])-FIND(\":\",Tabel5[[#This Row],[Description 2]:[Description 2]])-1),\"\")","v":""},"",{"$f":"IF(Tabel5[[Name]:[Name]]>0,Tabel5[[Name]:[Name]],\"\")","v":""}]
[{"$f":"IF(ISERROR(RIGHT(Tabel5[[#This Row],[Description 2]:[Description 2]],LEN(Tabel5[[#This Row],[Description 2]:[Description 2]])-FIND(\":\",Tabel5[[#This Row],[Description 2]:[Description 2]])-1))=FALSE,RIGHT(Tabel5[[#This Row],[Description 2]:[Description 2]],LEN(Tabel5[[#This Row],[Description 2]:[Description 2]])-FIND(\":\",Tabel5[[#This Row],[Description 2]:[Description 2]])-1),\"\")","v":""},"",{"$f":"IF(Tabel5[[Name]:[Name]]>0,Tabel5[[Name]:[Name]],\"\")","v":""}]
[{"$f":"IF(ISERROR(RIGHT(Tabel5[[#This Row],[Description 2]:[Description 2]],LEN(Tabel5[[#This Row],[Description 2]:[Description 2]])-FIND(\":\",Tabel5[[#This Row],[Description 2]:[Description 2]])-1))=FALSE,RIGHT(Tabel5[[#This Row],[Description 2]:[Description 2]],LEN(Tabel5[[#This Row],[Description 2]:[Description 2]])-FIND(\":\",Tabel5[[#This Row],[Description 2]:[Description 2]])-1),\"\")","v":""},"",{"$f":"IF(Tabel5[[Name]:[Name]]>0,Tabel5[[Name]:[Name]],\"\")","v":""}]
[{"$f":"IF(ISERROR(RIGHT(Tabel5[[#This Row],[Description 2]:[Description 2]],LEN(Tabel5[[#This Row],[Description 2]:[Description 2]])-FIND(\":\",Tabel5[[#This Row],[Description 2]:[Description 2]])-1))=FALSE,RIGHT(Tabel5[[#This Row],[Description 2]:[Description 2]],LEN(Tabel5[[#This Row],[Description 2]:[Description 2]])-FIND(\":\",Tabel5[[#This Row],[Description 2]:[Description 2]])-1),\"\")","v":""},"",{"$f":"IF(Tabel5[[Name]:[Name]]>0,Tabel5[[Name]:[Name]],\"\")","v":""}]
[{"$f":"IF(ISERROR(RIGHT(Tabel5[[#This Row],[Description 2]:[Description 2]],LEN(Tabel5[[#This Row],[Description 2]:[Description 2]])-FIND(\":\",Tabel5[[#This Row],[Description 2]:[Description 2]])-1))=FALSE,RIGHT(Tabel5[[#This Row],[Description 2]:[Description 2]],LEN(Tabel5[[#This Row],[Description 2]:[Description 2]])-FIND(\":\",Tabel5[[#This Row],[Description 2]:[Description 2]])-1),\"\")","v":""},"",{"$f":"IF(Tabel5[[Name]:[Name]]>0,Tabel5[[Name]:[Name]],\"\")","v":""}]
[{"$f":"IF(ISERROR(RIGHT(Tabel5[[#This Row],[Description 2]:[Description 2]],LEN(Tabel5[[#This Row],[Description 2]:[Description 2]])-FIND(\":\",Tabel5[[#This Row],[Description 2]:[Description 2]])-1))=FALSE,RIGHT(Tabel5[[#This Row],[Description 2]:[Description 2]],LEN(Tabel5[[#This Row],[Description 2]:[Description 2]])-FIND(\":\",Tabel5[[#This Row],[Description 2]:[Description 2]])-1),\"\")","v":""},"",{"$f":"IF(Tabel5[[Name]:[Name]]>0,Tabel5[[Name]:[Name]],\"\")","v":""}]
[{"$f":"IF(ISERROR(RIGHT(Tabel5[[#This Row],[Description 2]:[Description 2]],LEN(Tabel5[[#This Row],[Description 2]:[Description 2]])-FIND(\":\",Tabel5[[#This Row],[Description 2]:[Description 2]])-1))=FALSE,RIGHT(Tabel5[[#This Row],[Description 2]:[Description 2]],LEN(Tabel5[[#This Row],[Description 2]:[Description 2]])-FIND(\":\",Tabel5[[#This Row],[Description 2]:[Description 2]])-1),\"\")","v":""},"",{"$f":"IF(Tabel5[[Name]:[Name]]>0,Tabel5[[Name]:[Name]],\"\")","v":""}]
[{"$f":"IF(ISERROR(RIGHT(Tabel5[[#This Row],[Description 2]:[Description 2]],LEN(Tabel5[[#This Row],[Description 2]:[Description 2]])-FIND(\":\",Tabel5[[#This Row],[Description 2]:[Description 2]])-1))=FALSE,RIGHT(Tabel5[[#This Row],[Description 2]:[Description 2]],LEN(Tabel5[[#This Row],[Description 2]:[Description 2]])-FIND(\":\",Tabel5[[#This Row],[Description 2]:[Description 2]])-1),\"\")","v":""},"",{"$f":"IF(Tabel5[[Name]:[Name]]>0,Tabel5[[Name]:[Name]],\"\")","v":""}]
[{"$f":"IF(ISERROR(RIGHT(Tabel5[[#This Row],[Description 2]:[Description 2]],LEN(Tabel5[[#This Row],[Description 2]:[Description 2]])-FIND(\":\",Tabel5[[#This Row],[Description 2]:[Description 2]])-1))=FALSE,RIGHT(Tabel5[[#This Row],[Description 2]:[Description 2]],LEN(Tabel5[[#This Row],[Description 2]:[Description 2]])-FIND(\":\",Tabel5[[#This Row],[Description 2]:[Description 2]])-1),\"\")","v":""},"",{"$f":"IF(Tabel5[[Name]:[Name]]>0,Tabel5[[Name]:[Name]],\"\")","v":""}]
[{"$f":"IF(ISERROR(RIGHT(Tabel5[[#This Row],[Description 2]:[Description 2]],LEN(Tabel5[[#This Row],[Description 2]:[Description 2]])-FIND(\":\",Tabel5[[#This Row],[Description 2]:[Description 2]])-1))=FALSE,RIGHT(Tabel5[[#This Row],[Description 2]:[Description 2]],LEN(Tabel5[[#This Row],[Description 2]:[Description 2]])-FIND(\":\",Tabel5[[#This Row],[Description 2]:[Description 2]])-1),\"\")","v":""},"",{"$f":"IF(Tabel5[[Name]:[Name]]>0,Tabel5[[Name]:[Name]],\"\")","v":""}]
[{"$f":"IF(ISERROR(RIGHT(Tabel5[[#This Row],[Description 2]:[Description 2]],LEN(Tabel5[[#This Row],[Description 2]:[Description 2]])-FIND(\":\",Tabel5[[#This Row],[Description 2]:[Description 2]])-1))=FALSE,RIGHT(Tabel5[[#This Row],[Description 2]:[Description 2]],LEN(Tabel5[[#This Row],[Description 2]:[Description 2]])-FIND(\":\",Tabel5[[#This Row],[Description 2]:[Description 2]])-1),\"\")","v":""},"",{"$f":"IF(Tabel5[[Name]:[Name]]>0,Tabel5[[Name]:[Name]],\"\")","v":""}]
[{"$f":"IF(ISERROR(RIGHT(Tabel5[[#This Row],[Description 2]:[Description 2]],LEN(Tabel5[[#This Row],[Description 2]:[Description 2]])-FIND(\":\",Tabel5[[#This Row],[Description 2]:[Description 2]])-1))=FALSE,RIGHT(Tabel5[[#This Row],[Description 2]:[Description 2]],LEN(Tabel5[[#This Row],[Description 2]:[Description 2]])-FIND(\":\",Tabel5[[#This Row],[Description 2]:[Description 2]])-1),\"\")","v":""},"",{"$f":"IF(Tabel5[[Name]:[Name]]>0,Tabel5[[Name]:[Name]],\"\")","v":""}]
[{"$f":"IF(ISERROR(RIGHT(Tabel5[[#This Row],[Description 2]:[Description 2]],LEN(Tabel5[[#This Row],[Description 2]:[Description 2]])-FIND(\":\",Tabel5[[#This Row],[Description 2]:[Description 2]])-1))=FALSE,RIGHT(Tabel5[[#This Row],[Description 2]:[Description 2]],LEN(Tabel5[[#This Row],[Description 2]:[Description 2]])-FIND(\":\",Tabel5[[#This Row],[Description 2]:[Description 2]])-1),\"\")","v":""},"",{"$f":"IF(Tabel5[[Name]:[Name]]>0,Tabel5[[Name]:[Name]],\"\")","v":""}]
[{"$f":"IF(ISERROR(RIGHT(Tabel5[[#This Row],[Description 2]:[Description 2]],LEN(Tabel5[[#This Row],[Description 2]:[Description 2]])-FIND(\":\",Tabel5[[#This Row],[Description 2]:[Description 2]])-1))=FALSE,RIGHT(Tabel5[[#This Row],[Description 2]:[Description 2]],LEN(Tabel5[[#This Row],[Description 2]:[Description 2]])-FIND(\":\",Tabel5[[#This Row],[Description 2]:[Description 2]])-1),\"\")","v":""},"",{"$f":"IF(Tabel5[[Name]:[Name]]>0,Tabel5[[Name]:[Name]],\"\")","v":""}]
[{"$f":"IF(ISERROR(RIGHT(Tabel5[[#This Row],[Description 2]:[Description 2]],LEN(Tabel5[[#This Row],[Description 2]:[Description 2]])-FIND(\":\",Tabel5[[#This Row],[Description 2]:[Description 2]])-1))=FALSE,RIGHT(Tabel5[[#This Row],[Description 2]:[Description 2]],LEN(Tabel5[[#This Row],[Description 2]:[Description 2]])-FIND(\":\",Tabel5[[#This Row],[Description 2]:[Description 2]])-1),\"\")","v":""},"",{"$f":"IF(Tabel5[[Name]:[Name]]>0,Tabel5[[Name]:[Name]],\"\")","v":""}]
[{"$f":"IF(ISERROR(RIGHT(Tabel5[[#This Row],[Description 2]:[Description 2]],LEN(Tabel5[[#This Row],[Description 2]:[Description 2]])-FIND(\":\",Tabel5[[#This Row],[Description 2]:[Description 2]])-1))=FALSE,RIGHT(Tabel5[[#This Row],[Description 2]:[Description 2]],LEN(Tabel5[[#This Row],[Description 2]:[Description 2]])-FIND(\":\",Tabel5[[#This Row],[Description 2]:[Description 2]])-1),\"\")","v":""},{"$f":"IF(ISERROR(LEFT(A130,(FIND(\" \",A130))))=TRUE,A130,LEFT(A130,(FIND(\" \",A130))-1))","v":""},{"$f":"IF(Tabel5[[Name]:[Name]]>0,Tabel5[[Name]:[Name]],\"\")","v":""}]
[{"$f":"IF(ISERROR(RIGHT(Tabel5[[#This Row],[Description 2]:[Description 2]],LEN(Tabel5[[#This Row],[Description 2]:[Description 2]])-FIND(\":\",Tabel5[[#This Row],[Description 2]:[Description 2]])-1))=FALSE,RIGHT(Tabel5[[#This Row],[Description 2]:[Description 2]],LEN(Tabel5[[#This Row],[Description 2]:[Description 2]])-FIND(\":\",Tabel5[[#This Row],[Description 2]:[Description 2]])-1),\"\")","v":""},"",{"$f":"IF(Tabel5[[Name]:[Name]]>0,Tabel5[[Name]:[Name]],\"\")","v":""}]
[{"$f":"IF(ISERROR(RIGHT(Tabel5[[#This Row],[Description 2]:[Description 2]],LEN(Tabel5[[#This Row],[Description 2]:[Description 2]])-FIND(\":\",Tabel5[[#This Row],[Description 2]:[Description 2]])-1))=FALSE,RIGHT(Tabel5[[#This Row],[Description 2]:[Description 2]],LEN(Tabel5[[#This Row],[Description 2]:[Description 2]])-FIND(\":\",Tabel5[[#This Row],[Description 2]:[Description 2]])-1),\"\")","v":""},"",{"$f":"IF(Tabel5[[Name]:[Name]]>0,Tabel5[[Name]:[Name]],\"\")","v":""}]
[{"$f":"IF(ISERROR(RIGHT(Tabel5[[#This Row],[Description 2]:[Description 2]],LEN(Tabel5[[#This Row],[Description 2]:[Description 2]])-FIND(\":\",Tabel5[[#This Row],[Description 2]:[Description 2]])-1))=FALSE,RIGHT(Tabel5[[#This Row],[Description 2]:[Description 2]],LEN(Tabel5[[#This Row],[Description 2]:[Description 2]])-FIND(\":\",Tabel5[[#This Row],[Description 2]:[Description 2]])-1),\"\")","v":""},"",{"$f":"IF(Tabel5[[Name]:[Name]]>0,Tabel5[[Name]:[Name]],\"\")","v":""}]
[{"$f":"IF(ISERROR(RIGHT(Tabel5[[#This Row],[Description 2]:[Description 2]],LEN(Tabel5[[#This Row],[Description 2]:[Description 2]])-FIND(\":\",Tabel5[[#This Row],[Description 2]:[Description 2]])-1))=FALSE,RIGHT(Tabel5[[#This Row],[Description 2]:[Description 2]],LEN(Tabel5[[#This Row],[Description 2]:[Description 2]])-FIND(\":\",Tabel5[[#This Row],[Description 2]:[Description 2]])-1),\"\")","v":""},"",{"$f":"IF(Tabel5[[Name]:[Name]]>0,Tabel5[[Name]:[Name]],\"\")","v":""}]
[{"$f":"IF(ISERROR(RIGHT(Tabel5[[#This Row],[Description 2]:[Description 2]],LEN(Tabel5[[#This Row],[Description 2]:[Description 2]])-FIND(\":\",Tabel5[[#This Row],[Description 2]:[Description 2]])-1))=FALSE,RIGHT(Tabel5[[#This Row],[Description 2]:[Description 2]],LEN(Tabel5[[#This Row],[Description 2]:[Description 2]])-FIND(\":\",Tabel5[[#This Row],[Description 2]:[Description 2]])-1),\"\")","v":""},"",{"$f":"IF(Tabel5[[Name]:[Name]]>0,Tabel5[[Name]:[Name]],\"\")","v":""}]
[{"$f":"IF(ISERROR(RIGHT(Tabel5[[#This Row],[Description 2]:[Description 2]],LEN(Tabel5[[#This Row],[Description 2]:[Description 2]])-FIND(\":\",Tabel5[[#This Row],[Description 2]:[Description 2]])-1))=FALSE,RIGHT(Tabel5[[#This Row],[Description 2]:[Description 2]],LEN(Tabel5[[#This Row],[Description 2]:[Description 2]])-FIND(\":\",Tabel5[[#This Row],[Description 2]:[Description 2]])-1),\"\")","v":""},"",{"$f":"IF(Tabel5[[Name]:[Name]]>0,Tabel5[[Name]:[Name]],\"\")","v":""}]
[{"$f":"IF(ISERROR(RIGHT(Tabel5[[#This Row],[Description 2]:[Description 2]],LEN(Tabel5[[#This Row],[Description 2]:[Description 2]])-FIND(\":\",Tabel5[[#This Row],[Description 2]:[Description 2]])-1))=FALSE,RIGHT(Tabel5[[#This Row],[Description 2]:[Description 2]],LEN(Tabel5[[#This Row],[Description 2]:[Description 2]])-FIND(\":\",Tabel5[[#This Row],[Description 2]:[Description 2]])-1),\"\")","v":""},"",{"$f":"IF(Tabel5[[Name]:[Name]]>0,Tabel5[[Name]:[Name]],\"\")","v":""}]
[{"$f":"IF(ISERROR(RIGHT(Tabel5[[#This Row],[Description 2]:[Description 2]],LEN(Tabel5[[#This Row],[Description 2]:[Description 2]])-FIND(\":\",Tabel5[[#This Row],[Description 2]:[Description 2]])-1))=FALSE,RIGHT(Tabel5[[#This Row],[Description 2]:[Description 2]],LEN(Tabel5[[#This Row],[Description 2]:[Description 2]])-FIND(\":\",Tabel5[[#This Row],[Description 2]:[Description 2]])-1),\"\")","v":""},"",{"$f":"IF(Tabel5[[Name]:[Name]]>0,Tabel5[[Name]:[Name]],\"\")","v":""}]
[{"$f":"IF(ISERROR(RIGHT(Tabel5[[#This Row],[Description 2]:[Description 2]],LEN(Tabel5[[#This Row],[Description 2]:[Description 2]])-FIND(\":\",Tabel5[[#This Row],[Description 2]:[Description 2]])-1))=FALSE,RIGHT(Tabel5[[#This Row],[Description 2]:[Description 2]],LEN(Tabel5[[#This Row],[Description 2]:[Description 2]])-FIND(\":\",Tabel5[[#This Row],[Description 2]:[Description 2]])-1),\"\")","v":""},"",{"$f":"IF(Tabel5[[Name]:[Name]]>0,Tabel5[[Name]:[Name]],\"\")","v":""}]
[{"$f":"IF(ISERROR(RIGHT(Tabel5[[#This Row],[Description 2]:[Description 2]],LEN(Tabel5[[#This Row],[Description 2]:[Description 2]])-FIND(\":\",Tabel5[[#This Row],[Description 2]:[Description 2]])-1))=FALSE,RIGHT(Tabel5[[#This Row],[Description 2]:[Description 2]],LEN(Tabel5[[#This Row],[Description 2]:[Description 2]])-FIND(\":\",Tabel5[[#This Row],[Description 2]:[Description 2]])-1),\"\")","v":""},"",{"$f":"IF(Tabel5[[Name]:[Name]]>0,Tabel5[[Name]:[Name]],\"\")","v":""}]
[{"$f":"IF(ISERROR(RIGHT(Tabel5[[#This Row],[Description 2]:[Description 2]],LEN(Tabel5[[#This Row],[Description 2]:[Description 2]])-FIND(\":\",Tabel5[[#This Row],[Description 2]:[Description 2]])-1))=FALSE,RIGHT(Tabel5[[#This Row],[Description 2]:[Description 2]],LEN(Tabel5[[#This Row],[Description 2]:[Description 2]])-FIND(\":\",Tabel5[[#This Row],[Description 2]:[Description 2]])-1),\"\")","v":""},"",{"$f":"IF(Tabel5[[Name]:[Name]]>0,Tabel5[[Name]:[Name]],\"\")","v":""}]
[{"$f":"IF(ISERROR(RIGHT(Tabel5[[#This Row],[Description 2]:[Description 2]],LEN(Tabel5[[#This Row],[Description 2]:[Description 2]])-FIND(\":\",Tabel5[[#This Row],[Description 2]:[Description 2]])-1))=FALSE,RIGHT(Tabel5[[#This Row],[Description 2]:[Description 2]],LEN(Tabel5[[#This Row],[Description 2]:[Description 2]])-FIND(\":\",Tabel5[[#This Row],[Description 2]:[Description 2]])-1),\"\")","v":""},"",{"$f":"IF(Tabel5[[Name]:[Name]]>0,Tabel5[[Name]:[Name]],\"\")","v":""}]
[{"$f":"IF(ISERROR(RIGHT(Tabel5[[#This Row],[Description 2]:[Description 2]],LEN(Tabel5[[#This Row],[Description 2]:[Description 2]])-FIND(\":\",Tabel5[[#This Row],[Description 2]:[Description 2]])-1))=FALSE,RIGHT(Tabel5[[#This Row],[Description 2]:[Description 2]],LEN(Tabel5[[#This Row],[Description 2]:[Description 2]])-FIND(\":\",Tabel5[[#This Row],[Description 2]:[Description 2]])-1),\"\")","v":""},"",{"$f":"IF(Tabel5[[Name]:[Name]]>0,Tabel5[[Name]:[Name]],\"\")","v":""}]
[{"$f":"IF(ISERROR(RIGHT(Tabel5[[#This Row],[Description 2]:[Description 2]],LEN(Tabel5[[#This Row],[Description 2]:[Description 2]])-FIND(\":\",Tabel5[[#This Row],[Description 2]:[Description 2]])-1))=FALSE,RIGHT(Tabel5[[#This Row],[Description 2]:[Description 2]],LEN(Tabel5[[#This Row],[Description 2]:[Description 2]])-FIND(\":\",Tabel5[[#This Row],[Description 2]:[Description 2]])-1),\"\")","v":""},"",{"$f":"IF(Tabel5[[Name]:[Name]]>0,Tabel5[[Name]:[Name]],\"\")","v":""}]
[{"$f":"IF(ISERROR(RIGHT(Tabel5[[#This Row],[Description 2]:[Description 2]],LEN(Tabel5[[#This Row],[Description 2]:[Description 2]])-FIND(\":\",Tabel5[[#This Row],[Description 2]:[Description 2]])-1))=FALSE,RIGHT(Tabel5[[#This Row],[Description 2]:[Description 2]],LEN(Tabel5[[#This Row],[Description 2]:[Description 2]])-FIND(\":\",Tabel5[[#This Row],[Description 2]:[Description 2]])-1),\"\")","v":""},"",{"$f":"IF(Tabel5[[Name]:[Name]]>0,Tabel5[[Name]:[Name]],\"\")","v":""}]
[{"$f":"IF(ISERROR(RIGHT(Tabel5[[#This Row],[Description 2]:[Description 2]],LEN(Tabel5[[#This Row],[Description 2]:[Description 2]])-FIND(\":\",Tabel5[[#This Row],[Description 2]:[Description 2]])-1))=FALSE,RIGHT(Tabel5[[#This Row],[Description 2]:[Description 2]],LEN(Tabel5[[#This Row],[Description 2]:[Description 2]])-FIND(\":\",Tabel5[[#This Row],[Description 2]:[Description 2]])-1),\"\")","v":""},"",{"$f":"IF(Tabel5[[Name]:[Name]]>0,Tabel5[[Name]:[Name]],\"\")","v":""}]
[{"$f":"IF(ISERROR(RIGHT(Tabel5[[#This Row],[Description 2]:[Description 2]],LEN(Tabel5[[#This Row],[Description 2]:[Description 2]])-FIND(\":\",Tabel5[[#This Row],[Description 2]:[Description 2]])-1))=FALSE,RIGHT(Tabel5[[#This Row],[Description 2]:[Description 2]],LEN(Tabel5[[#This Row],[Description 2]:[Description 2]])-FIND(\":\",Tabel5[[#This Row],[Description 2]:[Description 2]])-1),\"\")","v":""},"",{"$f":"IF(Tabel5[[Name]:[Name]]>0,Tabel5[[Name]:[Name]],\"\")","v":""}]
[{"$f":"IF(ISERROR(RIGHT(Tabel5[[#This Row],[Description 2]:[Description 2]],LEN(Tabel5[[#This Row],[Description 2]:[Description 2]])-FIND(\":\",Tabel5[[#This Row],[Description 2]:[Description 2]])-1))=FALSE,RIGHT(Tabel5[[#This Row],[Description 2]:[Description 2]],LEN(Tabel5[[#This Row],[Description 2]:[Description 2]])-FIND(\":\",Tabel5[[#This Row],[Description 2]:[Description 2]])-1),\"\")","v":""},"",{"$f":"IF(Tabel5[[Name]:[Name]]>0,Tabel5[[Name]:[Name]],\"\")","v":""}]
[{"$f":"IF(ISERROR(RIGHT(Tabel5[[#This Row],[Description 2]:[Description 2]],LEN(Tabel5[[#This Row],[Description 2]:[Description 2]])-FIND(\":\",Tabel5[[#This Row],[Description 2]:[Description 2]])-1))=FALSE,RIGHT(Tabel5[[#This Row],[Description 2]:[Description 2]],LEN(Tabel5[[#This Row],[Description 2]:[Description 2]])-FIND(\":\",Tabel5[[#This Row],[Description 2]:[Description 2]])-1),\"\")","v":""},"",{"$f":"IF(Tabel5[[Name]:[Name]]>0,Tabel5[[Name]:[Name]],\"\")","v":""}]
[{"$f":"IF(ISERROR(RIGHT(Tabel5[[#This Row],[Description 2]:[Description 2]],LEN(Tabel5[[#This Row],[Description 2]:[Description 2]])-FIND(\":\",Tabel5[[#This Row],[Description 2]:[Description 2]])-1))=FALSE,RIGHT(Tabel5[[#This Row],[Description 2]:[Description 2]],LEN(Tabel5[[#This Row],[Description 2]:[Description 2]])-FIND(\":\",Tabel5[[#This Row],[Description 2]:[Description 2]])-1),\"\")","v":""},"",{"$f":"IF(Tabel5[[Name]:[Name]]>0,Tabel5[[Name]:[Name]],\"\")","v":""}]
[{"$f":"IF(ISERROR(RIGHT(Tabel5[[#This Row],[Description 2]:[Description 2]],LEN(Tabel5[[#This Row],[Description 2]:[Description 2]])-FIND(\":\",Tabel5[[#This Row],[Description 2]:[Description 2]])-1))=FALSE,RIGHT(Tabel5[[#This Row],[Description 2]:[Description 2]],LEN(Tabel5[[#This Row],[Description 2]:[Description 2]])-FIND(\":\",Tabel5[[#This Row],[Description 2]:[Description 2]])-1),\"\")","v":""},"",{"$f":"IF(Tabel5[[Name]:[Name]]>0,Tabel5[[Name]:[Name]],\"\")","v":""}]
[{"$f":"IF(ISERROR(RIGHT(Tabel5[[#This Row],[Description 2]:[Description 2]],LEN(Tabel5[[#This Row],[Description 2]:[Description 2]])-FIND(\":\",Tabel5[[#This Row],[Description 2]:[Description 2]])-1))=FALSE,RIGHT(Tabel5[[#This Row],[Description 2]:[Description 2]],LEN(Tabel5[[#This Row],[Description 2]:[Description 2]])-FIND(\":\",Tabel5[[#This Row],[Description 2]:[Description 2]])-1),\"\")","v":""},"",{"$f":"IF(Tabel5[[Name]:[Name]]>0,Tabel5[[Name]:[Name]],\"\")","v":""}]
[{"$f":"IF(ISERROR(RIGHT(Tabel5[[#This Row],[Description 2]:[Description 2]],LEN(Tabel5[[#This Row],[Description 2]:[Description 2]])-FIND(\":\",Tabel5[[#This Row],[Description 2]:[Description 2]])-1))=FALSE,RIGHT(Tabel5[[#This Row],[Description 2]:[Description 2]],LEN(Tabel5[[#This Row],[Description 2]:[Description 2]])-FIND(\":\",Tabel5[[#This Row],[Description 2]:[Description 2]])-1),\"\")","v":""},"",{"$f":"IF(Tabel5[[Name]:[Name]]>0,Tabel5[[Name]:[Name]],\"\")","v":""}]
[{"$f":"IF(ISERROR(RIGHT(Tabel5[[#This Row],[Description 2]:[Description 2]],LEN(Tabel5[[#This Row],[Description 2]:[Description 2]])-FIND(\":\",Tabel5[[#This Row],[Description 2]:[Description 2]])-1))=FALSE,RIGHT(Tabel5[[#This Row],[Description 2]:[Description 2]],LEN(Tabel5[[#This Row],[Description 2]:[Description 2]])-FIND(\":\",Tabel5[[#This Row],[Description 2]:[Description 2]])-1),\"\")","v":""},"",{"$f":"IF(Tabel5[[Name]:[Name]]>0,Tabel5[[Name]:[Name]],\"\")","v":""}]
[{"$f":"IF(ISERROR(RIGHT(Tabel5[[#This Row],[Description 2]:[Description 2]],LEN(Tabel5[[#This Row],[Description 2]:[Description 2]])-FIND(\":\",Tabel5[[#This Row],[Description 2]:[Description 2]])-1))=FALSE,RIGHT(Tabel5[[#This Row],[Description 2]:[Description 2]],LEN(Tabel5[[#This Row],[Description 2]:[Description 2]])-FIND(\":\",Tabel5[[#This Row],[Description 2]:[Description 2]])-1),\"\")","v":""},"",{"$f":"IF(Tabel5[[Name]:[Name]]>0,Tabel5[[Name]:[Name]],\"\")","v":""}]
[{"$f":"IF(ISERROR(RIGHT(Tabel5[[#This Row],[Description 2]:[Description 2]],LEN(Tabel5[[#This Row],[Description 2]:[Description 2]])-FIND(\":\",Tabel5[[#This Row],[Description 2]:[Description 2]])-1))=FALSE,RIGHT(Tabel5[[#This Row],[Description 2]:[Description 2]],LEN(Tabel5[[#This Row],[Description 2]:[Description 2]])-FIND(\":\",Tabel5[[#This Row],[Description 2]:[Description 2]])-1),\"\")","v":""},"",{"$f":"IF(Tabel5[[Name]:[Name]]>0,Tabel5[[Name]:[Name]],\"\")","v":""}]
[{"$f":"IF(ISERROR(RIGHT(Tabel5[[#This Row],[Description 2]:[Description 2]],LEN(Tabel5[[#This Row],[Description 2]:[Description 2]])-FIND(\":\",Tabel5[[#This Row],[Description 2]:[Description 2]])-1))=FALSE,RIGHT(Tabel5[[#This Row],[Description 2]:[Description 2]],LEN(Tabel5[[#This Row],[Description 2]:[Description 2]])-FIND(\":\",Tabel5[[#This Row],[Description 2]:[Description 2]])-1),\"\")","v":""},"",{"$f":"IF(Tabel5[[Name]:[Name]]>0,Tabel5[[Name]:[Name]],\"\")","v":""}]
[{"$f":"IF(ISERROR(RIGHT(Tabel5[[#This Row],[Description 2]:[Description 2]],LEN(Tabel5[[#This Row],[Description 2]:[Description 2]])-FIND(\":\",Tabel5[[#This Row],[Description 2]:[Description 2]])-1))=FALSE,RIGHT(Tabel5[[#This Row],[Description 2]:[Description 2]],LEN(Tabel5[[#This Row],[Description 2]:[Description 2]])-FIND(\":\",Tabel5[[#This Row],[Description 2]:[Description 2]])-1),\"\")","v":""},"",{"$f":"IF(Tabel5[[Name]:[Name]]>0,Tabel5[[Name]:[Name]],\"\")","v":""}]
[{"$f":"IF(ISERROR(RIGHT(Tabel5[[#This Row],[Description 2]:[Description 2]],LEN(Tabel5[[#This Row],[Description 2]:[Description 2]])-FIND(\":\",Tabel5[[#This Row],[Description 2]:[Description 2]])-1))=FALSE,RIGHT(Tabel5[[#This Row],[Description 2]:[Description 2]],LEN(Tabel5[[#This Row],[Description 2]:[Description 2]])-FIND(\":\",Tabel5[[#This Row],[Description 2]:[Description 2]])-1),\"\")","v":""},"",{"$f":"IF(Tabel5[[Name]:[Name]]>0,Tabel5[[Name]:[Name]],\"\")","v":""}]
[{"$f":"IF(ISERROR(RIGHT(Tabel5[[#This Row],[Description 2]:[Description 2]],LEN(Tabel5[[#This Row],[Description 2]:[Description 2]])-FIND(\":\",Tabel5[[#This Row],[Description 2]:[Description 2]])-1))=FALSE,RIGHT(Tabel5[[#This Row],[Description 2]:[Description 2]],LEN(Tabel5[[#This Row],[Description 2]:[Description 2]])-FIND(\":\",Tabel5[[#This Row],[Description 2]:[Description 2]])-1),\"\")","v":""},"",{"$f":"IF(Tabel5[[Name]:[Name]]>0,Tabel5[[Name]:[Name]],\"\")","v":""}]
[{"$f":"IF(ISERROR(RIGHT(Tabel5[[#This Row],[Description 2]:[Description 2]],LEN(Tabel5[[#This Row],[Description 2]:[Description 2]])-FIND(\":\",Tabel5[[#This Row],[Description 2]:[Description 2]])-1))=FALSE,RIGHT(Tabel5[[#This Row],[Description 2]:[Description 2]],LEN(Tabel5[[#This Row],[Description 2]:[Description 2]])-FIND(\":\",Tabel5[[#This Row],[Description 2]:[Description 2]])-1),\"\")","v":""},"",{"$f":"IF(Tabel5[[Name]:[Name]]>0,Tabel5[[Name]:[Name]],\"\")","v":""}]
[{"$f":"IF(ISERROR(RIGHT(Tabel5[[#This Row],[Description 2]:[Description 2]],LEN(Tabel5[[#This Row],[Description 2]:[Description 2]])-FIND(\":\",Tabel5[[#This Row],[Description 2]:[Description 2]])-1))=FALSE,RIGHT(Tabel5[[#This Row],[Description 2]:[Description 2]],LEN(Tabel5[[#This Row],[Description 2]:[Description 2]])-FIND(\":\",Tabel5[[#This Row],[Description 2]:[Description 2]])-1),\"\")","v":""},"",{"$f":"IF(Tabel5[[Name]:[Name]]>0,Tabel5[[Name]:[Name]],\"\")","v":""}]
[{"$f":"IF(ISERROR(RIGHT(Tabel5[[#This Row],[Description 2]:[Description 2]],LEN(Tabel5[[#This Row],[Description 2]:[Description 2]])-FIND(\":\",Tabel5[[#This Row],[Description 2]:[Description 2]])-1))=FALSE,RIGHT(Tabel5[[#This Row],[Description 2]:[Description 2]],LEN(Tabel5[[#This Row],[Description 2]:[Description 2]])-FIND(\":\",Tabel5[[#This Row],[Description 2]:[Description 2]])-1),\"\")","v":""},"",{"$f":"IF(Tabel5[[Name]:[Name]]>0,Tabel5[[Name]:[Name]],\"\")","v":""}]
[{"$f":"IF(ISERROR(RIGHT(Tabel5[[#This Row],[Description 2]:[Description 2]],LEN(Tabel5[[#This Row],[Description 2]:[Description 2]])-FIND(\":\",Tabel5[[#This Row],[Description 2]:[Description 2]])-1))=FALSE,RIGHT(Tabel5[[#This Row],[Description 2]:[Description 2]],LEN(Tabel5[[#This Row],[Description 2]:[Description 2]])-FIND(\":\",Tabel5[[#This Row],[Description 2]:[Description 2]])-1),\"\")","v":""},"",{"$f":"IF(Tabel5[[Name]:[Name]]>0,Tabel5[[Name]:[Name]],\"\")","v":""}]
[{"$f":"IF(ISERROR(RIGHT(Tabel5[[#This Row],[Description 2]:[Description 2]],LEN(Tabel5[[#This Row],[Description 2]:[Description 2]])-FIND(\":\",Tabel5[[#This Row],[Description 2]:[Description 2]])-1))=FALSE,RIGHT(Tabel5[[#This Row],[Description 2]:[Description 2]],LEN(Tabel5[[#This Row],[Description 2]:[Description 2]])-FIND(\":\",Tabel5[[#This Row],[Description 2]:[Description 2]])-1),\"\")","v":""},"",{"$f":"IF(Tabel5[[Name]:[Name]]>0,Tabel5[[Name]:[Name]],\"\")","v":""}]
[{"$f":"IF(ISERROR(RIGHT(Tabel5[[#This Row],[Description 2]:[Description 2]],LEN(Tabel5[[#This Row],[Description 2]:[Description 2]])-FIND(\":\",Tabel5[[#This Row],[Description 2]:[Description 2]])-1))=FALSE,RIGHT(Tabel5[[#This Row],[Description 2]:[Description 2]],LEN(Tabel5[[#This Row],[Description 2]:[Description 2]])-FIND(\":\",Tabel5[[#This Row],[Description 2]:[Description 2]])-1),\"\")","v":""},"",{"$f":"IF(Tabel5[[Name]:[Name]]>0,Tabel5[[Name]:[Name]],\"\")","v":""}]
[{"$f":"IF(ISERROR(RIGHT(Tabel5[[#This Row],[Description 2]:[Description 2]],LEN(Tabel5[[#This Row],[Description 2]:[Description 2]])-FIND(\":\",Tabel5[[#This Row],[Description 2]:[Description 2]])-1))=FALSE,RIGHT(Tabel5[[#This Row],[Description 2]:[Description 2]],LEN(Tabel5[[#This Row],[Description 2]:[Description 2]])-FIND(\":\",Tabel5[[#This Row],[Description 2]:[Description 2]])-1),\"\")","v":""},"",{"$f":"IF(Tabel5[[Name]:[Name]]>0,Tabel5[[Name]:[Name]],\"\")","v":""}]
[{"$f":"IF(ISERROR(RIGHT(Tabel5[[#This Row],[Description 2]:[Description 2]],LEN(Tabel5[[#This Row],[Description 2]:[Description 2]])-FIND(\":\",Tabel5[[#This Row],[Description 2]:[Description 2]])-1))=FALSE,RIGHT(Tabel5[[#This Row],[Description 2]:[Description 2]],LEN(Tabel5[[#This Row],[Description 2]:[Description 2]])-FIND(\":\",Tabel5[[#This Row],[Description 2]:[Description 2]])-1),\"\")","v":""},"",{"$f":"IF(Tabel5[[Name]:[Name]]>0,Tabel5[[Name]:[Name]],\"\")","v":""}]
[{"$f":"IF(ISERROR(RIGHT(Tabel5[[#This Row],[Description 2]:[Description 2]],LEN(Tabel5[[#This Row],[Description 2]:[Description 2]])-FIND(\":\",Tabel5[[#This Row],[Description 2]:[Description 2]])-1))=FALSE,RIGHT(Tabel5[[#This Row],[Description 2]:[Description 2]],LEN(Tabel5[[#This Row],[Description 2]:[Description 2]])-FIND(\":\",Tabel5[[#This Row],[Description 2]:[Description 2]])-1),\"\")","v":""},"",{"$f":"IF(Tabel5[[Name]:[Name]]>0,Tabel5[[Name]:[Name]],\"\")","v":""}]
[{"$f":"IF(ISERROR(RIGHT(Tabel5[[#This Row],[Description 2]:[Description 2]],LEN(Tabel5[[#This Row],[Description 2]:[Description 2]])-FIND(\":\",Tabel5[[#This Row],[Description 2]:[Description 2]])-1))=FALSE,RIGHT(Tabel5[[#This Row],[Description 2]:[Description 2]],LEN(Tabel5[[#This Row],[Description 2]:[Description 2]])-FIND(\":\",Tabel5[[#This Row],[Description 2]:[Description 2]])-1),\"\")","v":""},"",{"$f":"IF(Tabel5[[Name]:[Name]]>0,Tabel5[[Name]:[Name]],\"\")","v":""}]
[{"$f":"IF(ISERROR(RIGHT(Tabel5[[#This Row],[Description 2]:[Description 2]],LEN(Tabel5[[#This Row],[Description 2]:[Description 2]])-FIND(\":\",Tabel5[[#This Row],[Description 2]:[Description 2]])-1))=FALSE,RIGHT(Tabel5[[#This Row],[Description 2]:[Description 2]],LEN(Tabel5[[#This Row],[Description 2]:[Description 2]])-FIND(\":\",Tabel5[[#This Row],[Description 2]:[Description 2]])-1),\"\")","v":""},"",{"$f":"IF(Tabel5[[Name]:[Name]]>0,Tabel5[[Name]:[Name]],\"\")","v":""}]
[{"$f":"IF(ISERROR(RIGHT(Tabel5[[#This Row],[Description 2]:[Description 2]],LEN(Tabel5[[#This Row],[Description 2]:[Description 2]])-FIND(\":\",Tabel5[[#This Row],[Description 2]:[Description 2]])-1))=FALSE,RIGHT(Tabel5[[#This Row],[Description 2]:[Description 2]],LEN(Tabel5[[#This Row],[Description 2]:[Description 2]])-FIND(\":\",Tabel5[[#This Row],[Description 2]:[Description 2]])-1),\"\")","v":""},"",{"$f":"IF(Tabel5[[Name]:[Name]]>0,Tabel5[[Name]:[Name]],\"\")","v":""}]
[{"$f":"IF(ISERROR(RIGHT(Tabel5[[#This Row],[Description 2]:[Description 2]],LEN(Tabel5[[#This Row],[Description 2]:[Description 2]])-FIND(\":\",Tabel5[[#This Row],[Description 2]:[Description 2]])-1))=FALSE,RIGHT(Tabel5[[#This Row],[Description 2]:[Description 2]],LEN(Tabel5[[#This Row],[Description 2]:[Description 2]])-FIND(\":\",Tabel5[[#This Row],[Description 2]:[Description 2]])-1),\"\")","v":""},"",{"$f":"IF(Tabel5[[Name]:[Name]]>0,Tabel5[[Name]:[Name]],\"\")","v":""}]
[{"$f":"IF(ISERROR(RIGHT(Tabel5[[#This Row],[Description 2]:[Description 2]],LEN(Tabel5[[#This Row],[Description 2]:[Description 2]])-FIND(\":\",Tabel5[[#This Row],[Description 2]:[Description 2]])-1))=FALSE,RIGHT(Tabel5[[#This Row],[Description 2]:[Description 2]],LEN(Tabel5[[#This Row],[Description 2]:[Description 2]])-FIND(\":\",Tabel5[[#This Row],[Description 2]:[Description 2]])-1),\"\")","v":""},"",{"$f":"IF(Tabel5[[Name]:[Name]]>0,Tabel5[[Name]:[Name]],\"\")","v":""}]
[{"$f":"IF(ISERROR(RIGHT(Tabel5[[#This Row],[Description 2]:[Description 2]],LEN(Tabel5[[#This Row],[Description 2]:[Description 2]])-FIND(\":\",Tabel5[[#This Row],[Description 2]:[Description 2]])-1))=FALSE,RIGHT(Tabel5[[#This Row],[Description 2]:[Description 2]],LEN(Tabel5[[#This Row],[Description 2]:[Description 2]])-FIND(\":\",Tabel5[[#This Row],[Description 2]:[Description 2]])-1),\"\")","v":""},"",{"$f":"IF(Tabel5[[Name]:[Name]]>0,Tabel5[[Name]:[Name]],\"\")","v":""}]
[{"$f":"IF(ISERROR(RIGHT(Tabel5[[#This Row],[Description 2]:[Description 2]],LEN(Tabel5[[#This Row],[Description 2]:[Description 2]])-FIND(\":\",Tabel5[[#This Row],[Description 2]:[Description 2]])-1))=FALSE,RIGHT(Tabel5[[#This Row],[Description 2]:[Description 2]],LEN(Tabel5[[#This Row],[Description 2]:[Description 2]])-FIND(\":\",Tabel5[[#This Row],[Description 2]:[Description 2]])-1),\"\")","v":""},"",{"$f":"IF(Tabel5[[Name]:[Name]]>0,Tabel5[[Name]:[Name]],\"\")","v":""}]
[{"$f":"IF(ISERROR(RIGHT(Tabel5[[#This Row],[Description 2]:[Description 2]],LEN(Tabel5[[#This Row],[Description 2]:[Description 2]])-FIND(\":\",Tabel5[[#This Row],[Description 2]:[Description 2]])-1))=FALSE,RIGHT(Tabel5[[#This Row],[Description 2]:[Description 2]],LEN(Tabel5[[#This Row],[Description 2]:[Description 2]])-FIND(\":\",Tabel5[[#This Row],[Description 2]:[Description 2]])-1),\"\")","v":""},"",{"$f":"IF(Tabel5[[Name]:[Name]]>0,Tabel5[[Name]:[Name]],\"\")","v":""}]
[{"$f":"IF(ISERROR(RIGHT(Tabel5[[#This Row],[Description 2]:[Description 2]],LEN(Tabel5[[#This Row],[Description 2]:[Description 2]])-FIND(\":\",Tabel5[[#This Row],[Description 2]:[Description 2]])-1))=FALSE,RIGHT(Tabel5[[#This Row],[Description 2]:[Description 2]],LEN(Tabel5[[#This Row],[Description 2]:[Description 2]])-FIND(\":\",Tabel5[[#This Row],[Description 2]:[Description 2]])-1),\"\")","v":""},"",{"$f":"IF(Tabel5[[Name]:[Name]]>0,Tabel5[[Name]:[Name]],\"\")","v":""}]
[{"$f":"IF(ISERROR(RIGHT(Tabel5[[#This Row],[Description 2]:[Description 2]],LEN(Tabel5[[#This Row],[Description 2]:[Description 2]])-FIND(\":\",Tabel5[[#This Row],[Description 2]:[Description 2]])-1))=FALSE,RIGHT(Tabel5[[#This Row],[Description 2]:[Description 2]],LEN(Tabel5[[#This Row],[Description 2]:[Description 2]])-FIND(\":\",Tabel5[[#This Row],[Description 2]:[Description 2]])-1),\"\")","v":""},"",{"$f":"IF(Tabel5[[Name]:[Name]]>0,Tabel5[[Name]:[Name]],\"\")","v":""}]
[{"$f":"IF(ISERROR(RIGHT(Tabel5[[#This Row],[Description 2]:[Description 2]],LEN(Tabel5[[#This Row],[Description 2]:[Description 2]])-FIND(\":\",Tabel5[[#This Row],[Description 2]:[Description 2]])-1))=FALSE,RIGHT(Tabel5[[#This Row],[Description 2]:[Description 2]],LEN(Tabel5[[#This Row],[Description 2]:[Description 2]])-FIND(\":\",Tabel5[[#This Row],[Description 2]:[Description 2]])-1),\"\")","v":""},"",{"$f":"IF(Tabel5[[Name]:[Name]]>0,Tabel5[[Name]:[Name]],\"\")","v":""}]
[{"$f":"IF(ISERROR(RIGHT(Tabel5[[#This Row],[Description 2]:[Description 2]],LEN(Tabel5[[#This Row],[Description 2]:[Description 2]])-FIND(\":\",Tabel5[[#This Row],[Description 2]:[Description 2]])-1))=FALSE,RIGHT(Tabel5[[#This Row],[Description 2]:[Description 2]],LEN(Tabel5[[#This Row],[Description 2]:[Description 2]])-FIND(\":\",Tabel5[[#This Row],[Description 2]:[Description 2]])-1),\"\")","v":""},"",{"$f":"IF(Tabel5[[Name]:[Name]]>0,Tabel5[[Name]:[Name]],\"\")","v":""}]
[{"$f":"IF(ISERROR(RIGHT(Tabel5[[#This Row],[Description 2]:[Description 2]],LEN(Tabel5[[#This Row],[Description 2]:[Description 2]])-FIND(\":\",Tabel5[[#This Row],[Description 2]:[Description 2]])-1))=FALSE,RIGHT(Tabel5[[#This Row],[Description 2]:[Description 2]],LEN(Tabel5[[#This Row],[Description 2]:[Description 2]])-FIND(\":\",Tabel5[[#This Row],[Description 2]:[Description 2]])-1),\"\")","v":""},"",{"$f":"IF(Tabel5[[Name]:[Name]]>0,Tabel5[[Name]:[Name]],\"\")","v":""}]
[{"$f":"IF(ISERROR(RIGHT(Tabel5[[#This Row],[Description 2]:[Description 2]],LEN(Tabel5[[#This Row],[Description 2]:[Description 2]])-FIND(\":\",Tabel5[[#This Row],[Description 2]:[Description 2]])-1))=FALSE,RIGHT(Tabel5[[#This Row],[Description 2]:[Description 2]],LEN(Tabel5[[#This Row],[Description 2]:[Description 2]])-FIND(\":\",Tabel5[[#This Row],[Description 2]:[Description 2]])-1),\"\")","v":""},"",{"$f":"IF(Tabel5[[Name]:[Name]]>0,Tabel5[[Name]:[Name]],\"\")","v":""}]
[{"$f":"IF(ISERROR(RIGHT(Tabel5[[#This Row],[Description 2]:[Description 2]],LEN(Tabel5[[#This Row],[Description 2]:[Description 2]])-FIND(\":\",Tabel5[[#This Row],[Description 2]:[Description 2]])-1))=FALSE,RIGHT(Tabel5[[#This Row],[Description 2]:[Description 2]],LEN(Tabel5[[#This Row],[Description 2]:[Description 2]])-FIND(\":\",Tabel5[[#This Row],[Description 2]:[Description 2]])-1),\"\")","v":""},"",{"$f":"IF(Tabel5[[Name]:[Name]]>0,Tabel5[[Name]:[Name]],\"\")","v":""}]
[{"$f":"IF(ISERROR(RIGHT(Tabel5[[#This Row],[Description 2]:[Description 2]],LEN(Tabel5[[#This Row],[Description 2]:[Description 2]])-FIND(\":\",Tabel5[[#This Row],[Description 2]:[Description 2]])-1))=FALSE,RIGHT(Tabel5[[#This Row],[Description 2]:[Description 2]],LEN(Tabel5[[#This Row],[Description 2]:[Description 2]])-FIND(\":\",Tabel5[[#This Row],[Description 2]:[Description 2]])-1),\"\")","v":""},"",{"$f":"IF(Tabel5[[Name]:[Name]]>0,Tabel5[[Name]:[Name]],\"\")","v":""}]
[{"$f":"IF(ISERROR(RIGHT(Tabel5[[#This Row],[Description 2]:[Description 2]],LEN(Tabel5[[#This Row],[Description 2]:[Description 2]])-FIND(\":\",Tabel5[[#This Row],[Description 2]:[Description 2]])-1))=FALSE,RIGHT(Tabel5[[#This Row],[Description 2]:[Description 2]],LEN(Tabel5[[#This Row],[Description 2]:[Description 2]])-FIND(\":\",Tabel5[[#This Row],[Description 2]:[Description 2]])-1),\"\")","v":""},"",{"$f":"IF(Tabel5[[Name]:[Name]]>0,Tabel5[[Name]:[Name]],\"\")","v":""}]
[{"$f":"IF(ISERROR(RIGHT(Tabel5[[#This Row],[Description 2]:[Description 2]],LEN(Tabel5[[#This Row],[Description 2]:[Description 2]])-FIND(\":\",Tabel5[[#This Row],[Description 2]:[Description 2]])-1))=FALSE,RIGHT(Tabel5[[#This Row],[Description 2]:[Description 2]],LEN(Tabel5[[#This Row],[Description 2]:[Description 2]])-FIND(\":\",Tabel5[[#This Row],[Description 2]:[Description 2]])-1),\"\")","v":""},"",{"$f":"IF(Tabel5[[Name]:[Name]]>0,Tabel5[[Name]:[Name]],\"\")","v":""}]
[{"$f":"IF(ISERROR(RIGHT(Tabel5[[#This Row],[Description 2]:[Description 2]],LEN(Tabel5[[#This Row],[Description 2]:[Description 2]])-FIND(\":\",Tabel5[[#This Row],[Description 2]:[Description 2]])-1))=FALSE,RIGHT(Tabel5[[#This Row],[Description 2]:[Description 2]],LEN(Tabel5[[#This Row],[Description 2]:[Description 2]])-FIND(\":\",Tabel5[[#This Row],[Description 2]:[Description 2]])-1),\"\")","v":""},"",{"$f":"IF(Tabel5[[Name]:[Name]]>0,Tabel5[[Name]:[Name]],\"\")","v":""}]
[{"$f":"IF(ISERROR(RIGHT(Tabel5[[#This Row],[Description 2]:[Description 2]],LEN(Tabel5[[#This Row],[Description 2]:[Description 2]])-FIND(\":\",Tabel5[[#This Row],[Description 2]:[Description 2]])-1))=FALSE,RIGHT(Tabel5[[#This Row],[Description 2]:[Description 2]],LEN(Tabel5[[#This Row],[Description 2]:[Description 2]])-FIND(\":\",Tabel5[[#This Row],[Description 2]:[Description 2]])-1),\"\")","v":""},"",{"$f":"IF(Tabel5[[Name]:[Name]]>0,Tabel5[[Name]:[Name]],\"\")","v":""}]
[{"$f":"IF(ISERROR(RIGHT(Tabel5[[#This Row],[Description 2]:[Description 2]],LEN(Tabel5[[#This Row],[Description 2]:[Description 2]])-FIND(\":\",Tabel5[[#This Row],[Description 2]:[Description 2]])-1))=FALSE,RIGHT(Tabel5[[#This Row],[Description 2]:[Description 2]],LEN(Tabel5[[#This Row],[Description 2]:[Description 2]])-FIND(\":\",Tabel5[[#This Row],[Description 2]:[Description 2]])-1),\"\")","v":""},"",{"$f":"IF(Tabel5[[Name]:[Name]]>0,Tabel5[[Name]:[Name]],\"\")","v":""}]
[{"$f":"IF(ISERROR(RIGHT(Tabel5[[#This Row],[Description 2]:[Description 2]],LEN(Tabel5[[#This Row],[Description 2]:[Description 2]])-FIND(\":\",Tabel5[[#This Row],[Description 2]:[Description 2]])-1))=FALSE,RIGHT(Tabel5[[#This Row],[Description 2]:[Description 2]],LEN(Tabel5[[#This Row],[Description 2]:[Description 2]])-FIND(\":\",Tabel5[[#This Row],[Description 2]:[Description 2]])-1),\"\")","v":""},"",{"$f":"IF(Tabel5[[Name]:[Name]]>0,Tabel5[[Name]:[Name]],\"\")","v":""}]
[{"$f":"IF(ISERROR(RIGHT(Tabel5[[#This Row],[Description 2]:[Description 2]],LEN(Tabel5[[#This Row],[Description 2]:[Description 2]])-FIND(\":\",Tabel5[[#This Row],[Description 2]:[Description 2]])-1))=FALSE,RIGHT(Tabel5[[#This Row],[Description 2]:[Description 2]],LEN(Tabel5[[#This Row],[Description 2]:[Description 2]])-FIND(\":\",Tabel5[[#This Row],[Description 2]:[Description 2]])-1),\"\")","v":""},"",{"$f":"IF(Tabel5[[Name]:[Name]]>0,Tabel5[[Name]:[Name]],\"\")","v":""}]
[{"$f":"IF(ISERROR(RIGHT(Tabel5[[#This Row],[Description 2]:[Description 2]],LEN(Tabel5[[#This Row],[Description 2]:[Description 2]])-FIND(\":\",Tabel5[[#This Row],[Description 2]:[Description 2]])-1))=FALSE,RIGHT(Tabel5[[#This Row],[Description 2]:[Description 2]],LEN(Tabel5[[#This Row],[Description 2]:[Description 2]])-FIND(\":\",Tabel5[[#This Row],[Description 2]:[Description 2]])-1),\"\")","v":""},"",{"$f":"IF(Tabel5[[Name]:[Name]]>0,Tabel5[[Name]:[Name]],\"\")","v":""}]
[{"$f":"IF(ISERROR(RIGHT(Tabel5[[#This Row],[Description 2]:[Description 2]],LEN(Tabel5[[#This Row],[Description 2]:[Description 2]])-FIND(\":\",Tabel5[[#This Row],[Description 2]:[Description 2]])-1))=FALSE,RIGHT(Tabel5[[#This Row],[Description 2]:[Description 2]],LEN(Tabel5[[#This Row],[Description 2]:[Description 2]])-FIND(\":\",Tabel5[[#This Row],[Description 2]:[Description 2]])-1),\"\")","v":""},{"$f":"IF(ISERROR(LEFT(A194,(FIND(\" \",A194))))=TRUE,A194,LEFT(A194,(FIND(\" \",A194))-1))","v":""},{"$f":"IF(Tabel5[[Name]:[Name]]>0,Tabel5[[Name]:[Name]],\"\")","v":""}]
[{"$f":"IF(ISERROR(RIGHT(Tabel5[[#This Row],[Description 2]:[Description 2]],LEN(Tabel5[[#This Row],[Description 2]:[Description 2]])-FIND(\":\",Tabel5[[#This Row],[Description 2]:[Description 2]])-1))=FALSE,RIGHT(Tabel5[[#This Row],[Description 2]:[Description 2]],LEN(Tabel5[[#This Row],[Description 2]:[Description 2]])-FIND(\":\",Tabel5[[#This Row],[Description 2]:[Description 2]])-1),\"\")","v":""},"",{"$f":"IF(Tabel5[[Name]:[Name]]>0,Tabel5[[Name]:[Name]],\"\")","v":""}]
[{"$f":"IF(ISERROR(RIGHT(Tabel5[[#This Row],[Description 2]:[Description 2]],LEN(Tabel5[[#This Row],[Description 2]:[Description 2]])-FIND(\":\",Tabel5[[#This Row],[Description 2]:[Description 2]])-1))=FALSE,RIGHT(Tabel5[[#This Row],[Description 2]:[Description 2]],LEN(Tabel5[[#This Row],[Description 2]:[Description 2]])-FIND(\":\",Tabel5[[#This Row],[Description 2]:[Description 2]])-1),\"\")","v":""},"",{"$f":"IF(Tabel5[[Name]:[Name]]>0,Tabel5[[Name]:[Name]],\"\")","v":""}]
[{"$f":"IF(ISERROR(RIGHT(Tabel5[[#This Row],[Description 2]:[Description 2]],LEN(Tabel5[[#This Row],[Description 2]:[Description 2]])-FIND(\":\",Tabel5[[#This Row],[Description 2]:[Description 2]])-1))=FALSE,RIGHT(Tabel5[[#This Row],[Description 2]:[Description 2]],LEN(Tabel5[[#This Row],[Description 2]:[Description 2]])-FIND(\":\",Tabel5[[#This Row],[Description 2]:[Description 2]])-1),\"\")","v":""},"",{"$f":"IF(Tabel5[[Name]:[Name]]>0,Tabel5[[Name]:[Name]],\"\")","v":""}]
[{"$f":"IF(ISERROR(RIGHT(Tabel5[[#This Row],[Description 2]:[Description 2]],LEN(Tabel5[[#This Row],[Description 2]:[Description 2]])-FIND(\":\",Tabel5[[#This Row],[Description 2]:[Description 2]])-1))=FALSE,RIGHT(Tabel5[[#This Row],[Description 2]:[Description 2]],LEN(Tabel5[[#This Row],[Description 2]:[Description 2]])-FIND(\":\",Tabel5[[#This Row],[Description 2]:[Description 2]])-1),\"\")","v":""},"",{"$f":"IF(Tabel5[[Name]:[Name]]>0,Tabel5[[Name]:[Name]],\"\")","v":""}]
[{"$f":"IF(ISERROR(RIGHT(Tabel5[[#This Row],[Description 2]:[Description 2]],LEN(Tabel5[[#This Row],[Description 2]:[Description 2]])-FIND(\":\",Tabel5[[#This Row],[Description 2]:[Description 2]])-1))=FALSE,RIGHT(Tabel5[[#This Row],[Description 2]:[Description 2]],LEN(Tabel5[[#This Row],[Description 2]:[Description 2]])-FIND(\":\",Tabel5[[#This Row],[Description 2]:[Description 2]])-1),\"\")","v":""},"",{"$f":"IF(Tabel5[[Name]:[Name]]>0,Tabel5[[Name]:[Name]],\"\")","v":""}]
[{"$f":"IF(ISERROR(RIGHT(Tabel5[[#This Row],[Description 2]:[Description 2]],LEN(Tabel5[[#This Row],[Description 2]:[Description 2]])-FIND(\":\",Tabel5[[#This Row],[Description 2]:[Description 2]])-1))=FALSE,RIGHT(Tabel5[[#This Row],[Description 2]:[Description 2]],LEN(Tabel5[[#This Row],[Description 2]:[Description 2]])-FIND(\":\",Tabel5[[#This Row],[Description 2]:[Description 2]])-1),\"\")","v":""},"",{"$f":"IF(Tabel5[[Name]:[Name]]>0,Tabel5[[Name]:[Name]],\"\")","v":""}]
[{"$f":"IF(ISERROR(RIGHT(Tabel5[[#This Row],[Description 2]:[Description 2]],LEN(Tabel5[[#This Row],[Description 2]:[Description 2]])-FIND(\":\",Tabel5[[#This Row],[Description 2]:[Description 2]])-1))=FALSE,RIGHT(Tabel5[[#This Row],[Description 2]:[Description 2]],LEN(Tabel5[[#This Row],[Description 2]:[Description 2]])-FIND(\":\",Tabel5[[#This Row],[Description 2]:[Description 2]])-1),\"\")","v":""},"",{"$f":"IF(Tabel5[[Name]:[Name]]>0,Tabel5[[Name]:[Name]],\"\")","v":""}]
[{"$f":"IF(ISERROR(RIGHT(Tabel5[[#This Row],[Description 2]:[Description 2]],LEN(Tabel5[[#This Row],[Description 2]:[Description 2]])-FIND(\":\",Tabel5[[#This Row],[Description 2]:[Description 2]])-1))=FALSE,RIGHT(Tabel5[[#This Row],[Description 2]:[Description 2]],LEN(Tabel5[[#This Row],[Description 2]:[Description 2]])-FIND(\":\",Tabel5[[#This Row],[Description 2]:[Description 2]])-1),\"\")","v":""},"",{"$f":"IF(Tabel5[[Name]:[Name]]>0,Tabel5[[Name]:[Name]],\"\")","v":""}]
[{"$f":"IF(ISERROR(RIGHT(Tabel5[[#This Row],[Description 2]:[Description 2]],LEN(Tabel5[[#This Row],[Description 2]:[Description 2]])-FIND(\":\",Tabel5[[#This Row],[Description 2]:[Description 2]])-1))=FALSE,RIGHT(Tabel5[[#This Row],[Description 2]:[Description 2]],LEN(Tabel5[[#This Row],[Description 2]:[Description 2]])-FIND(\":\",Tabel5[[#This Row],[Description 2]:[Description 2]])-1),\"\")","v":""},"",{"$f":"IF(Tabel5[[Name]:[Name]]>0,Tabel5[[Name]:[Name]],\"\")","v":""}]
[{"$f":"IF(ISERROR(RIGHT(Tabel5[[#This Row],[Description 2]:[Description 2]],LEN(Tabel5[[#This Row],[Description 2]:[Description 2]])-FIND(\":\",Tabel5[[#This Row],[Description 2]:[Description 2]])-1))=FALSE,RIGHT(Tabel5[[#This Row],[Description 2]:[Description 2]],LEN(Tabel5[[#This Row],[Description 2]:[Description 2]])-FIND(\":\",Tabel5[[#This Row],[Description 2]:[Description 2]])-1),\"\")","v":""},"",{"$f":"IF(Tabel5[[Name]:[Name]]>0,Tabel5[[Name]:[Name]],\"\")","v":""}]
[{"$f":"IF(ISERROR(RIGHT(Tabel5[[#This Row],[Description 2]:[Description 2]],LEN(Tabel5[[#This Row],[Description 2]:[Description 2]])-FIND(\":\",Tabel5[[#This Row],[Description 2]:[Description 2]])-1))=FALSE,RIGHT(Tabel5[[#This Row],[Description 2]:[Description 2]],LEN(Tabel5[[#This Row],[Description 2]:[Description 2]])-FIND(\":\",Tabel5[[#This Row],[Description 2]:[Description 2]])-1),\"\")","v":""},"",{"$f":"IF(Tabel5[[Name]:[Name]]>0,Tabel5[[Name]:[Name]],\"\")","v":""}]
[{"$f":"IF(ISERROR(RIGHT(Tabel5[[#This Row],[Description 2]:[Description 2]],LEN(Tabel5[[#This Row],[Description 2]:[Description 2]])-FIND(\":\",Tabel5[[#This Row],[Description 2]:[Description 2]])-1))=FALSE,RIGHT(Tabel5[[#This Row],[Description 2]:[Description 2]],LEN(Tabel5[[#This Row],[Description 2]:[Description 2]])-FIND(\":\",Tabel5[[#This Row],[Description 2]:[Description 2]])-1),\"\")","v":""},"",{"$f":"IF(Tabel5[[Name]:[Name]]>0,Tabel5[[Name]:[Name]],\"\")","v":""}]
[{"$f":"IF(ISERROR(RIGHT(Tabel5[[#This Row],[Description 2]:[Description 2]],LEN(Tabel5[[#This Row],[Description 2]:[Description 2]])-FIND(\":\",Tabel5[[#This Row],[Description 2]:[Description 2]])-1))=FALSE,RIGHT(Tabel5[[#This Row],[Description 2]:[Description 2]],LEN(Tabel5[[#This Row],[Description 2]:[Description 2]])-FIND(\":\",Tabel5[[#This Row],[Description 2]:[Description 2]])-1),\"\")","v":""},"",{"$f":"IF(Tabel5[[Name]:[Name]]>0,Tabel5[[Name]:[Name]],\"\")","v":""}]
[{"$f":"IF(ISERROR(RIGHT(Tabel5[[#This Row],[Description 2]:[Description 2]],LEN(Tabel5[[#This Row],[Description 2]:[Description 2]])-FIND(\":\",Tabel5[[#This Row],[Description 2]:[Description 2]])-1))=FALSE,RIGHT(Tabel5[[#This Row],[Description 2]:[Description 2]],LEN(Tabel5[[#This Row],[Description 2]:[Description 2]])-FIND(\":\",Tabel5[[#This Row],[Description 2]:[Description 2]])-1),\"\")","v":""},"",{"$f":"IF(Tabel5[[Name]:[Name]]>0,Tabel5[[Name]:[Name]],\"\")","v":""}]
[{"$f":"IF(ISERROR(RIGHT(Tabel5[[#This Row],[Description 2]:[Description 2]],LEN(Tabel5[[#This Row],[Description 2]:[Description 2]])-FIND(\":\",Tabel5[[#This Row],[Description 2]:[Description 2]])-1))=FALSE,RIGHT(Tabel5[[#This Row],[Description 2]:[Description 2]],LEN(Tabel5[[#This Row],[Description 2]:[Description 2]])-FIND(\":\",Tabel5[[#This Row],[Description 2]:[Description 2]])-1),\"\")","v":""},"",{"$f":"IF(Tabel5[[Name]:[Name]]>0,Tabel5[[Name]:[Name]],\"\")","v":""}]
[{"$f":"IF(ISERROR(RIGHT(Tabel5[[#This Row],[Description 2]:[Description 2]],LEN(Tabel5[[#This Row],[Description 2]:[Description 2]])-FIND(\":\",Tabel5[[#This Row],[Description 2]:[Description 2]])-1))=FALSE,RIGHT(Tabel5[[#This Row],[Description 2]:[Description 2]],LEN(Tabel5[[#This Row],[Description 2]:[Description 2]])-FIND(\":\",Tabel5[[#This Row],[Description 2]:[Description 2]])-1),\"\")","v":""},"",{"$f":"IF(Tabel5[[Name]:[Name]]>0,Tabel5[[Name]:[Name]],\"\")","v":""}]
[{"$f":"IF(ISERROR(RIGHT(Tabel5[[#This Row],[Description 2]:[Description 2]],LEN(Tabel5[[#This Row],[Description 2]:[Description 2]])-FIND(\":\",Tabel5[[#This Row],[Description 2]:[Description 2]])-1))=FALSE,RIGHT(Tabel5[[#This Row],[Description 2]:[Description 2]],LEN(Tabel5[[#This Row],[Description 2]:[Description 2]])-FIND(\":\",Tabel5[[#This Row],[Description 2]:[Description 2]])-1),\"\")","v":""},"",{"$f":"IF(Tabel5[[Name]:[Name]]>0,Tabel5[[Name]:[Name]],\"\")","v":""}]
[{"$f":"IF(ISERROR(RIGHT(Tabel5[[#This Row],[Description 2]:[Description 2]],LEN(Tabel5[[#This Row],[Description 2]:[Description 2]])-FIND(\":\",Tabel5[[#This Row],[Description 2]:[Description 2]])-1))=FALSE,RIGHT(Tabel5[[#This Row],[Description 2]:[Description 2]],LEN(Tabel5[[#This Row],[Description 2]:[Description 2]])-FIND(\":\",Tabel5[[#This Row],[Description 2]:[Description 2]])-1),\"\")","v":""},"",{"$f":"IF(Tabel5[[Name]:[Name]]>0,Tabel5[[Name]:[Name]],\"\")","v":""}]
[{"$f":"IF(ISERROR(RIGHT(Tabel5[[#This Row],[Description 2]:[Description 2]],LEN(Tabel5[[#This Row],[Description 2]:[Description 2]])-FIND(\":\",Tabel5[[#This Row],[Description 2]:[Description 2]])-1))=FALSE,RIGHT(Tabel5[[#This Row],[Description 2]:[Description 2]],LEN(Tabel5[[#This Row],[Description 2]:[Description 2]])-FIND(\":\",Tabel5[[#This Row],[Description 2]:[Description 2]])-1),\"\")","v":""},"",{"$f":"IF(Tabel5[[Name]:[Name]]>0,Tabel5[[Name]:[Name]],\"\")","v":""}]
[{"$f":"IF(ISERROR(RIGHT(Tabel5[[#This Row],[Description 2]:[Description 2]],LEN(Tabel5[[#This Row],[Description 2]:[Description 2]])-FIND(\":\",Tabel5[[#This Row],[Description 2]:[Description 2]])-1))=FALSE,RIGHT(Tabel5[[#This Row],[Description 2]:[Description 2]],LEN(Tabel5[[#This Row],[Description 2]:[Description 2]])-FIND(\":\",Tabel5[[#This Row],[Description 2]:[Description 2]])-1),\"\")","v":""},"",{"$f":"IF(Tabel5[[Name]:[Name]]>0,Tabel5[[Name]:[Name]],\"\")","v":""}]
[{"$f":"IF(ISERROR(RIGHT(Tabel5[[#This Row],[Description 2]:[Description 2]],LEN(Tabel5[[#This Row],[Description 2]:[Description 2]])-FIND(\":\",Tabel5[[#This Row],[Description 2]:[Description 2]])-1))=FALSE,RIGHT(Tabel5[[#This Row],[Description 2]:[Description 2]],LEN(Tabel5[[#This Row],[Description 2]:[Description 2]])-FIND(\":\",Tabel5[[#This Row],[Description 2]:[Description 2]])-1),\"\")","v":""},"",{"$f":"IF(Tabel5[[Name]:[Name]]>0,Tabel5[[Name]:[Name]],\"\")","v":""}]
[{"$f":"IF(ISERROR(RIGHT(Tabel5[[#This Row],[Description 2]:[Description 2]],LEN(Tabel5[[#This Row],[Description 2]:[Description 2]])-FIND(\":\",Tabel5[[#This Row],[Description 2]:[Description 2]])-1))=FALSE,RIGHT(Tabel5[[#This Row],[Description 2]:[Description 2]],LEN(Tabel5[[#This Row],[Description 2]:[Description 2]])-FIND(\":\",Tabel5[[#This Row],[Description 2]:[Description 2]])-1),\"\")","v":""},"",{"$f":"IF(Tabel5[[Name]:[Name]]>0,Tabel5[[Name]:[Name]],\"\")","v":""}]
[{"$f":"IF(ISERROR(RIGHT(Tabel5[[#This Row],[Description 2]:[Description 2]],LEN(Tabel5[[#This Row],[Description 2]:[Description 2]])-FIND(\":\",Tabel5[[#This Row],[Description 2]:[Description 2]])-1))=FALSE,RIGHT(Tabel5[[#This Row],[Description 2]:[Description 2]],LEN(Tabel5[[#This Row],[Description 2]:[Description 2]])-FIND(\":\",Tabel5[[#This Row],[Description 2]:[Description 2]])-1),\"\")","v":""},"",{"$f":"IF(Tabel5[[Name]:[Name]]>0,Tabel5[[Name]:[Name]],\"\")","v":""}]
[{"$f":"IF(ISERROR(RIGHT(Tabel5[[#This Row],[Description 2]:[Description 2]],LEN(Tabel5[[#This Row],[Description 2]:[Description 2]])-FIND(\":\",Tabel5[[#This Row],[Description 2]:[Description 2]])-1))=FALSE,RIGHT(Tabel5[[#This Row],[Description 2]:[Description 2]],LEN(Tabel5[[#This Row],[Description 2]:[Description 2]])-FIND(\":\",Tabel5[[#This Row],[Description 2]:[Description 2]])-1),\"\")","v":""},"",{"$f":"IF(Tabel5[[Name]:[Name]]>0,Tabel5[[Name]:[Name]],\"\")","v":""}]
[{"$f":"IF(ISERROR(RIGHT(Tabel5[[#This Row],[Description 2]:[Description 2]],LEN(Tabel5[[#This Row],[Description 2]:[Description 2]])-FIND(\":\",Tabel5[[#This Row],[Description 2]:[Description 2]])-1))=FALSE,RIGHT(Tabel5[[#This Row],[Description 2]:[Description 2]],LEN(Tabel5[[#This Row],[Description 2]:[Description 2]])-FIND(\":\",Tabel5[[#This Row],[Description 2]:[Description 2]])-1),\"\")","v":""},"",{"$f":"IF(Tabel5[[Name]:[Name]]>0,Tabel5[[Name]:[Name]],\"\")","v":""}]
[{"$f":"IF(ISERROR(RIGHT(Tabel5[[#This Row],[Description 2]:[Description 2]],LEN(Tabel5[[#This Row],[Description 2]:[Description 2]])-FIND(\":\",Tabel5[[#This Row],[Description 2]:[Description 2]])-1))=FALSE,RIGHT(Tabel5[[#This Row],[Description 2]:[Description 2]],LEN(Tabel5[[#This Row],[Description 2]:[Description 2]])-FIND(\":\",Tabel5[[#This Row],[Description 2]:[Description 2]])-1),\"\")","v":""},"",{"$f":"IF(Tabel5[[Name]:[Name]]>0,Tabel5[[Name]:[Name]],\"\")","v":""}]
[{"$f":"IF(ISERROR(RIGHT(Tabel5[[#This Row],[Description 2]:[Description 2]],LEN(Tabel5[[#This Row],[Description 2]:[Description 2]])-FIND(\":\",Tabel5[[#This Row],[Description 2]:[Description 2]])-1))=FALSE,RIGHT(Tabel5[[#This Row],[Description 2]:[Description 2]],LEN(Tabel5[[#This Row],[Description 2]:[Description 2]])-FIND(\":\",Tabel5[[#This Row],[Description 2]:[Description 2]])-1),\"\")","v":""},"",{"$f":"IF(Tabel5[[Name]:[Name]]>0,Tabel5[[Name]:[Name]],\"\")","v":""}]
[{"$f":"IF(ISERROR(RIGHT(Tabel5[[#This Row],[Description 2]:[Description 2]],LEN(Tabel5[[#This Row],[Description 2]:[Description 2]])-FIND(\":\",Tabel5[[#This Row],[Description 2]:[Description 2]])-1))=FALSE,RIGHT(Tabel5[[#This Row],[Description 2]:[Description 2]],LEN(Tabel5[[#This Row],[Description 2]:[Description 2]])-FIND(\":\",Tabel5[[#This Row],[Description 2]:[Description 2]])-1),\"\")","v":""},"",{"$f":"IF(Tabel5[[Name]:[Name]]>0,Tabel5[[Name]:[Name]],\"\")","v":""}]
[{"$f":"IF(ISERROR(RIGHT(Tabel5[[#This Row],[Description 2]:[Description 2]],LEN(Tabel5[[#This Row],[Description 2]:[Description 2]])-FIND(\":\",Tabel5[[#This Row],[Description 2]:[Description 2]])-1))=FALSE,RIGHT(Tabel5[[#This Row],[Description 2]:[Description 2]],LEN(Tabel5[[#This Row],[Description 2]:[Description 2]])-FIND(\":\",Tabel5[[#This Row],[Description 2]:[Description 2]])-1),\"\")","v":""},"",{"$f":"IF(Tabel5[[Name]:[Name]]>0,Tabel5[[Name]:[Name]],\"\")","v":""}]
[{"$f":"IF(ISERROR(RIGHT(Tabel5[[#This Row],[Description 2]:[Description 2]],LEN(Tabel5[[#This Row],[Description 2]:[Description 2]])-FIND(\":\",Tabel5[[#This Row],[Description 2]:[Description 2]])-1))=FALSE,RIGHT(Tabel5[[#This Row],[Description 2]:[Description 2]],LEN(Tabel5[[#This Row],[Description 2]:[Description 2]])-FIND(\":\",Tabel5[[#This Row],[Description 2]:[Description 2]])-1),\"\")","v":""},"",{"$f":"IF(Tabel5[[Name]:[Name]]>0,Tabel5[[Name]:[Name]],\"\")","v":""}]
[{"$f":"IF(ISERROR(RIGHT(Tabel5[[#This Row],[Description 2]:[Description 2]],LEN(Tabel5[[#This Row],[Description 2]:[Description 2]])-FIND(\":\",Tabel5[[#This Row],[Description 2]:[Description 2]])-1))=FALSE,RIGHT(Tabel5[[#This Row],[Description 2]:[Description 2]],LEN(Tabel5[[#This Row],[Description 2]:[Description 2]])-FIND(\":\",Tabel5[[#This Row],[Description 2]:[Description 2]])-1),\"\")","v":""},"",{"$f":"IF(Tabel5[[Name]:[Name]]>0,Tabel5[[Name]:[Name]],\"\")","v":""}]
[{"$f":"IF(ISERROR(RIGHT(Tabel5[[#This Row],[Description 2]:[Description 2]],LEN(Tabel5[[#This Row],[Description 2]:[Description 2]])-FIND(\":\",Tabel5[[#This Row],[Description 2]:[Description 2]])-1))=FALSE,RIGHT(Tabel5[[#This Row],[Description 2]:[Description 2]],LEN(Tabel5[[#This Row],[Description 2]:[Description 2]])-FIND(\":\",Tabel5[[#This Row],[Description 2]:[Description 2]])-1),\"\")","v":""},"",{"$f":"IF(Tabel5[[Name]:[Name]]>0,Tabel5[[Name]:[Name]],\"\")","v":""}]
[{"$f":"IF(ISERROR(RIGHT(Tabel5[[#This Row],[Description 2]:[Description 2]],LEN(Tabel5[[#This Row],[Description 2]:[Description 2]])-FIND(\":\",Tabel5[[#This Row],[Description 2]:[Description 2]])-1))=FALSE,RIGHT(Tabel5[[#This Row],[Description 2]:[Description 2]],LEN(Tabel5[[#This Row],[Description 2]:[Description 2]])-FIND(\":\",Tabel5[[#This Row],[Description 2]:[Description 2]])-1),\"\")","v":""},"",{"$f":"IF(Tabel5[[Name]:[Name]]>0,Tabel5[[Name]:[Name]],\"\")","v":""}]
[{"$f":"IF(ISERROR(RIGHT(Tabel5[[#This Row],[Description 2]:[Description 2]],LEN(Tabel5[[#This Row],[Description 2]:[Description 2]])-FIND(\":\",Tabel5[[#This Row],[Description 2]:[Description 2]])-1))=FALSE,RIGHT(Tabel5[[#This Row],[Description 2]:[Description 2]],LEN(Tabel5[[#This Row],[Description 2]:[Description 2]])-FIND(\":\",Tabel5[[#This Row],[Description 2]:[Description 2]])-1),\"\")","v":""},"",{"$f":"IF(Tabel5[[Name]:[Name]]>0,Tabel5[[Name]:[Name]],\"\")","v":""}]
[{"$f":"IF(ISERROR(RIGHT(Tabel5[[#This Row],[Description 2]:[Description 2]],LEN(Tabel5[[#This Row],[Description 2]:[Description 2]])-FIND(\":\",Tabel5[[#This Row],[Description 2]:[Description 2]])-1))=FALSE,RIGHT(Tabel5[[#This Row],[Description 2]:[Description 2]],LEN(Tabel5[[#This Row],[Description 2]:[Description 2]])-FIND(\":\",Tabel5[[#This Row],[Description 2]:[Description 2]])-1),\"\")","v":""},"",{"$f":"IF(Tabel5[[Name]:[Name]]>0,Tabel5[[Name]:[Name]],\"\")","v":""}]
[{"$f":"IF(ISERROR(RIGHT(Tabel5[[#This Row],[Description 2]:[Description 2]],LEN(Tabel5[[#This Row],[Description 2]:[Description 2]])-FIND(\":\",Tabel5[[#This Row],[Description 2]:[Description 2]])-1))=FALSE,RIGHT(Tabel5[[#This Row],[Description 2]:[Description 2]],LEN(Tabel5[[#This Row],[Description 2]:[Description 2]])-FIND(\":\",Tabel5[[#This Row],[Description 2]:[Description 2]])-1),\"\")","v":""},"",{"$f":"IF(Tabel5[[Name]:[Name]]>0,Tabel5[[Name]:[Name]],\"\")","v":""}]
[{"$f":"IF(ISERROR(RIGHT(Tabel5[[#This Row],[Description 2]:[Description 2]],LEN(Tabel5[[#This Row],[Description 2]:[Description 2]])-FIND(\":\",Tabel5[[#This Row],[Description 2]:[Description 2]])-1))=FALSE,RIGHT(Tabel5[[#This Row],[Description 2]:[Description 2]],LEN(Tabel5[[#This Row],[Description 2]:[Description 2]])-FIND(\":\",Tabel5[[#This Row],[Description 2]:[Description 2]])-1),\"\")","v":""},"",{"$f":"IF(Tabel5[[Name]:[Name]]>0,Tabel5[[Name]:[Name]],\"\")","v":""}]
[{"$f":"IF(ISERROR(RIGHT(Tabel5[[#This Row],[Description 2]:[Description 2]],LEN(Tabel5[[#This Row],[Description 2]:[Description 2]])-FIND(\":\",Tabel5[[#This Row],[Description 2]:[Description 2]])-1))=FALSE,RIGHT(Tabel5[[#This Row],[Description 2]:[Description 2]],LEN(Tabel5[[#This Row],[Description 2]:[Description 2]])-FIND(\":\",Tabel5[[#This Row],[Description 2]:[Description 2]])-1),\"\")","v":""},"",{"$f":"IF(Tabel5[[Name]:[Name]]>0,Tabel5[[Name]:[Name]],\"\")","v":""}]
[{"$f":"IF(ISERROR(RIGHT(Tabel5[[#This Row],[Description 2]:[Description 2]],LEN(Tabel5[[#This Row],[Description 2]:[Description 2]])-FIND(\":\",Tabel5[[#This Row],[Description 2]:[Description 2]])-1))=FALSE,RIGHT(Tabel5[[#This Row],[Description 2]:[Description 2]],LEN(Tabel5[[#This Row],[Description 2]:[Description 2]])-FIND(\":\",Tabel5[[#This Row],[Description 2]:[Description 2]])-1),\"\")","v":""},"",{"$f":"IF(Tabel5[[Name]:[Name]]>0,Tabel5[[Name]:[Name]],\"\")","v":""}]
[{"$f":"IF(ISERROR(RIGHT(Tabel5[[#This Row],[Description 2]:[Description 2]],LEN(Tabel5[[#This Row],[Description 2]:[Description 2]])-FIND(\":\",Tabel5[[#This Row],[Description 2]:[Description 2]])-1))=FALSE,RIGHT(Tabel5[[#This Row],[Description 2]:[Description 2]],LEN(Tabel5[[#This Row],[Description 2]:[Description 2]])-FIND(\":\",Tabel5[[#This Row],[Description 2]:[Description 2]])-1),\"\")","v":""},"",{"$f":"IF(Tabel5[[Name]:[Name]]>0,Tabel5[[Name]:[Name]],\"\")","v":""}]
[{"$f":"IF(ISERROR(RIGHT(Tabel5[[#This Row],[Description 2]:[Description 2]],LEN(Tabel5[[#This Row],[Description 2]:[Description 2]])-FIND(\":\",Tabel5[[#This Row],[Description 2]:[Description 2]])-1))=FALSE,RIGHT(Tabel5[[#This Row],[Description 2]:[Description 2]],LEN(Tabel5[[#This Row],[Description 2]:[Description 2]])-FIND(\":\",Tabel5[[#This Row],[Description 2]:[Description 2]])-1),\"\")","v":""},"",{"$f":"IF(Tabel5[[Name]:[Name]]>0,Tabel5[[Name]:[Name]],\"\")","v":""}]
[{"$f":"IF(ISERROR(RIGHT(Tabel5[[#This Row],[Description 2]:[Description 2]],LEN(Tabel5[[#This Row],[Description 2]:[Description 2]])-FIND(\":\",Tabel5[[#This Row],[Description 2]:[Description 2]])-1))=FALSE,RIGHT(Tabel5[[#This Row],[Description 2]:[Description 2]],LEN(Tabel5[[#This Row],[Description 2]:[Description 2]])-FIND(\":\",Tabel5[[#This Row],[Description 2]:[Description 2]])-1),\"\")","v":""},"",{"$f":"IF(Tabel5[[Name]:[Name]]>0,Tabel5[[Name]:[Name]],\"\")","v":""}]
[{"$f":"IF(ISERROR(RIGHT(Tabel5[[#This Row],[Description 2]:[Description 2]],LEN(Tabel5[[#This Row],[Description 2]:[Description 2]])-FIND(\":\",Tabel5[[#This Row],[Description 2]:[Description 2]])-1))=FALSE,RIGHT(Tabel5[[#This Row],[Description 2]:[Description 2]],LEN(Tabel5[[#This Row],[Description 2]:[Description 2]])-FIND(\":\",Tabel5[[#This Row],[Description 2]:[Description 2]])-1),\"\")","v":""},"",{"$f":"IF(Tabel5[[Name]:[Name]]>0,Tabel5[[Name]:[Name]],\"\")","v":""}]
[{"$f":"IF(ISERROR(RIGHT(Tabel5[[#This Row],[Description 2]:[Description 2]],LEN(Tabel5[[#This Row],[Description 2]:[Description 2]])-FIND(\":\",Tabel5[[#This Row],[Description 2]:[Description 2]])-1))=FALSE,RIGHT(Tabel5[[#This Row],[Description 2]:[Description 2]],LEN(Tabel5[[#This Row],[Description 2]:[Description 2]])-FIND(\":\",Tabel5[[#This Row],[Description 2]:[Description 2]])-1),\"\")","v":""},"",{"$f":"IF(Tabel5[[Name]:[Name]]>0,Tabel5[[Name]:[Name]],\"\")","v":""}]
[{"$f":"IF(ISERROR(RIGHT(Tabel5[[#This Row],[Description 2]:[Description 2]],LEN(Tabel5[[#This Row],[Description 2]:[Description 2]])-FIND(\":\",Tabel5[[#This Row],[Description 2]:[Description 2]])-1))=FALSE,RIGHT(Tabel5[[#This Row],[Description 2]:[Description 2]],LEN(Tabel5[[#This Row],[Description 2]:[Description 2]])-FIND(\":\",Tabel5[[#This Row],[Description 2]:[Description 2]])-1),\"\")","v":""},"",{"$f":"IF(Tabel5[[Name]:[Name]]>0,Tabel5[[Name]:[Name]],\"\")","v":""}]
[{"$f":"IF(ISERROR(RIGHT(Tabel5[[#This Row],[Description 2]:[Description 2]],LEN(Tabel5[[#This Row],[Description 2]:[Description 2]])-FIND(\":\",Tabel5[[#This Row],[Description 2]:[Description 2]])-1))=FALSE,RIGHT(Tabel5[[#This Row],[Description 2]:[Description 2]],LEN(Tabel5[[#This Row],[Description 2]:[Description 2]])-FIND(\":\",Tabel5[[#This Row],[Description 2]:[Description 2]])-1),\"\")","v":""},"",{"$f":"IF(Tabel5[[Name]:[Name]]>0,Tabel5[[Name]:[Name]],\"\")","v":""}]
[{"$f":"IF(ISERROR(RIGHT(Tabel5[[#This Row],[Description 2]:[Description 2]],LEN(Tabel5[[#This Row],[Description 2]:[Description 2]])-FIND(\":\",Tabel5[[#This Row],[Description 2]:[Description 2]])-1))=FALSE,RIGHT(Tabel5[[#This Row],[Description 2]:[Description 2]],LEN(Tabel5[[#This Row],[Description 2]:[Description 2]])-FIND(\":\",Tabel5[[#This Row],[Description 2]:[Description 2]])-1),\"\")","v":""},"",{"$f":"IF(Tabel5[[Name]:[Name]]>0,Tabel5[[Name]:[Name]],\"\")","v":""}]
[{"$f":"IF(ISERROR(RIGHT(Tabel5[[#This Row],[Description 2]:[Description 2]],LEN(Tabel5[[#This Row],[Description 2]:[Description 2]])-FIND(\":\",Tabel5[[#This Row],[Description 2]:[Description 2]])-1))=FALSE,RIGHT(Tabel5[[#This Row],[Description 2]:[Description 2]],LEN(Tabel5[[#This Row],[Description 2]:[Description 2]])-FIND(\":\",Tabel5[[#This Row],[Description 2]:[Description 2]])-1),\"\")","v":""},"",{"$f":"IF(Tabel5[[Name]:[Name]]>0,Tabel5[[Name]:[Name]],\"\")","v":""}]
[{"$f":"IF(ISERROR(RIGHT(Tabel5[[#This Row],[Description 2]:[Description 2]],LEN(Tabel5[[#This Row],[Description 2]:[Description 2]])-FIND(\":\",Tabel5[[#This Row],[Description 2]:[Description 2]])-1))=FALSE,RIGHT(Tabel5[[#This Row],[Description 2]:[Description 2]],LEN(Tabel5[[#This Row],[Description 2]:[Description 2]])-FIND(\":\",Tabel5[[#This Row],[Description 2]:[Description 2]])-1),\"\")","v":""},"",{"$f":"IF(Tabel5[[Name]:[Name]]>0,Tabel5[[Name]:[Name]],\"\")","v":""}]
[{"$f":"IF(ISERROR(RIGHT(Tabel5[[#This Row],[Description 2]:[Description 2]],LEN(Tabel5[[#This Row],[Description 2]:[Description 2]])-FIND(\":\",Tabel5[[#This Row],[Description 2]:[Description 2]])-1))=FALSE,RIGHT(Tabel5[[#This Row],[Description 2]:[Description 2]],LEN(Tabel5[[#This Row],[Description 2]:[Description 2]])-FIND(\":\",Tabel5[[#This Row],[Description 2]:[Description 2]])-1),\"\")","v":""},"",{"$f":"IF(Tabel5[[Name]:[Name]]>0,Tabel5[[Name]:[Name]],\"\")","v":""}]
[{"$f":"IF(ISERROR(RIGHT(Tabel5[[#This Row],[Description 2]:[Description 2]],LEN(Tabel5[[#This Row],[Description 2]:[Description 2]])-FIND(\":\",Tabel5[[#This Row],[Description 2]:[Description 2]])-1))=FALSE,RIGHT(Tabel5[[#This Row],[Description 2]:[Description 2]],LEN(Tabel5[[#This Row],[Description 2]:[Description 2]])-FIND(\":\",Tabel5[[#This Row],[Description 2]:[Description 2]])-1),\"\")","v":""},"",{"$f":"IF(Tabel5[[Name]:[Name]]>0,Tabel5[[Name]:[Name]],\"\")","v":""}]
[{"$f":"IF(ISERROR(RIGHT(Tabel5[[#This Row],[Description 2]:[Description 2]],LEN(Tabel5[[#This Row],[Description 2]:[Description 2]])-FIND(\":\",Tabel5[[#This Row],[Description 2]:[Description 2]])-1))=FALSE,RIGHT(Tabel5[[#This Row],[Description 2]:[Description 2]],LEN(Tabel5[[#This Row],[Description 2]:[Description 2]])-FIND(\":\",Tabel5[[#This Row],[Description 2]:[Description 2]])-1),\"\")","v":""},"",{"$f":"IF(Tabel5[[Name]:[Name]]>0,Tabel5[[Name]:[Name]],\"\")","v":""}]
[{"$f":"IF(ISERROR(RIGHT(Tabel5[[#This Row],[Description 2]:[Description 2]],LEN(Tabel5[[#This Row],[Description 2]:[Description 2]])-FIND(\":\",Tabel5[[#This Row],[Description 2]:[Description 2]])-1))=FALSE,RIGHT(Tabel5[[#This Row],[Description 2]:[Description 2]],LEN(Tabel5[[#This Row],[Description 2]:[Description 2]])-FIND(\":\",Tabel5[[#This Row],[Description 2]:[Description 2]])-1),\"\")","v":""},"",{"$f":"IF(Tabel5[[Name]:[Name]]>0,Tabel5[[Name]:[Name]],\"\")","v":""}]
[{"$f":"IF(ISERROR(RIGHT(Tabel5[[#This Row],[Description 2]:[Description 2]],LEN(Tabel5[[#This Row],[Description 2]:[Description 2]])-FIND(\":\",Tabel5[[#This Row],[Description 2]:[Description 2]])-1))=FALSE,RIGHT(Tabel5[[#This Row],[Description 2]:[Description 2]],LEN(Tabel5[[#This Row],[Description 2]:[Description 2]])-FIND(\":\",Tabel5[[#This Row],[Description 2]:[Description 2]])-1),\"\")","v":""},"",{"$f":"IF(Tabel5[[Name]:[Name]]>0,Tabel5[[Name]:[Name]],\"\")","v":""}]
[{"$f":"IF(ISERROR(RIGHT(Tabel5[[#This Row],[Description 2]:[Description 2]],LEN(Tabel5[[#This Row],[Description 2]:[Description 2]])-FIND(\":\",Tabel5[[#This Row],[Description 2]:[Description 2]])-1))=FALSE,RIGHT(Tabel5[[#This Row],[Description 2]:[Description 2]],LEN(Tabel5[[#This Row],[Description 2]:[Description 2]])-FIND(\":\",Tabel5[[#This Row],[Description 2]:[Description 2]])-1),\"\")","v":""},"",{"$f":"IF(Tabel5[[Name]:[Name]]>0,Tabel5[[Name]:[Name]],\"\")","v":""}]
[{"$f":"IF(ISERROR(RIGHT(Tabel5[[#This Row],[Description 2]:[Description 2]],LEN(Tabel5[[#This Row],[Description 2]:[Description 2]])-FIND(\":\",Tabel5[[#This Row],[Description 2]:[Description 2]])-1))=FALSE,RIGHT(Tabel5[[#This Row],[Description 2]:[Description 2]],LEN(Tabel5[[#This Row],[Description 2]:[Description 2]])-FIND(\":\",Tabel5[[#This Row],[Description 2]:[Description 2]])-1),\"\")","v":""},"",{"$f":"IF(Tabel5[[Name]:[Name]]>0,Tabel5[[Name]:[Name]],\"\")","v":""}]
[{"$f":"IF(ISERROR(RIGHT(Tabel5[[#This Row],[Description 2]:[Description 2]],LEN(Tabel5[[#This Row],[Description 2]:[Description 2]])-FIND(\":\",Tabel5[[#This Row],[Description 2]:[Description 2]])-1))=FALSE,RIGHT(Tabel5[[#This Row],[Description 2]:[Description 2]],LEN(Tabel5[[#This Row],[Description 2]:[Description 2]])-FIND(\":\",Tabel5[[#This Row],[Description 2]:[Description 2]])-1),\"\")","v":""},"",{"$f":"IF(Tabel5[[Name]:[Name]]>0,Tabel5[[Name]:[Name]],\"\")","v":""}]
[{"$f":"IF(ISERROR(RIGHT(Tabel5[[#This Row],[Description 2]:[Description 2]],LEN(Tabel5[[#This Row],[Description 2]:[Description 2]])-FIND(\":\",Tabel5[[#This Row],[Description 2]:[Description 2]])-1))=FALSE,RIGHT(Tabel5[[#This Row],[Description 2]:[Description 2]],LEN(Tabel5[[#This Row],[Description 2]:[Description 2]])-FIND(\":\",Tabel5[[#This Row],[Description 2]:[Description 2]])-1),\"\")","v":""},"",{"$f":"IF(Tabel5[[Name]:[Name]]>0,Tabel5[[Name]:[Name]],\"\")","v":""}]
[{"$f":"IF(ISERROR(RIGHT(Tabel5[[#This Row],[Description 2]:[Description 2]],LEN(Tabel5[[#This Row],[Description 2]:[Description 2]])-FIND(\":\",Tabel5[[#This Row],[Description 2]:[Description 2]])-1))=FALSE,RIGHT(Tabel5[[#This Row],[Description 2]:[Description 2]],LEN(Tabel5[[#This Row],[Description 2]:[Description 2]])-FIND(\":\",Tabel5[[#This Row],[Description 2]:[Description 2]])-1),\"\")","v":""},"",{"$f":"IF(Tabel5[[Name]:[Name]]>0,Tabel5[[Name]:[Name]],\"\")","v":""}]
[{"$f":"IF(ISERROR(RIGHT(Tabel5[[#This Row],[Description 2]:[Description 2]],LEN(Tabel5[[#This Row],[Description 2]:[Description 2]])-FIND(\":\",Tabel5[[#This Row],[Description 2]:[Description 2]])-1))=FALSE,RIGHT(Tabel5[[#This Row],[Description 2]:[Description 2]],LEN(Tabel5[[#This Row],[Description 2]:[Description 2]])-FIND(\":\",Tabel5[[#This Row],[Description 2]:[Description 2]])-1),\"\")","v":""},"",{"$f":"IF(Tabel5[[Name]:[Name]]>0,Tabel5[[Name]:[Name]],\"\")","v":""}]
[{"$f":"IF(ISERROR(RIGHT(Tabel5[[#This Row],[Description 2]:[Description 2]],LEN(Tabel5[[#This Row],[Description 2]:[Description 2]])-FIND(\":\",Tabel5[[#This Row],[Description 2]:[Description 2]])-1))=FALSE,RIGHT(Tabel5[[#This Row],[Description 2]:[Description 2]],LEN(Tabel5[[#This Row],[Description 2]:[Description 2]])-FIND(\":\",Tabel5[[#This Row],[Description 2]:[Description 2]])-1),\"\")","v":""},"",{"$f":"IF(Tabel5[[Name]:[Name]]>0,Tabel5[[Name]:[Name]],\"\")","v":""}]
[{"$f":"IF(ISERROR(RIGHT(Tabel5[[#This Row],[Description 2]:[Description 2]],LEN(Tabel5[[#This Row],[Description 2]:[Description 2]])-FIND(\":\",Tabel5[[#This Row],[Description 2]:[Description 2]])-1))=FALSE,RIGHT(Tabel5[[#This Row],[Description 2]:[Description 2]],LEN(Tabel5[[#This Row],[Description 2]:[Description 2]])-FIND(\":\",Tabel5[[#This Row],[Description 2]:[Description 2]])-1),\"\")","v":""},"",{"$f":"IF(Tabel5[[Name]:[Name]]>0,Tabel5[[Name]:[Name]],\"\")","v":""}]
[{"$f":"IF(ISERROR(RIGHT(Tabel5[[#This Row],[Description 2]:[Description 2]],LEN(Tabel5[[#This Row],[Description 2]:[Description 2]])-FIND(\":\",Tabel5[[#This Row],[Description 2]:[Description 2]])-1))=FALSE,RIGHT(Tabel5[[#This Row],[Description 2]:[Description 2]],LEN(Tabel5[[#This Row],[Description 2]:[Description 2]])-FIND(\":\",Tabel5[[#This Row],[Description 2]:[Description 2]])-1),\"\")","v":""},"",{"$f":"IF(Tabel5[[Name]:[Name]]>0,Tabel5[[Name]:[Name]],\"\")","v":""}]
[{"$f":"IF(ISERROR(RIGHT(Tabel5[[#This Row],[Description 2]:[Description 2]],LEN(Tabel5[[#This Row],[Description 2]:[Description 2]])-FIND(\":\",Tabel5[[#This Row],[Description 2]:[Description 2]])-1))=FALSE,RIGHT(Tabel5[[#This Row],[Description 2]:[Description 2]],LEN(Tabel5[[#This Row],[Description 2]:[Description 2]])-FIND(\":\",Tabel5[[#This Row],[Description 2]:[Description 2]])-1),\"\")","v":""},{"$f":"IF(ISERROR(LEFT(A258,(FIND(\" \",A258))))=TRUE,A258,LEFT(A258,(FIND(\" \",A258))-1))","v":""},{"$f":"IF(Tabel5[[Name]:[Name]]>0,Tabel5[[Name]:[Name]],\"\")","v":""}]
[{"$f":"IF(ISERROR(RIGHT(Tabel5[[#This Row],[Description 2]:[Description 2]],LEN(Tabel5[[#This Row],[Description 2]:[Description 2]])-FIND(\":\",Tabel5[[#This Row],[Description 2]:[Description 2]])-1))=FALSE,RIGHT(Tabel5[[#This Row],[Description 2]:[Description 2]],LEN(Tabel5[[#This Row],[Description 2]:[Description 2]])-FIND(\":\",Tabel5[[#This Row],[Description 2]:[Description 2]])-1),\"\")","v":""},"",{"$f":"IF(Tabel5[[Name]:[Name]]>0,Tabel5[[Name]:[Name]],\"\")","v":""}]
[{"$f":"IF(ISERROR(RIGHT(Tabel5[[#This Row],[Description 2]:[Description 2]],LEN(Tabel5[[#This Row],[Description 2]:[Description 2]])-FIND(\":\",Tabel5[[#This Row],[Description 2]:[Description 2]])-1))=FALSE,RIGHT(Tabel5[[#This Row],[Description 2]:[Description 2]],LEN(Tabel5[[#This Row],[Description 2]:[Description 2]])-FIND(\":\",Tabel5[[#This Row],[Description 2]:[Description 2]])-1),\"\")","v":""},"",{"$f":"IF(Tabel5[[Name]:[Name]]>0,Tabel5[[Name]:[Name]],\"\")","v":""}]
[{"$f":"IF(ISERROR(RIGHT(Tabel5[[#This Row],[Description 2]:[Description 2]],LEN(Tabel5[[#This Row],[Description 2]:[Description 2]])-FIND(\":\",Tabel5[[#This Row],[Description 2]:[Description 2]])-1))=FALSE,RIGHT(Tabel5[[#This Row],[Description 2]:[Description 2]],LEN(Tabel5[[#This Row],[Description 2]:[Description 2]])-FIND(\":\",Tabel5[[#This Row],[Description 2]:[Description 2]])-1),\"\")","v":""},"",{"$f":"IF(Tabel5[[Name]:[Name]]>0,Tabel5[[Name]:[Name]],\"\")","v":""}]
[{"$f":"IF(ISERROR(RIGHT(Tabel5[[#This Row],[Description 2]:[Description 2]],LEN(Tabel5[[#This Row],[Description 2]:[Description 2]])-FIND(\":\",Tabel5[[#This Row],[Description 2]:[Description 2]])-1))=FALSE,RIGHT(Tabel5[[#This Row],[Description 2]:[Description 2]],LEN(Tabel5[[#This Row],[Description 2]:[Description 2]])-FIND(\":\",Tabel5[[#This Row],[Description 2]:[Description 2]])-1),\"\")","v":""},"",{"$f":"IF(Tabel5[[Name]:[Name]]>0,Tabel5[[Name]:[Name]],\"\")","v":""}]
[{"$f":"IF(ISERROR(RIGHT(Tabel5[[#This Row],[Description 2]:[Description 2]],LEN(Tabel5[[#This Row],[Description 2]:[Description 2]])-FIND(\":\",Tabel5[[#This Row],[Description 2]:[Description 2]])-1))=FALSE,RIGHT(Tabel5[[#This Row],[Description 2]:[Description 2]],LEN(Tabel5[[#This Row],[Description 2]:[Description 2]])-FIND(\":\",Tabel5[[#This Row],[Description 2]:[Description 2]])-1),\"\")","v":""},"",{"$f":"IF(Tabel5[[Name]:[Name]]>0,Tabel5[[Name]:[Name]],\"\")","v":""}]
[{"$f":"IF(ISERROR(RIGHT(Tabel5[[#This Row],[Description 2]:[Description 2]],LEN(Tabel5[[#This Row],[Description 2]:[Description 2]])-FIND(\":\",Tabel5[[#This Row],[Description 2]:[Description 2]])-1))=FALSE,RIGHT(Tabel5[[#This Row],[Description 2]:[Description 2]],LEN(Tabel5[[#This Row],[Description 2]:[Description 2]])-FIND(\":\",Tabel5[[#This Row],[Description 2]:[Description 2]])-1),\"\")","v":""},"",{"$f":"IF(Tabel5[[Name]:[Name]]>0,Tabel5[[Name]:[Name]],\"\")","v":""}]
[{"$f":"IF(ISERROR(RIGHT(Tabel5[[#This Row],[Description 2]:[Description 2]],LEN(Tabel5[[#This Row],[Description 2]:[Description 2]])-FIND(\":\",Tabel5[[#This Row],[Description 2]:[Description 2]])-1))=FALSE,RIGHT(Tabel5[[#This Row],[Description 2]:[Description 2]],LEN(Tabel5[[#This Row],[Description 2]:[Description 2]])-FIND(\":\",Tabel5[[#This Row],[Description 2]:[Description 2]])-1),\"\")","v":""},"",{"$f":"IF(Tabel5[[Name]:[Name]]>0,Tabel5[[Name]:[Name]],\"\")","v":""}]
[{"$f":"IF(ISERROR(RIGHT(Tabel5[[#This Row],[Description 2]:[Description 2]],LEN(Tabel5[[#This Row],[Description 2]:[Description 2]])-FIND(\":\",Tabel5[[#This Row],[Description 2]:[Description 2]])-1))=FALSE,RIGHT(Tabel5[[#This Row],[Description 2]:[Description 2]],LEN(Tabel5[[#This Row],[Description 2]:[Description 2]])-FIND(\":\",Tabel5[[#This Row],[Description 2]:[Description 2]])-1),\"\")","v":""},"",{"$f":"IF(Tabel5[[Name]:[Name]]>0,Tabel5[[Name]:[Name]],\"\")","v":""}]
[{"$f":"IF(ISERROR(RIGHT(Tabel5[[#This Row],[Description 2]:[Description 2]],LEN(Tabel5[[#This Row],[Description 2]:[Description 2]])-FIND(\":\",Tabel5[[#This Row],[Description 2]:[Description 2]])-1))=FALSE,RIGHT(Tabel5[[#This Row],[Description 2]:[Description 2]],LEN(Tabel5[[#This Row],[Description 2]:[Description 2]])-FIND(\":\",Tabel5[[#This Row],[Description 2]:[Description 2]])-1),\"\")","v":""},"",{"$f":"IF(Tabel5[[Name]:[Name]]>0,Tabel5[[Name]:[Name]],\"\")","v":""}]
[{"$f":"IF(ISERROR(RIGHT(Tabel5[[#This Row],[Description 2]:[Description 2]],LEN(Tabel5[[#This Row],[Description 2]:[Description 2]])-FIND(\":\",Tabel5[[#This Row],[Description 2]:[Description 2]])-1))=FALSE,RIGHT(Tabel5[[#This Row],[Description 2]:[Description 2]],LEN(Tabel5[[#This Row],[Description 2]:[Description 2]])-FIND(\":\",Tabel5[[#This Row],[Description 2]:[Description 2]])-1),\"\")","v":""},"",{"$f":"IF(Tabel5[[Name]:[Name]]>0,Tabel5[[Name]:[Name]],\"\")","v":""}]
[{"$f":"IF(ISERROR(RIGHT(Tabel5[[#This Row],[Description 2]:[Description 2]],LEN(Tabel5[[#This Row],[Description 2]:[Description 2]])-FIND(\":\",Tabel5[[#This Row],[Description 2]:[Description 2]])-1))=FALSE,RIGHT(Tabel5[[#This Row],[Description 2]:[Description 2]],LEN(Tabel5[[#This Row],[Description 2]:[Description 2]])-FIND(\":\",Tabel5[[#This Row],[Description 2]:[Description 2]])-1),\"\")","v":""},"",{"$f":"IF(Tabel5[[Name]:[Name]]>0,Tabel5[[Name]:[Name]],\"\")","v":""}]
[{"$f":"IF(ISERROR(RIGHT(Tabel5[[#This Row],[Description 2]:[Description 2]],LEN(Tabel5[[#This Row],[Description 2]:[Description 2]])-FIND(\":\",Tabel5[[#This Row],[Description 2]:[Description 2]])-1))=FALSE,RIGHT(Tabel5[[#This Row],[Description 2]:[Description 2]],LEN(Tabel5[[#This Row],[Description 2]:[Description 2]])-FIND(\":\",Tabel5[[#This Row],[Description 2]:[Description 2]])-1),\"\")","v":""},"",{"$f":"IF(Tabel5[[Name]:[Name]]>0,Tabel5[[Name]:[Name]],\"\")","v":""}]
[{"$f":"IF(ISERROR(RIGHT(Tabel5[[#This Row],[Description 2]:[Description 2]],LEN(Tabel5[[#This Row],[Description 2]:[Description 2]])-FIND(\":\",Tabel5[[#This Row],[Description 2]:[Description 2]])-1))=FALSE,RIGHT(Tabel5[[#This Row],[Description 2]:[Description 2]],LEN(Tabel5[[#This Row],[Description 2]:[Description 2]])-FIND(\":\",Tabel5[[#This Row],[Description 2]:[Description 2]])-1),\"\")","v":""},"",{"$f":"IF(Tabel5[[Name]:[Name]]>0,Tabel5[[Name]:[Name]],\"\")","v":""}]
[{"$f":"IF(ISERROR(RIGHT(Tabel5[[#This Row],[Description 2]:[Description 2]],LEN(Tabel5[[#This Row],[Description 2]:[Description 2]])-FIND(\":\",Tabel5[[#This Row],[Description 2]:[Description 2]])-1))=FALSE,RIGHT(Tabel5[[#This Row],[Description 2]:[Description 2]],LEN(Tabel5[[#This Row],[Description 2]:[Description 2]])-FIND(\":\",Tabel5[[#This Row],[Description 2]:[Description 2]])-1),\"\")","v":""},"",{"$f":"IF(Tabel5[[Name]:[Name]]>0,Tabel5[[Name]:[Name]],\"\")","v":""}]
[{"$f":"IF(ISERROR(RIGHT(Tabel5[[#This Row],[Description 2]:[Description 2]],LEN(Tabel5[[#This Row],[Description 2]:[Description 2]])-FIND(\":\",Tabel5[[#This Row],[Description 2]:[Description 2]])-1))=FALSE,RIGHT(Tabel5[[#This Row],[Description 2]:[Description 2]],LEN(Tabel5[[#This Row],[Description 2]:[Description 2]])-FIND(\":\",Tabel5[[#This Row],[Description 2]:[Description 2]])-1),\"\")","v":""},"",{"$f":"IF(Tabel5[[Name]:[Name]]>0,Tabel5[[Name]:[Name]],\"\")","v":""}]
[{"$f":"IF(ISERROR(RIGHT(Tabel5[[#This Row],[Description 2]:[Description 2]],LEN(Tabel5[[#This Row],[Description 2]:[Description 2]])-FIND(\":\",Tabel5[[#This Row],[Description 2]:[Description 2]])-1))=FALSE,RIGHT(Tabel5[[#This Row],[Description 2]:[Description 2]],LEN(Tabel5[[#This Row],[Description 2]:[Description 2]])-FIND(\":\",Tabel5[[#This Row],[Description 2]:[Description 2]])-1),\"\")","v":""},"",{"$f":"IF(Tabel5[[Name]:[Name]]>0,Tabel5[[Name]:[Name]],\"\")","v":""}]
[{"$f":"IF(ISERROR(RIGHT(Tabel5[[#This Row],[Description 2]:[Description 2]],LEN(Tabel5[[#This Row],[Description 2]:[Description 2]])-FIND(\":\",Tabel5[[#This Row],[Description 2]:[Description 2]])-1))=FALSE,RIGHT(Tabel5[[#This Row],[Description 2]:[Description 2]],LEN(Tabel5[[#This Row],[Description 2]:[Description 2]])-FIND(\":\",Tabel5[[#This Row],[Description 2]:[Description 2]])-1),\"\")","v":""},"",{"$f":"IF(Tabel5[[Name]:[Name]]>0,Tabel5[[Name]:[Name]],\"\")","v":""}]
[{"$f":"IF(ISERROR(RIGHT(Tabel5[[#This Row],[Description 2]:[Description 2]],LEN(Tabel5[[#This Row],[Description 2]:[Description 2]])-FIND(\":\",Tabel5[[#This Row],[Description 2]:[Description 2]])-1))=FALSE,RIGHT(Tabel5[[#This Row],[Description 2]:[Description 2]],LEN(Tabel5[[#This Row],[Description 2]:[Description 2]])-FIND(\":\",Tabel5[[#This Row],[Description 2]:[Description 2]])-1),\"\")","v":""},"",{"$f":"IF(Tabel5[[Name]:[Name]]>0,Tabel5[[Name]:[Name]],\"\")","v":""}]
[{"$f":"IF(ISERROR(RIGHT(Tabel5[[#This Row],[Description 2]:[Description 2]],LEN(Tabel5[[#This Row],[Description 2]:[Description 2]])-FIND(\":\",Tabel5[[#This Row],[Description 2]:[Description 2]])-1))=FALSE,RIGHT(Tabel5[[#This Row],[Description 2]:[Description 2]],LEN(Tabel5[[#This Row],[Description 2]:[Description 2]])-FIND(\":\",Tabel5[[#This Row],[Description 2]:[Description 2]])-1),\"\")","v":""},"",{"$f":"IF(Tabel5[[Name]:[Name]]>0,Tabel5[[Name]:[Name]],\"\")","v":""}]
[{"$f":"IF(ISERROR(RIGHT(Tabel5[[#This Row],[Description 2]:[Description 2]],LEN(Tabel5[[#This Row],[Description 2]:[Description 2]])-FIND(\":\",Tabel5[[#This Row],[Description 2]:[Description 2]])-1))=FALSE,RIGHT(Tabel5[[#This Row],[Description 2]:[Description 2]],LEN(Tabel5[[#This Row],[Description 2]:[Description 2]])-FIND(\":\",Tabel5[[#This Row],[Description 2]:[Description 2]])-1),\"\")","v":""},"",{"$f":"IF(Tabel5[[Name]:[Name]]>0,Tabel5[[Name]:[Name]],\"\")","v":""}]
[{"$f":"IF(ISERROR(RIGHT(Tabel5[[#This Row],[Description 2]:[Description 2]],LEN(Tabel5[[#This Row],[Description 2]:[Description 2]])-FIND(\":\",Tabel5[[#This Row],[Description 2]:[Description 2]])-1))=FALSE,RIGHT(Tabel5[[#This Row],[Description 2]:[Description 2]],LEN(Tabel5[[#This Row],[Description 2]:[Description 2]])-FIND(\":\",Tabel5[[#This Row],[Description 2]:[Description 2]])-1),\"\")","v":""},"",{"$f":"IF(Tabel5[[Name]:[Name]]>0,Tabel5[[Name]:[Name]],\"\")","v":""}]
[{"$f":"IF(ISERROR(RIGHT(Tabel5[[#This Row],[Description 2]:[Description 2]],LEN(Tabel5[[#This Row],[Description 2]:[Description 2]])-FIND(\":\",Tabel5[[#This Row],[Description 2]:[Description 2]])-1))=FALSE,RIGHT(Tabel5[[#This Row],[Description 2]:[Description 2]],LEN(Tabel5[[#This Row],[Description 2]:[Description 2]])-FIND(\":\",Tabel5[[#This Row],[Description 2]:[Description 2]])-1),\"\")","v":""},"",{"$f":"IF(Tabel5[[Name]:[Name]]>0,Tabel5[[Name]:[Name]],\"\")","v":""}]
[{"$f":"IF(ISERROR(RIGHT(Tabel5[[#This Row],[Description 2]:[Description 2]],LEN(Tabel5[[#This Row],[Description 2]:[Description 2]])-FIND(\":\",Tabel5[[#This Row],[Description 2]:[Description 2]])-1))=FALSE,RIGHT(Tabel5[[#This Row],[Description 2]:[Description 2]],LEN(Tabel5[[#This Row],[Description 2]:[Description 2]])-FIND(\":\",Tabel5[[#This Row],[Description 2]:[Description 2]])-1),\"\")","v":""},"",{"$f":"IF(Tabel5[[Name]:[Name]]>0,Tabel5[[Name]:[Name]],\"\")","v":""}]
[{"$f":"IF(ISERROR(RIGHT(Tabel5[[#This Row],[Description 2]:[Description 2]],LEN(Tabel5[[#This Row],[Description 2]:[Description 2]])-FIND(\":\",Tabel5[[#This Row],[Description 2]:[Description 2]])-1))=FALSE,RIGHT(Tabel5[[#This Row],[Description 2]:[Description 2]],LEN(Tabel5[[#This Row],[Description 2]:[Description 2]])-FIND(\":\",Tabel5[[#This Row],[Description 2]:[Description 2]])-1),\"\")","v":""},"",{"$f":"IF(Tabel5[[Name]:[Name]]>0,Tabel5[[Name]:[Name]],\"\")","v":""}]
[{"$f":"IF(ISERROR(RIGHT(Tabel5[[#This Row],[Description 2]:[Description 2]],LEN(Tabel5[[#This Row],[Description 2]:[Description 2]])-FIND(\":\",Tabel5[[#This Row],[Description 2]:[Description 2]])-1))=FALSE,RIGHT(Tabel5[[#This Row],[Description 2]:[Description 2]],LEN(Tabel5[[#This Row],[Description 2]:[Description 2]])-FIND(\":\",Tabel5[[#This Row],[Description 2]:[Description 2]])-1),\"\")","v":""},"",{"$f":"IF(Tabel5[[Name]:[Name]]>0,Tabel5[[Name]:[Name]],\"\")","v":""}]
[{"$f":"IF(ISERROR(RIGHT(Tabel5[[#This Row],[Description 2]:[Description 2]],LEN(Tabel5[[#This Row],[Description 2]:[Description 2]])-FIND(\":\",Tabel5[[#This Row],[Description 2]:[Description 2]])-1))=FALSE,RIGHT(Tabel5[[#This Row],[Description 2]:[Description 2]],LEN(Tabel5[[#This Row],[Description 2]:[Description 2]])-FIND(\":\",Tabel5[[#This Row],[Description 2]:[Description 2]])-1),\"\")","v":""},"",{"$f":"IF(Tabel5[[Name]:[Name]]>0,Tabel5[[Name]:[Name]],\"\")","v":""}]
[{"$f":"IF(ISERROR(RIGHT(Tabel5[[#This Row],[Description 2]:[Description 2]],LEN(Tabel5[[#This Row],[Description 2]:[Description 2]])-FIND(\":\",Tabel5[[#This Row],[Description 2]:[Description 2]])-1))=FALSE,RIGHT(Tabel5[[#This Row],[Description 2]:[Description 2]],LEN(Tabel5[[#This Row],[Description 2]:[Description 2]])-FIND(\":\",Tabel5[[#This Row],[Description 2]:[Description 2]])-1),\"\")","v":""},"",{"$f":"IF(Tabel5[[Name]:[Name]]>0,Tabel5[[Name]:[Name]],\"\")","v":""}]
[{"$f":"IF(ISERROR(RIGHT(Tabel5[[#This Row],[Description 2]:[Description 2]],LEN(Tabel5[[#This Row],[Description 2]:[Description 2]])-FIND(\":\",Tabel5[[#This Row],[Description 2]:[Description 2]])-1))=FALSE,RIGHT(Tabel5[[#This Row],[Description 2]:[Description 2]],LEN(Tabel5[[#This Row],[Description 2]:[Description 2]])-FIND(\":\",Tabel5[[#This Row],[Description 2]:[Description 2]])-1),\"\")","v":""},"",{"$f":"IF(Tabel5[[Name]:[Name]]>0,Tabel5[[Name]:[Name]],\"\")","v":""}]
[{"$f":"IF(ISERROR(RIGHT(Tabel5[[#This Row],[Description 2]:[Description 2]],LEN(Tabel5[[#This Row],[Description 2]:[Description 2]])-FIND(\":\",Tabel5[[#This Row],[Description 2]:[Description 2]])-1))=FALSE,RIGHT(Tabel5[[#This Row],[Description 2]:[Description 2]],LEN(Tabel5[[#This Row],[Description 2]:[Description 2]])-FIND(\":\",Tabel5[[#This Row],[Description 2]:[Description 2]])-1),\"\")","v":""},"",{"$f":"IF(Tabel5[[Name]:[Name]]>0,Tabel5[[Name]:[Name]],\"\")","v":""}]
[{"$f":"IF(ISERROR(RIGHT(Tabel5[[#This Row],[Description 2]:[Description 2]],LEN(Tabel5[[#This Row],[Description 2]:[Description 2]])-FIND(\":\",Tabel5[[#This Row],[Description 2]:[Description 2]])-1))=FALSE,RIGHT(Tabel5[[#This Row],[Description 2]:[Description 2]],LEN(Tabel5[[#This Row],[Description 2]:[Description 2]])-FIND(\":\",Tabel5[[#This Row],[Description 2]:[Description 2]])-1),\"\")","v":""},"",{"$f":"IF(Tabel5[[Name]:[Name]]>0,Tabel5[[Name]:[Name]],\"\")","v":""}]
[{"$f":"IF(ISERROR(RIGHT(Tabel5[[#This Row],[Description 2]:[Description 2]],LEN(Tabel5[[#This Row],[Description 2]:[Description 2]])-FIND(\":\",Tabel5[[#This Row],[Description 2]:[Description 2]])-1))=FALSE,RIGHT(Tabel5[[#This Row],[Description 2]:[Description 2]],LEN(Tabel5[[#This Row],[Description 2]:[Description 2]])-FIND(\":\",Tabel5[[#This Row],[Description 2]:[Description 2]])-1),\"\")","v":""},"",{"$f":"IF(Tabel5[[Name]:[Name]]>0,Tabel5[[Name]:[Name]],\"\")","v":""}]
[{"$f":"IF(ISERROR(RIGHT(Tabel5[[#This Row],[Description 2]:[Description 2]],LEN(Tabel5[[#This Row],[Description 2]:[Description 2]])-FIND(\":\",Tabel5[[#This Row],[Description 2]:[Description 2]])-1))=FALSE,RIGHT(Tabel5[[#This Row],[Description 2]:[Description 2]],LEN(Tabel5[[#This Row],[Description 2]:[Description 2]])-FIND(\":\",Tabel5[[#This Row],[Description 2]:[Description 2]])-1),\"\")","v":""},"",{"$f":"IF(Tabel5[[Name]:[Name]]>0,Tabel5[[Name]:[Name]],\"\")","v":""}]
[{"$f":"IF(ISERROR(RIGHT(Tabel5[[#This Row],[Description 2]:[Description 2]],LEN(Tabel5[[#This Row],[Description 2]:[Description 2]])-FIND(\":\",Tabel5[[#This Row],[Description 2]:[Description 2]])-1))=FALSE,RIGHT(Tabel5[[#This Row],[Description 2]:[Description 2]],LEN(Tabel5[[#This Row],[Description 2]:[Description 2]])-FIND(\":\",Tabel5[[#This Row],[Description 2]:[Description 2]])-1),\"\")","v":""},"",{"$f":"IF(Tabel5[[Name]:[Name]]>0,Tabel5[[Name]:[Name]],\"\")","v":""}]
[{"$f":"IF(ISERROR(RIGHT(Tabel5[[#This Row],[Description 2]:[Description 2]],LEN(Tabel5[[#This Row],[Description 2]:[Description 2]])-FIND(\":\",Tabel5[[#This Row],[Description 2]:[Description 2]])-1))=FALSE,RIGHT(Tabel5[[#This Row],[Description 2]:[Description 2]],LEN(Tabel5[[#This Row],[Description 2]:[Description 2]])-FIND(\":\",Tabel5[[#This Row],[Description 2]:[Description 2]])-1),\"\")","v":""},"",{"$f":"IF(Tabel5[[Name]:[Name]]>0,Tabel5[[Name]:[Name]],\"\")","v":""}]
[{"$f":"IF(ISERROR(RIGHT(Tabel5[[#This Row],[Description 2]:[Description 2]],LEN(Tabel5[[#This Row],[Description 2]:[Description 2]])-FIND(\":\",Tabel5[[#This Row],[Description 2]:[Description 2]])-1))=FALSE,RIGHT(Tabel5[[#This Row],[Description 2]:[Description 2]],LEN(Tabel5[[#This Row],[Description 2]:[Description 2]])-FIND(\":\",Tabel5[[#This Row],[Description 2]:[Description 2]])-1),\"\")","v":""},"",{"$f":"IF(Tabel5[[Name]:[Name]]>0,Tabel5[[Name]:[Name]],\"\")","v":""}]
[{"$f":"IF(ISERROR(RIGHT(Tabel5[[#This Row],[Description 2]:[Description 2]],LEN(Tabel5[[#This Row],[Description 2]:[Description 2]])-FIND(\":\",Tabel5[[#This Row],[Description 2]:[Description 2]])-1))=FALSE,RIGHT(Tabel5[[#This Row],[Description 2]:[Description 2]],LEN(Tabel5[[#This Row],[Description 2]:[Description 2]])-FIND(\":\",Tabel5[[#This Row],[Description 2]:[Description 2]])-1),\"\")","v":""},"",{"$f":"IF(Tabel5[[Name]:[Name]]>0,Tabel5[[Name]:[Name]],\"\")","v":""}]
[{"$f":"IF(ISERROR(RIGHT(Tabel5[[#This Row],[Description 2]:[Description 2]],LEN(Tabel5[[#This Row],[Description 2]:[Description 2]])-FIND(\":\",Tabel5[[#This Row],[Description 2]:[Description 2]])-1))=FALSE,RIGHT(Tabel5[[#This Row],[Description 2]:[Description 2]],LEN(Tabel5[[#This Row],[Description 2]:[Description 2]])-FIND(\":\",Tabel5[[#This Row],[Description 2]:[Description 2]])-1),\"\")","v":""},"",{"$f":"IF(Tabel5[[Name]:[Name]]>0,Tabel5[[Name]:[Name]],\"\")","v":""}]
[{"$f":"IF(ISERROR(RIGHT(Tabel5[[#This Row],[Description 2]:[Description 2]],LEN(Tabel5[[#This Row],[Description 2]:[Description 2]])-FIND(\":\",Tabel5[[#This Row],[Description 2]:[Description 2]])-1))=FALSE,RIGHT(Tabel5[[#This Row],[Description 2]:[Description 2]],LEN(Tabel5[[#This Row],[Description 2]:[Description 2]])-FIND(\":\",Tabel5[[#This Row],[Description 2]:[Description 2]])-1),\"\")","v":""},"",{"$f":"IF(Tabel5[[Name]:[Name]]>0,Tabel5[[Name]:[Name]],\"\")","v":""}]
[{"$f":"IF(ISERROR(RIGHT(Tabel5[[#This Row],[Description 2]:[Description 2]],LEN(Tabel5[[#This Row],[Description 2]:[Description 2]])-FIND(\":\",Tabel5[[#This Row],[Description 2]:[Description 2]])-1))=FALSE,RIGHT(Tabel5[[#This Row],[Description 2]:[Description 2]],LEN(Tabel5[[#This Row],[Description 2]:[Description 2]])-FIND(\":\",Tabel5[[#This Row],[Description 2]:[Description 2]])-1),\"\")","v":""},"",{"$f":"IF(Tabel5[[Name]:[Name]]>0,Tabel5[[Name]:[Name]],\"\")","v":""}]
[{"$f":"IF(ISERROR(RIGHT(Tabel5[[#This Row],[Description 2]:[Description 2]],LEN(Tabel5[[#This Row],[Description 2]:[Description 2]])-FIND(\":\",Tabel5[[#This Row],[Description 2]:[Description 2]])-1))=FALSE,RIGHT(Tabel5[[#This Row],[Description 2]:[Description 2]],LEN(Tabel5[[#This Row],[Description 2]:[Description 2]])-FIND(\":\",Tabel5[[#This Row],[Description 2]:[Description 2]])-1),\"\")","v":""},"",{"$f":"IF(Tabel5[[Name]:[Name]]>0,Tabel5[[Name]:[Name]],\"\")","v":""}]
[{"$f":"IF(ISERROR(RIGHT(Tabel5[[#This Row],[Description 2]:[Description 2]],LEN(Tabel5[[#This Row],[Description 2]:[Description 2]])-FIND(\":\",Tabel5[[#This Row],[Description 2]:[Description 2]])-1))=FALSE,RIGHT(Tabel5[[#This Row],[Description 2]:[Description 2]],LEN(Tabel5[[#This Row],[Description 2]:[Description 2]])-FIND(\":\",Tabel5[[#This Row],[Description 2]:[Description 2]])-1),\"\")","v":""},"",{"$f":"IF(Tabel5[[Name]:[Name]]>0,Tabel5[[Name]:[Name]],\"\")","v":""}]
[{"$f":"IF(ISERROR(RIGHT(Tabel5[[#This Row],[Description 2]:[Description 2]],LEN(Tabel5[[#This Row],[Description 2]:[Description 2]])-FIND(\":\",Tabel5[[#This Row],[Description 2]:[Description 2]])-1))=FALSE,RIGHT(Tabel5[[#This Row],[Description 2]:[Description 2]],LEN(Tabel5[[#This Row],[Description 2]:[Description 2]])-FIND(\":\",Tabel5[[#This Row],[Description 2]:[Description 2]])-1),\"\")","v":""},"",{"$f":"IF(Tabel5[[Name]:[Name]]>0,Tabel5[[Name]:[Name]],\"\")","v":""}]
[{"$f":"IF(ISERROR(RIGHT(Tabel5[[#This Row],[Description 2]:[Description 2]],LEN(Tabel5[[#This Row],[Description 2]:[Description 2]])-FIND(\":\",Tabel5[[#This Row],[Description 2]:[Description 2]])-1))=FALSE,RIGHT(Tabel5[[#This Row],[Description 2]:[Description 2]],LEN(Tabel5[[#This Row],[Description 2]:[Description 2]])-FIND(\":\",Tabel5[[#This Row],[Description 2]:[Description 2]])-1),\"\")","v":""},"",{"$f":"IF(Tabel5[[Name]:[Name]]>0,Tabel5[[Name]:[Name]],\"\")","v":""}]